Workbook

Sheet Info+Engagés
A2: Date du concours | B2: Quelle Date ? | G2: Juge E
A3: Lieu du concours | B3: Quel Lieu ? (Département ?) | G3: Juge H
A4: N° de concours | B4: Quel N° ? | G4: Juge C | H4: Nom du juge en C
A5: N° d’épreuve | B5: Quel N° ? | G5: Juge M
A6: N° de piste | B6: Quelle Piste ? | G6: Juge B
B8: Amateur 3 Grand Prix (D1) | J8: Dotation | K8: 0
A11: N° Départ BO | B11: Cheval | C11: Age | D11: Sexe | E11: Robe | F11: Race | G11: Cavalier | H11: Licence | I11: CRE | J11: Club | K11: Etat
A12: 1 | B12: Cheval de Caroline | C12: Cheval de Caroline | D12: Cheval de Caroline | E12: Cheval de Caroline | F12: Cheval de Caroline | G12: Caroline | H12: Caroline | I12: Caroline | J12: Caroline
A13: 2 | B13: Cheval de Christophe | C13: Cheval de Christophe | D13: Cheval de Christophe | E13: Cheval de Christophe | F13: Cheval de Christophe | G13: Christophe | H13: Christophe | I13: Christophe | J13: Christophe
A14: 3 | B14: Cheval 1 de Jean | C14: Cheval 1 de Jean | D14: Cheval 1 de Jean | E14: Cheval 1 de Jean | F14: Cheval 1 de Jean | G14: Jean | H14: Jean | I14: Jean | J14: Jean
A15: 4 | B15: Cheval de Paul | C15: Cheval de Paul | D15: Cheval de Paul | E15: Cheval de Paul | F15: Cheval de Paul | G15: Paul | H15: Paul | I15: Paul | J15: Paul
A16: 5 | B16: Cheval 2 de Jean | C16: Cheval 2 de Jean | D16: Cheval 2 de Jean | E16: Cheval 2 de Jean | F16: Cheval 2 de Jean | G16: Jean | H16: Jean | I16: Jean | J16: Jean
A17: 6 | B17: Cheval de Stephane | C17: Cheval de Stephane | D17: Cheval de Stephane | E17: Cheval de Stephane | F17: Cheval de Stephane | G17: Stephane | H17: Stephane | I17: Stephane | J17: Stephane
A18: 7 | B18: Cheval de Nicolas | C18: Cheval de Nicolas | D18: Cheval de Nicolas | E18: Cheval de Nicolas | F18: Cheval de Nicolas | G18: Nicolas | H18: Nicolas | I18: Nicolas | J18: Nicolas
A19: 8 | B19: Cheval de Nathalie | C19: Cheval de Nathalie | D19: Cheval de Nathalie | E19: Cheval de Nathalie | F19: Cheval de Nathalie | G19: Nathalie | H19: Nathalie | I19: Nathalie | J19: Nathalie
A20: 9 | B20: Cheval de Laura | C20: Cheval de Laura | D20: Cheval de Laura | E20: Cheval de Laura | F20: Cheval de Laura | G20: Laura | H20: Laura | I20: Laura | J20: Laura
A21: 10 | B21: Cheval de Coralie | C21: Cheval de Coralie | D21: Cheval de Coralie | E21: Cheval de Coralie | F21: Cheval de Coralie | G21: Coralie | H21: Coralie | I21: Coralie | J21: Coralie
A22: 11 | B22: Cheval de Marie Lou | C22: Cheval de Marie Lou | D22: Cheval de Marie Lou | E22: Cheval de Marie Lou | F22: Cheval de Marie Lou | G22: Marie Lou | H22: Marie Lou | I22: Marie Lou | J22: Marie Lou
A23: 12 | B23: Cheval de Alysa | C23: Cheval de Alysa | D23: Cheval de Alysa | E23: Cheval de Alysa | F23: Cheval de Alysa | G23: Alysa | H23: Alysa | I23: Alysa | J23: Alysa
A24: 13 | B24: Cheval de Rachida | C24: Cheval de Rachida | D24: Cheval de Rachida | E24: Cheval de Rachida | F24: Cheval de Rachida | G24: Rachida | H24: Rachida | I24: Rachida | J24: Rachida
A25: 14 | B25: Cheval de Tom | C25: Cheval de Tom | D25: Cheval de Tom | E25: Cheval de Tom | F25: Cheval de Tom | G25: Tom | H25: Tom | I25: Tom | J25: Tom
A26: 15
A27: 16
A28: 17
A29: 18
A30: 19
A31: 20
A32: 21
A33: 22
A34: 23
A35: 24
A36: 25
A37: 26
A38: 27
A39: 28
A40: 29
A41: 30
A42: 31
A43: 32
A44: 33
A45: 34
A46: 35
A47: 36
A48: 37
A49: 38
A50: 39
A51: 40

Sheet Horaires
A2: Date du concours | B2: =IF(ISBLANK('Info+Engagés'!B2),"",('Info+Engagés'!B2)) -> Quelle Date ? | G2: =IF(ISBLANK('Info+Engagés'!B3),"",('Info+Engagés'!B3)) -> Quel Lieu ? (Département ?)
A4: N° d’épreuve | B4: =IF(ISBLANK('Info+Engagés'!B5),"",('Info+Engagés'!B5)) -> Quel N° ?
A5: N° de piste | B5: =IF(ISBLANK('Info+Engagés'!B6),"",('Info+Engagés'!B6)) -> Quelle Piste ? | H5: =IF(ISBLANK('Info+Engagés'!B4),"",('Info+Engagés'!B4)) -> Quel N° ?
A6: Dotation | B6: =IF(ISBLANK('Info+Engagés'!K8),"",('Info+Engagés'!K8)) -> 0
B8: =IF(ISBLANK('Info+Engagés'!B8),"",('Info+Engagés'!B8)) -> Amateur 3 Grand Prix (D1) | I8: Début de la reprise | K8: 08:00:00
I9: Durée de la reprise | K9: 00:08:00
I10: Pause | J10: 1 | K10: 00:10:00
A11: N° Départ | B11: Cavalier | C11: Club | D11: CRE | E11: Licence | F11: Cheval | G11: Age | H11: Sexe | I11: Race | J11: Eleveur | K11: Horaires
A12: 1 | B12: Caroline | C12: =IF($B12="","",OFFSET('Info+Engagés'!$A$11,$A12,9)) -> Caroline | D12: =IF($B12="","",OFFSET('Info+Engagés'!$A$11,$A12,8)) -> Caroline | E12: =IF($B12="","",OFFSET('Info+Engagés'!$A$11,$A12,7)) -> Caroline | F12: =IF($B12="","",OFFSET('Info+Engagés'!$A$11,$A12,1)) -> Cheval de Caroline | G12: =IF($B12="","",OFFSET('Info+Engagés'!$A$11,$A12,2)) -> Cheval de Caroline | H12: =IF($B12="","",OFFSET('Info+Engagés'!$A$11,$A12,3)) -> Cheval de Caroline | I12: =IF($B12="","",OFFSET('Info+Engagés'!$A$11,$A12,5)) -> Cheval de Caroline | K12: 08:00:00
A13: 2 | B13: Christophe | C13: =IF($B13="","",OFFSET('Info+Engagés'!$A$11,$A13,9)) -> Christophe | D13: =IF($B13="","",OFFSET('Info+Engagés'!$A$11,$A13,8)) -> Christophe | E13: =IF($B13="","",OFFSET('Info+Engagés'!$A$11,$A13,7)) -> Christophe | F13: =IF($B13="","",OFFSET('Info+Engagés'!$A$11,$A13,1)) -> Cheval de Christophe | G13: =IF($B13="","",OFFSET('Info+Engagés'!$A$11,$A13,2)) -> Cheval de Christophe | H13: =IF($B13="","",OFFSET('Info+Engagés'!$A$11,$A13,3)) -> Cheval de Christophe | I13: =IF($B13="","",OFFSET('Info+Engagés'!$A$11,$A13,5)) -> Cheval de Christophe | K13: 08:08:00
A14: 3 | B14: Jean | C14: =IF($B14="","",OFFSET('Info+Engagés'!$A$11,$A14,9)) -> Jean | D14: =IF($B14="","",OFFSET('Info+Engagés'!$A$11,$A14,8)) -> Jean | E14: =IF($B14="","",OFFSET('Info+Engagés'!$A$11,$A14,7)) -> Jean | F14: =IF($B14="","",OFFSET('Info+Engagés'!$A$11,$A14,1)) -> Cheval 1 de Jean | G14: =IF($B14="","",OFFSET('Info+Engagés'!$A$11,$A14,2)) -> Cheval 1 de Jean | H14: =IF($B14="","",OFFSET('Info+Engagés'!$A$11,$A14,3)) -> Cheval 1 de Jean | I14: =IF($B14="","",OFFSET('Info+Engagés'!$A$11,$A14,5)) -> Cheval 1 de Jean | K14: 08:26:00
A15: 4 | B15: Paul | C15: =IF($B15="","",OFFSET('Info+Engagés'!$A$11,$A15,9)) -> Paul | D15: =IF($B15="","",OFFSET('Info+Engagés'!$A$11,$A15,8)) -> Paul | E15: =IF($B15="","",OFFSET('Info+Engagés'!$A$11,$A15,7)) -> Paul | F15: =IF($B15="","",OFFSET('Info+Engagés'!$A$11,$A15,1)) -> Cheval de Paul | G15: =IF($B15="","",OFFSET('Info+Engagés'!$A$11,$A15,2)) -> Cheval de Paul | H15: =IF($B15="","",OFFSET('Info+Engagés'!$A$11,$A15,3)) -> Cheval de Paul | I15: =IF($B15="","",OFFSET('Info+Engagés'!$A$11,$A15,5)) -> Cheval de Paul | K15: 08:34:00
A16: 5 | B16: Jean | C16: =IF($B16="","",OFFSET('Info+Engagés'!$A$11,$A16,9)) -> Jean | D16: =IF($B16="","",OFFSET('Info+Engagés'!$A$11,$A16,8)) -> Jean | E16: =IF($B16="","",OFFSET('Info+Engagés'!$A$11,$A16,7)) -> Jean | F16: =IF($B16="","",OFFSET('Info+Engagés'!$A$11,$A16,1)) -> Cheval 2 de Jean | G16: =IF($B16="","",OFFSET('Info+Engagés'!$A$11,$A16,2)) -> Cheval 2 de Jean | H16: =IF($B16="","",OFFSET('Info+Engagés'!$A$11,$A16,3)) -> Cheval 2 de Jean | I16: =IF($B16="","",OFFSET('Info+Engagés'!$A$11,$A16,5)) -> Cheval 2 de Jean | K16: 08:42:00
A17: 6 | B17: Stephane | C17: =IF($B17="","",OFFSET('Info+Engagés'!$A$11,$A17,9)) -> Stephane | D17: =IF($B17="","",OFFSET('Info+Engagés'!$A$11,$A17,8)) -> Stephane | E17: =IF($B17="","",OFFSET('Info+Engagés'!$A$11,$A17,7)) -> Stephane | F17: =IF($B17="","",OFFSET('Info+Engagés'!$A$11,$A17,1)) -> Cheval de Stephane | G17: =IF($B17="","",OFFSET('Info+Engagés'!$A$11,$A17,2)) -> Cheval de Stephane | H17: =IF($B17="","",OFFSET('Info+Engagés'!$A$11,$A17,3)) -> Cheval de Stephane | I17: =IF($B17="","",OFFSET('Info+Engagés'!$A$11,$A17,5)) -> Cheval de Stephane | K17: 08:50:00
A18: 7 | B18: Nicolas | C18: =IF($B18="","",OFFSET('Info+Engagés'!$A$11,$A18,9)) -> Nicolas | D18: =IF($B18="","",OFFSET('Info+Engagés'!$A$11,$A18,8)) -> Nicolas | E18: =IF($B18="","",OFFSET('Info+Engagés'!$A$11,$A18,7)) -> Nicolas | F18: =IF($B18="","",OFFSET('Info+Engagés'!$A$11,$A18,1)) -> Cheval de Nicolas | G18: =IF($B18="","",OFFSET('Info+Engagés'!$A$11,$A18,2)) -> Cheval de Nicolas | H18: =IF($B18="","",OFFSET('Info+Engagés'!$A$11,$A18,3)) -> Cheval de Nicolas | I18: =IF($B18="","",OFFSET('Info+Engagés'!$A$11,$A18,5)) -> Cheval de Nicolas | K18: 08:58:00
A19: 8 | B19: Nathalie | C19: =IF($B19="","",OFFSET('Info+Engagés'!$A$11,$A19,9)) -> Nathalie | D19: =IF($B19="","",OFFSET('Info+Engagés'!$A$11,$A19,8)) -> Nathalie | E19: =IF($B19="","",OFFSET('Info+Engagés'!$A$11,$A19,7)) -> Nathalie | F19: =IF($B19="","",OFFSET('Info+Engagés'!$A$11,$A19,1)) -> Cheval de Nathalie | G19: =IF($B19="","",OFFSET('Info+Engagés'!$A$11,$A19,2)) -> Cheval de Nathalie | H19: =IF($B19="","",OFFSET('Info+Engagés'!$A$11,$A19,3)) -> Cheval de Nathalie | I19: =IF($B19="","",OFFSET('Info+Engagés'!$A$11,$A19,5)) -> Cheval de Nathalie | K19: 09:06:00
A20: 9 | B20: Laura | C20: =IF($B20="","",OFFSET('Info+Engagés'!$A$11,$A20,9)) -> Laura | D20: =IF($B20="","",OFFSET('Info+Engagés'!$A$11,$A20,8)) -> Laura | E20: =IF($B20="","",OFFSET('Info+Engagés'!$A$11,$A20,7)) -> Laura | F20: =IF($B20="","",OFFSET('Info+Engagés'!$A$11,$A20,1)) -> Cheval de Laura | G20: =IF($B20="","",OFFSET('Info+Engagés'!$A$11,$A20,2)) -> Cheval de Laura | H20: =IF($B20="","",OFFSET('Info+Engagés'!$A$11,$A20,3)) -> Cheval de Laura | I20: =IF($B20="","",OFFSET('Info+Engagés'!$A$11,$A20,5)) -> Cheval de Laura | K20: 09:14:00
A21: 10 | B21: Coralie | C21: =IF($B21="","",OFFSET('Info+Engagés'!$A$11,$A21,9)) -> Coralie | D21: =IF($B21="","",OFFSET('Info+Engagés'!$A$11,$A21,8)) -> Coralie | E21: =IF($B21="","",OFFSET('Info+Engagés'!$A$11,$A21,7)) -> Coralie | F21: =IF($B21="","",OFFSET('Info+Engagés'!$A$11,$A21,1)) -> Cheval de Coralie | G21: =IF($B21="","",OFFSET('Info+Engagés'!$A$11,$A21,2)) -> Cheval de Coralie | H21: =IF($B21="","",OFFSET('Info+Engagés'!$A$11,$A21,3)) -> Cheval de Coralie | I21: =IF($B21="","",OFFSET('Info+Engagés'!$A$11,$A21,5)) -> Cheval de Coralie | K21: 09:22:00
A22: 11 | B22: Marie Lou | C22: =IF($B22="","",OFFSET('Info+Engagés'!$A$11,$A22,9)) -> Marie Lou | D22: =IF($B22="","",OFFSET('Info+Engagés'!$A$11,$A22,8)) -> Marie Lou | E22: =IF($B22="","",OFFSET('Info+Engagés'!$A$11,$A22,7)) -> Marie Lou | F22: =IF($B22="","",OFFSET('Info+Engagés'!$A$11,$A22,1)) -> Cheval de Marie Lou | G22: =IF($B22="","",OFFSET('Info+Engagés'!$A$11,$A22,2)) -> Cheval de Marie Lou | H22: =IF($B22="","",OFFSET('Info+Engagés'!$A$11,$A22,3)) -> Cheval de Marie Lou | I22: =IF($B22="","",OFFSET('Info+Engagés'!$A$11,$A22,5)) -> Cheval de Marie Lou | K22: 09:30:00
A23: 12 | B23: Alysa | C23: =IF($B23="","",OFFSET('Info+Engagés'!$A$11,$A23,9)) -> Alysa | D23: =IF($B23="","",OFFSET('Info+Engagés'!$A$11,$A23,8)) -> Alysa | E23: =IF($B23="","",OFFSET('Info+Engagés'!$A$11,$A23,7)) -> Alysa | F23: =IF($B23="","",OFFSET('Info+Engagés'!$A$11,$A23,1)) -> Cheval de Alysa | G23: =IF($B23="","",OFFSET('Info+Engagés'!$A$11,$A23,2)) -> Cheval de Alysa | H23: =IF($B23="","",OFFSET('Info+Engagés'!$A$11,$A23,3)) -> Cheval de Alysa | I23: =IF($B23="","",OFFSET('Info+Engagés'!$A$11,$A23,5)) -> Cheval de Alysa | K23: 09:38:00
A24: 13 | B24: Rachida | C24: =IF($B24="","",OFFSET('Info+Engagés'!$A$11,$A24,9)) -> Rachida | D24: =IF($B24="","",OFFSET('Info+Engagés'!$A$11,$A24,8)) -> Rachida | E24: =IF($B24="","",OFFSET('Info+Engagés'!$A$11,$A24,7)) -> Rachida | F24: =IF($B24="","",OFFSET('Info+Engagés'!$A$11,$A24,1)) -> Cheval de Rachida | G24: =IF($B24="","",OFFSET('Info+Engagés'!$A$11,$A24,2)) -> Cheval de Rachida | H24: =IF($B24="","",OFFSET('Info+Engagés'!$A$11,$A24,3)) -> Cheval de Rachida | I24: =IF($B24="","",OFFSET('Info+Engagés'!$A$11,$A24,5)) -> Cheval de Rachida | K24: 09:46:00
A25: 14 | B25: Tom | C25: =IF($B25="","",OFFSET('Info+Engagés'!$A$11,$A25,9)) -> Tom | D25: =IF($B25="","",OFFSET('Info+Engagés'!$A$11,$A25,8)) -> Tom | E25: =IF($B25="","",OFFSET('Info+Engagés'!$A$11,$A25,7)) -> Tom | F25: =IF($B25="","",OFFSET('Info+Engagés'!$A$11,$A25,1)) -> Cheval de Tom | G25: =IF($B25="","",OFFSET('Info+Engagés'!$A$11,$A25,2)) -> Cheval de Tom | H25: =IF($B25="","",OFFSET('Info+Engagés'!$A$11,$A25,3)) -> Cheval de Tom | I25: =IF($B25="","",OFFSET('Info+Engagés'!$A$11,$A25,5)) -> Cheval de Tom | K25: 09:54:00
A26: 15 | C26: =IF($B26="","",OFFSET('Info+Engagés'!$A$11,$A26,9)) ->  | D26: =IF($B26="","",OFFSET('Info+Engagés'!$A$11,$A26,8)) ->  | E26: =IF($B26="","",OFFSET('Info+Engagés'!$A$11,$A26,7)) ->  | F26: =IF($B26="","",OFFSET('Info+Engagés'!$A$11,$A26,1)) ->  | G26: =IF($B26="","",OFFSET('Info+Engagés'!$A$11,$A26,2)) ->  | H26: =IF($B26="","",OFFSET('Info+Engagés'!$A$11,$A26,3)) ->  | I26: =IF($B26="","",OFFSET('Info+Engagés'!$A$11,$A26,5)) -> 
A27: 16 | C27: =IF($B27="","",OFFSET('Info+Engagés'!$A$11,$A27,9)) ->  | D27: =IF($B27="","",OFFSET('Info+Engagés'!$A$11,$A27,8)) ->  | E27: =IF($B27="","",OFFSET('Info+Engagés'!$A$11,$A27,7)) ->  | F27: =IF($B27="","",OFFSET('Info+Engagés'!$A$11,$A27,1)) ->  | G27: =IF($B27="","",OFFSET('Info+Engagés'!$A$11,$A27,2)) ->  | H27: =IF($B27="","",OFFSET('Info+Engagés'!$A$11,$A27,3)) ->  | I27: =IF($B27="","",OFFSET('Info+Engagés'!$A$11,$A27,5)) -> 
A28: 17 | C28: =IF($B28="","",OFFSET('Info+Engagés'!$A$11,$A28,9)) ->  | D28: =IF($B28="","",OFFSET('Info+Engagés'!$A$11,$A28,8)) ->  | E28: =IF($B28="","",OFFSET('Info+Engagés'!$A$11,$A28,7)) ->  | F28: =IF($B28="","",OFFSET('Info+Engagés'!$A$11,$A28,1)) ->  | G28: =IF($B28="","",OFFSET('Info+Engagés'!$A$11,$A28,2)) ->  | H28: =IF($B28="","",OFFSET('Info+Engagés'!$A$11,$A28,3)) ->  | I28: =IF($B28="","",OFFSET('Info+Engagés'!$A$11,$A28,5)) -> 
A29: 18 | C29: =IF($B29="","",OFFSET('Info+Engagés'!$A$11,$A29,9)) ->  | D29: =IF($B29="","",OFFSET('Info+Engagés'!$A$11,$A29,8)) ->  | E29: =IF($B29="","",OFFSET('Info+Engagés'!$A$11,$A29,7)) ->  | F29: =IF($B29="","",OFFSET('Info+Engagés'!$A$11,$A29,1)) ->  | G29: =IF($B29="","",OFFSET('Info+Engagés'!$A$11,$A29,2)) ->  | H29: =IF($B29="","",OFFSET('Info+Engagés'!$A$11,$A29,3)) ->  | I29: =IF($B29="","",OFFSET('Info+Engagés'!$A$11,$A29,5)) -> 
A30: 19 | C30: =IF($B30="","",OFFSET('Info+Engagés'!$A$11,$A30,9)) ->  | D30: =IF($B30="","",OFFSET('Info+Engagés'!$A$11,$A30,8)) ->  | E30: =IF($B30="","",OFFSET('Info+Engagés'!$A$11,$A30,7)) ->  | F30: =IF($B30="","",OFFSET('Info+Engagés'!$A$11,$A30,1)) ->  | G30: =IF($B30="","",OFFSET('Info+Engagés'!$A$11,$A30,2)) ->  | H30: =IF($B30="","",OFFSET('Info+Engagés'!$A$11,$A30,3)) ->  | I30: =IF($B30="","",OFFSET('Info+Engagés'!$A$11,$A30,5)) -> 
A31: 20 | C31: =IF($B31="","",OFFSET('Info+Engagés'!$A$11,$A31,9)) ->  | D31: =IF($B31="","",OFFSET('Info+Engagés'!$A$11,$A31,8)) ->  | E31: =IF($B31="","",OFFSET('Info+Engagés'!$A$11,$A31,7)) ->  | F31: =IF($B31="","",OFFSET('Info+Engagés'!$A$11,$A31,1)) ->  | G31: =IF($B31="","",OFFSET('Info+Engagés'!$A$11,$A31,2)) ->  | H31: =IF($B31="","",OFFSET('Info+Engagés'!$A$11,$A31,3)) ->  | I31: =IF($B31="","",OFFSET('Info+Engagés'!$A$11,$A31,5)) -> 
A32: 21 | C32: =IF($B32="","",OFFSET('Info+Engagés'!$A$11,$A32,9)) ->  | D32: =IF($B32="","",OFFSET('Info+Engagés'!$A$11,$A32,8)) ->  | E32: =IF($B32="","",OFFSET('Info+Engagés'!$A$11,$A32,7)) ->  | F32: =IF($B32="","",OFFSET('Info+Engagés'!$A$11,$A32,1)) ->  | G32: =IF($B32="","",OFFSET('Info+Engagés'!$A$11,$A32,2)) ->  | H32: =IF($B32="","",OFFSET('Info+Engagés'!$A$11,$A32,3)) ->  | I32: =IF($B32="","",OFFSET('Info+Engagés'!$A$11,$A32,5)) -> 
A33: 22 | C33: =IF($B33="","",OFFSET('Info+Engagés'!$A$11,$A33,9)) ->  | D33: =IF($B33="","",OFFSET('Info+Engagés'!$A$11,$A33,8)) ->  | E33: =IF($B33="","",OFFSET('Info+Engagés'!$A$11,$A33,7)) ->  | F33: =IF($B33="","",OFFSET('Info+Engagés'!$A$11,$A33,1)) ->  | G33: =IF($B33="","",OFFSET('Info+Engagés'!$A$11,$A33,2)) ->  | H33: =IF($B33="","",OFFSET('Info+Engagés'!$A$11,$A33,3)) ->  | I33: =IF($B33="","",OFFSET('Info+Engagés'!$A$11,$A33,5)) -> 
A34: 23 | C34: =IF($B34="","",OFFSET('Info+Engagés'!$A$11,$A34,9)) ->  | D34: =IF($B34="","",OFFSET('Info+Engagés'!$A$11,$A34,8)) ->  | E34: =IF($B34="","",OFFSET('Info+Engagés'!$A$11,$A34,7)) ->  | F34: =IF($B34="","",OFFSET('Info+Engagés'!$A$11,$A34,1)) ->  | G34: =IF($B34="","",OFFSET('Info+Engagés'!$A$11,$A34,2)) ->  | H34: =IF($B34="","",OFFSET('Info+Engagés'!$A$11,$A34,3)) ->  | I34: =IF($B34="","",OFFSET('Info+Engagés'!$A$11,$A34,5)) -> 
A35: 24 | C35: =IF($B35="","",OFFSET('Info+Engagés'!$A$11,$A35,9)) ->  | D35: =IF($B35="","",OFFSET('Info+Engagés'!$A$11,$A35,8)) ->  | E35: =IF($B35="","",OFFSET('Info+Engagés'!$A$11,$A35,7)) ->  | F35: =IF($B35="","",OFFSET('Info+Engagés'!$A$11,$A35,1)) ->  | G35: =IF($B35="","",OFFSET('Info+Engagés'!$A$11,$A35,2)) ->  | H35: =IF($B35="","",OFFSET('Info+Engagés'!$A$11,$A35,3)) ->  | I35: =IF($B35="","",OFFSET('Info+Engagés'!$A$11,$A35,5)) -> 
A36: 25 | C36: =IF($B36="","",OFFSET('Info+Engagés'!$A$11,$A36,9)) ->  | D36: =IF($B36="","",OFFSET('Info+Engagés'!$A$11,$A36,8)) ->  | E36: =IF($B36="","",OFFSET('Info+Engagés'!$A$11,$A36,7)) ->  | F36: =IF($B36="","",OFFSET('Info+Engagés'!$A$11,$A36,1)) ->  | G36: =IF($B36="","",OFFSET('Info+Engagés'!$A$11,$A36,2)) ->  | H36: =IF($B36="","",OFFSET('Info+Engagés'!$A$11,$A36,3)) ->  | I36: =IF($B36="","",OFFSET('Info+Engagés'!$A$11,$A36,5)) -> 
A37: 26 | C37: =IF($B37="","",OFFSET('Info+Engagés'!$A$11,$A37,9)) ->  | D37: =IF($B37="","",OFFSET('Info+Engagés'!$A$11,$A37,8)) ->  | E37: =IF($B37="","",OFFSET('Info+Engagés'!$A$11,$A37,7)) ->  | F37: =IF($B37="","",OFFSET('Info+Engagés'!$A$11,$A37,1)) ->  | G37: =IF($B37="","",OFFSET('Info+Engagés'!$A$11,$A37,2)) ->  | H37: =IF($B37="","",OFFSET('Info+Engagés'!$A$11,$A37,3)) ->  | I37: =IF($B37="","",OFFSET('Info+Engagés'!$A$11,$A37,5)) -> 
A38: 27 | C38: =IF($B38="","",OFFSET('Info+Engagés'!$A$11,$A38,9)) ->  | D38: =IF($B38="","",OFFSET('Info+Engagés'!$A$11,$A38,8)) ->  | E38: =IF($B38="","",OFFSET('Info+Engagés'!$A$11,$A38,7)) ->  | F38: =IF($B38="","",OFFSET('Info+Engagés'!$A$11,$A38,1)) ->  | G38: =IF($B38="","",OFFSET('Info+Engagés'!$A$11,$A38,2)) ->  | H38: =IF($B38="","",OFFSET('Info+Engagés'!$A$11,$A38,3)) ->  | I38: =IF($B38="","",OFFSET('Info+Engagés'!$A$11,$A38,5)) -> 
A39: 28 | C39: =IF($B39="","",OFFSET('Info+Engagés'!$A$11,$A39,9)) ->  | D39: =IF($B39="","",OFFSET('Info+Engagés'!$A$11,$A39,8)) ->  | E39: =IF($B39="","",OFFSET('Info+Engagés'!$A$11,$A39,7)) ->  | F39: =IF($B39="","",OFFSET('Info+Engagés'!$A$11,$A39,1)) ->  | G39: =IF($B39="","",OFFSET('Info+Engagés'!$A$11,$A39,2)) ->  | H39: =IF($B39="","",OFFSET('Info+Engagés'!$A$11,$A39,3)) ->  | I39: =IF($B39="","",OFFSET('Info+Engagés'!$A$11,$A39,5)) -> 
A40: 29 | C40: =IF($B40="","",OFFSET('Info+Engagés'!$A$11,$A40,9)) ->  | D40: =IF($B40="","",OFFSET('Info+Engagés'!$A$11,$A40,8)) ->  | E40: =IF($B40="","",OFFSET('Info+Engagés'!$A$11,$A40,7)) ->  | F40: =IF($B40="","",OFFSET('Info+Engagés'!$A$11,$A40,1)) ->  | G40: =IF($B40="","",OFFSET('Info+Engagés'!$A$11,$A40,2)) ->  | H40: =IF($B40="","",OFFSET('Info+Engagés'!$A$11,$A40,3)) ->  | I40: =IF($B40="","",OFFSET('Info+Engagés'!$A$11,$A40,5)) -> 
A41: 30 | C41: =IF($B41="","",OFFSET('Info+Engagés'!$A$11,$A41,9)) ->  | D41: =IF($B41="","",OFFSET('Info+Engagés'!$A$11,$A41,8)) ->  | E41: =IF($B41="","",OFFSET('Info+Engagés'!$A$11,$A41,7)) ->  | F41: =IF($B41="","",OFFSET('Info+Engagés'!$A$11,$A41,1)) ->  | G41: =IF($B41="","",OFFSET('Info+Engagés'!$A$11,$A41,2)) ->  | H41: =IF($B41="","",OFFSET('Info+Engagés'!$A$11,$A41,3)) ->  | I41: =IF($B41="","",OFFSET('Info+Engagés'!$A$11,$A41,5)) -> 
A42: 31 | C42: =IF($B42="","",OFFSET('Info+Engagés'!$A$11,$A42,9)) ->  | D42: =IF($B42="","",OFFSET('Info+Engagés'!$A$11,$A42,8)) ->  | E42: =IF($B42="","",OFFSET('Info+Engagés'!$A$11,$A42,7)) ->  | F42: =IF($B42="","",OFFSET('Info+Engagés'!$A$11,$A42,1)) ->  | G42: =IF($B42="","",OFFSET('Info+Engagés'!$A$11,$A42,2)) ->  | H42: =IF($B42="","",OFFSET('Info+Engagés'!$A$11,$A42,3)) ->  | I42: =IF($B42="","",OFFSET('Info+Engagés'!$A$11,$A42,5)) -> 
A43: 32 | C43: =IF($B43="","",OFFSET('Info+Engagés'!$A$11,$A43,9)) ->  | D43: =IF($B43="","",OFFSET('Info+Engagés'!$A$11,$A43,8)) ->  | E43: =IF($B43="","",OFFSET('Info+Engagés'!$A$11,$A43,7)) ->  | F43: =IF($B43="","",OFFSET('Info+Engagés'!$A$11,$A43,1)) ->  | G43: =IF($B43="","",OFFSET('Info+Engagés'!$A$11,$A43,2)) ->  | H43: =IF($B43="","",OFFSET('Info+Engagés'!$A$11,$A43,3)) ->  | I43: =IF($B43="","",OFFSET('Info+Engagés'!$A$11,$A43,5)) -> 
A44: 33 | C44: =IF($B44="","",OFFSET('Info+Engagés'!$A$11,$A44,9)) ->  | D44: =IF($B44="","",OFFSET('Info+Engagés'!$A$11,$A44,8)) ->  | E44: =IF($B44="","",OFFSET('Info+Engagés'!$A$11,$A44,7)) ->  | F44: =IF($B44="","",OFFSET('Info+Engagés'!$A$11,$A44,1)) ->  | G44: =IF($B44="","",OFFSET('Info+Engagés'!$A$11,$A44,2)) ->  | H44: =IF($B44="","",OFFSET('Info+Engagés'!$A$11,$A44,3)) ->  | I44: =IF($B44="","",OFFSET('Info+Engagés'!$A$11,$A44,5)) -> 
A45: 34 | C45: =IF($B45="","",OFFSET('Info+Engagés'!$A$11,$A45,9)) ->  | D45: =IF($B45="","",OFFSET('Info+Engagés'!$A$11,$A45,8)) ->  | E45: =IF($B45="","",OFFSET('Info+Engagés'!$A$11,$A45,7)) ->  | F45: =IF($B45="","",OFFSET('Info+Engagés'!$A$11,$A45,1)) ->  | G45: =IF($B45="","",OFFSET('Info+Engagés'!$A$11,$A45,2)) ->  | H45: =IF($B45="","",OFFSET('Info+Engagés'!$A$11,$A45,3)) ->  | I45: =IF($B45="","",OFFSET('Info+Engagés'!$A$11,$A45,5)) -> 
A46: 35 | C46: =IF($B46="","",OFFSET('Info+Engagés'!$A$11,$A46,9)) ->  | D46: =IF($B46="","",OFFSET('Info+Engagés'!$A$11,$A46,8)) ->  | E46: =IF($B46="","",OFFSET('Info+Engagés'!$A$11,$A46,7)) ->  | F46: =IF($B46="","",OFFSET('Info+Engagés'!$A$11,$A46,1)) ->  | G46: =IF($B46="","",OFFSET('Info+Engagés'!$A$11,$A46,2)) ->  | H46: =IF($B46="","",OFFSET('Info+Engagés'!$A$11,$A46,3)) ->  | I46: =IF($B46="","",OFFSET('Info+Engagés'!$A$11,$A46,5)) -> 
A47: 36 | C47: =IF($B47="","",OFFSET('Info+Engagés'!$A$11,$A47,9)) ->  | D47: =IF($B47="","",OFFSET('Info+Engagés'!$A$11,$A47,8)) ->  | E47: =IF($B47="","",OFFSET('Info+Engagés'!$A$11,$A47,7)) ->  | F47: =IF($B47="","",OFFSET('Info+Engagés'!$A$11,$A47,1)) ->  | G47: =IF($B47="","",OFFSET('Info+Engagés'!$A$11,$A47,2)) ->  | H47: =IF($B47="","",OFFSET('Info+Engagés'!$A$11,$A47,3)) ->  | I47: =IF($B47="","",OFFSET('Info+Engagés'!$A$11,$A47,5)) -> 
A48: 37 | C48: =IF($B48="","",OFFSET('Info+Engagés'!$A$11,$A48,9)) ->  | D48: =IF($B48="","",OFFSET('Info+Engagés'!$A$11,$A48,8)) ->  | E48: =IF($B48="","",OFFSET('Info+Engagés'!$A$11,$A48,7)) ->  | F48: =IF($B48="","",OFFSET('Info+Engagés'!$A$11,$A48,1)) ->  | G48: =IF($B48="","",OFFSET('Info+Engagés'!$A$11,$A48,2)) ->  | H48: =IF($B48="","",OFFSET('Info+Engagés'!$A$11,$A48,3)) ->  | I48: =IF($B48="","",OFFSET('Info+Engagés'!$A$11,$A48,5)) -> 
A49: 38 | C49: =IF($B49="","",OFFSET('Info+Engagés'!$A$11,$A49,9)) ->  | D49: =IF($B49="","",OFFSET('Info+Engagés'!$A$11,$A49,8)) ->  | E49: =IF($B49="","",OFFSET('Info+Engagés'!$A$11,$A49,7)) ->  | F49: =IF($B49="","",OFFSET('Info+Engagés'!$A$11,$A49,1)) ->  | G49: =IF($B49="","",OFFSET('Info+Engagés'!$A$11,$A49,2)) ->  | H49: =IF($B49="","",OFFSET('Info+Engagés'!$A$11,$A49,3)) ->  | I49: =IF($B49="","",OFFSET('Info+Engagés'!$A$11,$A49,5)) -> 
A50: 39 | C50: =IF($B50="","",OFFSET('Info+Engagés'!$A$11,$A50,9)) ->  | D50: =IF($B50="","",OFFSET('Info+Engagés'!$A$11,$A50,8)) ->  | E50: =IF($B50="","",OFFSET('Info+Engagés'!$A$11,$A50,7)) ->  | F50: =IF($B50="","",OFFSET('Info+Engagés'!$A$11,$A50,1)) ->  | G50: =IF($B50="","",OFFSET('Info+Engagés'!$A$11,$A50,2)) ->  | H50: =IF($B50="","",OFFSET('Info+Engagés'!$A$11,$A50,3)) ->  | I50: =IF($B50="","",OFFSET('Info+Engagés'!$A$11,$A50,5)) -> 
A51: 40 | C51: =IF($B51="","",OFFSET('Info+Engagés'!$A$11,$A51,9)) ->  | D51: =IF($B51="","",OFFSET('Info+Engagés'!$A$11,$A51,8)) ->  | E51: =IF($B51="","",OFFSET('Info+Engagés'!$A$11,$A51,7)) ->  | F51: =IF($B51="","",OFFSET('Info+Engagés'!$A$11,$A51,1)) ->  | G51: =IF($B51="","",OFFSET('Info+Engagés'!$A$11,$A51,2)) ->  | H51: =IF($B51="","",OFFSET('Info+Engagés'!$A$11,$A51,3)) ->  | I51: =IF($B51="","",OFFSET('Info+Engagés'!$A$11,$A51,5)) -> 

Sheet Cav1
A1: ='Info+Engagés'!B3 -> Quel Lieu ? (Département ?) | D1: ='Info+Engagés'!B8 -> Amateur 3 Grand Prix (D1) | H1: ='Info+Engagés'!B2 -> Quelle Date ?
A3: N° de concours | D3: Cheval | F3: Cavalier | H3: Nt d’ensemble | I3: =SUM(D34:H36,D39:H39,D37*2,E37*2,F37*2,G37*2,H37*2,D38*2,E38*2,F38*2,G38*2,H38*2) -> 0
A4: ='Info+Engagés'!B4 -> Quel N° ? | H4: Points | I4: =SUM(D43:H43) -> 60
A5: Épreuve N° | C5: ='Info+Engagés'!B5 -> Quel N° ? | D5: ='Info+Engagés'!B12 -> Cheval de Caroline | F5: ='Info+Engagés'!G12 -> Caroline | H5: % Final | I5: =AVERAGE(D42:H42) -> 20
A6: Piste | C6: ='Info+Engagés'!B6 -> Quelle Piste ?
A7: N° Départ BO | C7: ='Info+Engagés'!A12 -> 1 | H7: Classement | I7: =INDEX(Résultats!P:P,MATCH(C7,Résultats!A:A,0)) -> 1
A9: Imprimé le : | C9: Coéff . | D9: Juge E | E9: Juge H | F9: Juge C | G9: Juge M | H9: Juge B | I9: écart Max
A10: =TODAY() -> 2017-03-26 | D10: =IF(ISBLANK('Info+Engagés'!H2),"",('Info+Engagés'!H2)) ->  | E10: =IF(ISBLANK('Info+Engagés'!H3),"",('Info+Engagés'!H3)) ->  | F10: =IF(ISBLANK('Info+Engagés'!H4),"",('Info+Engagés'!H4)) -> Nom du juge en C | G10: =IF(ISBLANK('Info+Engagés'!H5),"",('Info+Engagés'!H5)) ->  | H10: =IF(ISBLANK('Info+Engagés'!H6),"",('Info+Engagés'!H6)) -> 
A11: =NOW() -> 42820.46886
A12: Notation figures | B12: Figure 1 | C12: 1 | F12: 60 | I12: =MAX(D12:H12)-MIN(D12:H12) -> 0
B13: Figure 2 | C13: 1 | I13: 0
B14: Figure 3 | C14: 1 | I14: 0
B15: Figure 4 | C15: 1 | I15: 0
B16: Figure 5 | C16: 1 | I16: 0
B17: Figure 6 | C17: 1 | I17: 0
B18: Figure 7 | C18: 1 | I18: 0
B19: Figure 8 | C19: 1 | I19: 0
B20: Figure 9 | C20: 1 | I20: 0
B21: Figure 10 | C21: 1 | I21: 0
B22: Figure 11 | C22: 1 | I22: 0
B23: Figure 12 | C23: 1 | I23: 0
B24: Figure 13 | C24: 1 | I24: 0
B25: Figure 14 | C25: 1 | I25: 0
B26: Figure 15 | C26: 1 | I26: 0
B27: Figure 16 | C27: 1 | I27: 0
B28: Figure 17 | C28: 1 | I28: 0
B29: Figure 18 | C29: 1 | I29: 0
B30: Figure 19 | C30: 1 | I30: 0
B31: Figure 20 | C31: 1 | I31: 0
B32: Figure 21 | C32: 1 | I32: 0
B33: Figure 22 | C33: 1 | I33: 0
A34: Ensemble | B34: Ensemble 1 | C34: 1 | I34: 0
B35: Ensemble 2 | C35: 1 | I35: 0
B36: Ensemble 3 | C36: 1 | I36: 0
B37: Ensemble 4 | C37: 2 | I37: 0
B38: Ensemble 5 | C38: 2 | I38: 0
B39: Ensemble 6 | C39: 1 | I39: 0
A40: Pénalité en points
A41: Erreure(s) de tracé
A42: % Total du juge | D42: =IF(ISBLANK('Info+Engagés'!H2),"",D43/3-D41) ->  | E42: =IF(ISBLANK('Info+Engagés'!H3),"",E43/3-E41) ->  | F42: =IF(ISBLANK('Info+Engagés'!H4),"",F43/3-F41) -> 20 | G42: =IF(ISBLANK('Info+Engagés'!H5),"",G43/3-G41) ->  | H42: =IF(ISBLANK('Info+Engagés'!H6),"",H43/3-H41) ->  | I42: =MAX(D42:H42)-MIN(D42:H42) -> 0
A43: Soit en points | D43: =IF(ISBLANK('Info+Engagés'!H2),"",SUM(D12:D36,D39,D37*2,D38*2)-D40) ->  | E43: =IF(ISBLANK('Info+Engagés'!H3),"",(SUM(E12:E36,E39,E37*2,E38*2)-E40)) ->  | F43: =IF(ISBLANK('Info+Engagés'!H4),"",(SUM(F12:F36,F39,F37*2,F38*2)-F40)) -> 60 | G43: =IF(ISBLANK('Info+Engagés'!H5),"",(SUM(G12:G36,G39,G37*2,G38*2)-G40)) ->  | H43: =IF(ISBLANK('Info+Engagés'!H6),"",(SUM(H12:H36,H39,H37*2,H38*2)-H40)) -> 
A44: Total maxi par juge = 300 1 point correspond à 0,333% 1% correspond en points à : 3 Les notes sont sur 10 et correspondent à la saisie informatique par l'opérateur des protocoles joints, Le total résulte de l'addition des points attribués après application du coefficient et soustraction des points de pénalité encourus après conversion en pourcentage sont déduit les pourcentages de pénalités encourus par suite d'erreurs de tracé pour obtenir le pourcentage par juge.

Sheet Cav2
A1: ='Info+Engagés'!B3 -> Quel Lieu ? (Département ?) | D1: ='Info+Engagés'!B8 -> Amateur 3 Grand Prix (D1) | H1: ='Info+Engagés'!B2 -> Quelle Date ?
A3: N° de concours | D3: Cheval | F3: Cavalier | H3: Note d’ensemble | I3: =SUM(D34:H36,D39:H39,D37*2,E37*2,F37*2,G37*2,H37*2,D38*2,E38*2,F38*2,G38*2,H38*2) -> 0
A4: ='Info+Engagés'!B4 -> Quel N° ? | H4: Points | I4: =SUM(D43:H43) -> 59
A5: Épreuve N° | C5: ='Info+Engagés'!B5 -> Quel N° ? | D5: ='Info+Engagés'!B13 -> Cheval de Christophe | F5: ='Info+Engagés'!G13 -> Christophe | H5: % Final | I5: =AVERAGE(D42:H42) -> 19.66666667
A6: Piste | C6: ='Info+Engagés'!B6 -> Quelle Piste ?
A7: N° Départ BO | C7: ='Info+Engagés'!A13 -> 2 | H7: Classement | I7: =INDEX(Résultats!P:P,MATCH(C7,Résultats!A:A,0)) -> 2
A9: Imprimé le : | C9: Coéff . | D9: Juge E | E9: Juge H | F9: Juge C | G9: Juge M | H9: Juge B | I9: écart Max
A10: =TODAY() -> 2017-03-26 | D10: =IF(ISBLANK('Info+Engagés'!H2),"",('Info+Engagés'!H2)) ->  | E10: =IF(ISBLANK('Info+Engagés'!H3),"",('Info+Engagés'!H3)) ->  | F10: =IF(ISBLANK('Info+Engagés'!H4),"",('Info+Engagés'!H4)) -> Nom du juge en C | G10: =IF(ISBLANK('Info+Engagés'!H5),"",('Info+Engagés'!H5)) ->  | H10: =IF(ISBLANK('Info+Engagés'!H6),"",('Info+Engagés'!H6)) -> 
A11: =NOW() -> 42820.46886
A12: Notation figures | B12: Figure 1 | C12: 1 | F12: 59 | I12: =MAX(D12:H12)-MIN(D12:H12) -> 0
B13: Figure 2 | C13: 1 | I13: 0
B14: Figure 3 | C14: 1 | I14: 0
B15: Figure 4 | C15: 1 | I15: 0
B16: Figure 5 | C16: 1 | I16: 0
B17: Figure 6 | C17: 1 | I17: 0
B18: Figure 7 | C18: 1 | I18: 0
B19: Figure 8 | C19: 1 | I19: 0
B20: Figure 9 | C20: 1 | I20: 0
B21: Figure 10 | C21: 1 | I21: 0
B22: Figure 11 | C22: 1 | I22: 0
B23: Figure 12 | C23: 1 | I23: 0
B24: Figure 13 | C24: 1 | I24: 0
B25: Figure 14 | C25: 1 | I25: 0
B26: Figure 15 | C26: 1 | I26: 0
B27: Figure 16 | C27: 1 | I27: 0
B28: Figure 17 | C28: 1 | I28: 0
B29: Figure 18 | C29: 1 | I29: 0
B30: Figure 19 | C30: 1 | I30: 0
B31: Figure 20 | C31: 1 | I31: 0
B32: Figure 21 | C32: 1 | I32: 0
B33: Figure 22 | C33: 1 | I33: 0
A34: Ensemble | B34: Ensemble 1 | C34: 1 | I34: 0
B35: Ensemble 2 | C35: 1 | I35: 0
B36: Ensemble 3 | C36: 1 | I36: 0
B37: Ensemble 4 | C37: 2 | I37: 0
B38: Ensemble 5 | C38: 2 | I38: 0
B39: Ensemble 6 | C39: 1 | I39: 0
A40: Pénalité en points
A41: Erreure(s) de tracé
A42: % Total du juge | D42: =IF(ISBLANK('Info+Engagés'!H2),"",D43/3-D41) ->  | E42: =IF(ISBLANK('Info+Engagés'!H3),"",E43/3-E41) ->  | F42: =IF(ISBLANK('Info+Engagés'!H4),"",F43/3-F41) -> 19.66666667 | G42: =IF(ISBLANK('Info+Engagés'!H5),"",G43/3-G41) ->  | H42: =IF(ISBLANK('Info+Engagés'!H6),"",H43/3-H41) ->  | I42: =MAX(D42:H42)-MIN(D42:H42) -> 0
A43: Soit en points | D43: =IF(ISBLANK('Info+Engagés'!H2),"",SUM(D12:D36,D39,D37*2,D38*2)-D40) ->  | E43: =IF(ISBLANK('Info+Engagés'!H3),"",(SUM(E12:E36,E39,E37*2,E38*2)-E40)) ->  | F43: =IF(ISBLANK('Info+Engagés'!H4),"",(SUM(F12:F36,F39,F37*2,F38*2)-F40)) -> 59 | G43: =IF(ISBLANK('Info+Engagés'!H5),"",(SUM(G12:G36,G39,G37*2,G38*2)-G40)) ->  | H43: =IF(ISBLANK('Info+Engagés'!H6),"",(SUM(H12:H36,H39,H37*2,H38*2)-H40)) -> 
A44: Total maxi par juge = 300 1 point correspond à 0,333% 1% correspond en points à : 3 Les notes sont sur 10 et correspondent à la saisie informatique par l'opérateur des protocoles joints, Le total résulte de l'addition des points attribués après application du coefficient et soustraction des points de pénalité encourus après conversion en pourcentage sont déduit les pourcentages de pénalités encourus par suite d'erreurs de tracé pour obtenir le pourcentage par juge.

Sheet Cav3
A1: ='Info+Engagés'!B3 -> Quel Lieu ? (Département ?) | D1: ='Info+Engagés'!B8 -> Amateur 3 Grand Prix (D1) | H1: ='Info+Engagés'!B2 -> Quelle Date ?
A3: N° de concours | D3: Cheval | F3: Cavalier | H3: Note d’ensemble | I3: =SUM(D34:H36,D39:H39,D37*2,E37*2,F37*2,G37*2,H37*2,D38*2,E38*2,F38*2,G38*2,H38*2) -> 0
A4: ='Info+Engagés'!B4 -> Quel N° ? | H4: Points | I4: =SUM(D43:H43) -> 58
A5: Épreuve N° | C5: ='Info+Engagés'!B5 -> Quel N° ? | D5: ='Info+Engagés'!B14 -> Cheval 1 de Jean | F5: ='Info+Engagés'!G14 -> Jean | H5: % Final | I5: =AVERAGE(D42:H42) -> 19.33333333
A6: Piste | C6: ='Info+Engagés'!B6 -> Quelle Piste ?
A7: N° Départ BO | C7: ='Info+Engagés'!A14 -> 3 | H7: Classement | I7: =INDEX(Résultats!P:P,MATCH(C7,Résultats!A:A,0)) -> 3
A9: Imprimé le : | C9: Coéff . | D9: Juge E | E9: Juge H | F9: Juge C | G9: Juge M | H9: Juge B | I9: écart Max
A10: =TODAY() -> 2017-03-26 | D10: =IF(ISBLANK('Info+Engagés'!H2),"",('Info+Engagés'!H2)) ->  | E10: =IF(ISBLANK('Info+Engagés'!H3),"",('Info+Engagés'!H3)) ->  | F10: =IF(ISBLANK('Info+Engagés'!H4),"",('Info+Engagés'!H4)) -> Nom du juge en C | G10: =IF(ISBLANK('Info+Engagés'!H5),"",('Info+Engagés'!H5)) ->  | H10: =IF(ISBLANK('Info+Engagés'!H6),"",('Info+Engagés'!H6)) -> 
A11: =NOW() -> 42820.46886
A12: Notation figures | B12: Figure 1 | C12: 1 | F12: 58 | I12: =MAX(D12:H12)-MIN(D12:H12) -> 0
B13: Figure 2 | C13: 1 | I13: 0
B14: Figure 3 | C14: 1 | I14: 0
B15: Figure 4 | C15: 1 | I15: 0
B16: Figure 5 | C16: 1 | I16: 0
B17: Figure 6 | C17: 1 | I17: 0
B18: Figure 7 | C18: 1 | I18: 0
B19: Figure 8 | C19: 1 | I19: 0
B20: Figure 9 | C20: 1 | I20: 0
B21: Figure 10 | C21: 1 | I21: 0
B22: Figure 11 | C22: 1 | I22: 0
B23: Figure 12 | C23: 1 | I23: 0
B24: Figure 13 | C24: 1 | I24: 0
B25: Figure 14 | C25: 1 | I25: 0
B26: Figure 15 | C26: 1 | I26: 0
B27: Figure 16 | C27: 1 | I27: 0
B28: Figure 17 | C28: 1 | I28: 0
B29: Figure 18 | C29: 1 | I29: 0
B30: Figure 19 | C30: 1 | I30: 0
B31: Figure 20 | C31: 1 | I31: 0
B32: Figure 21 | C32: 1 | I32: 0
B33: Figure 22 | C33: 1 | I33: 0
A34: Ensemble | B34: Ensemble 1 | C34: 1 | I34: 0
B35: Ensemble 2 | C35: 1 | I35: 0
B36: Ensemble 3 | C36: 1 | I36: 0
B37: Ensemble 4 | C37: 2 | I37: 0
B38: Ensemble 5 | C38: 2 | I38: 0
B39: Ensemble 6 | C39: 1 | I39: 0
A40: Pénalité en points
A41: Erreure(s) de tracé
A42: % Total du juge | D42: =IF(ISBLANK('Info+Engagés'!H2),"",D43/3-D41) ->  | E42: =IF(ISBLANK('Info+Engagés'!H3),"",E43/3-E41) ->  | F42: =IF(ISBLANK('Info+Engagés'!H4),"",F43/3-F41) -> 19.33333333 | G42: =IF(ISBLANK('Info+Engagés'!H5),"",G43/3-G41) ->  | H42: =IF(ISBLANK('Info+Engagés'!H6),"",H43/3-H41) ->  | I42: =MAX(D42:H42)-MIN(D42:H42) -> 0
A43: Soit en points | D43: =IF(ISBLANK('Info+Engagés'!H2),"",SUM(D12:D36,D39,D37*2,D38*2)-D40) ->  | E43: =IF(ISBLANK('Info+Engagés'!H3),"",(SUM(E12:E36,E39,E37*2,E38*2)-E40)) ->  | F43: =IF(ISBLANK('Info+Engagés'!H4),"",(SUM(F12:F36,F39,F37*2,F38*2)-F40)) -> 58 | G43: =IF(ISBLANK('Info+Engagés'!H5),"",(SUM(G12:G36,G39,G37*2,G38*2)-G40)) ->  | H43: =IF(ISBLANK('Info+Engagés'!H6),"",(SUM(H12:H36,H39,H37*2,H38*2)-H40)) -> 
A44: Total maxi par juge = 300 1 point correspond à 0,333% 1% correspond en points à : 3 Les notes sont sur 10 et correspondent à la saisie informatique par l'opérateur des protocoles joints, Le total résulte de l'addition des points attribués après application du coefficient et soustraction des points de pénalité encourus après conversion en pourcentage sont déduit les pourcentages de pénalités encourus par suite d'erreurs de tracé pour obtenir le pourcentage par juge.

Sheet Cav4
A1: ='Info+Engagés'!B3 -> Quel Lieu ? (Département ?) | D1: ='Info+Engagés'!B8 -> Amateur 3 Grand Prix (D1) | H1: ='Info+Engagés'!B2 -> Quelle Date ?
A3: N° de concours | D3: Cheval | F3: Cavalier | H3: Note d’ensemble | I3: =SUM(D34:H36,D39:H39,D37*2,E37*2,F37*2,G37*2,H37*2,D38*2,E38*2,F38*2,G38*2,H38*2) -> 0
A4: ='Info+Engagés'!B4 -> Quel N° ? | H4: Points | I4: =SUM(D43:H43) -> 57
A5: Épreuve N° | C5: ='Info+Engagés'!B5 -> Quel N° ? | D5: ='Info+Engagés'!B15 -> Cheval de Paul | F5: ='Info+Engagés'!G15 -> Paul | H5: % Final | I5: =AVERAGE(D42:H42) -> 19
A6: Piste | C6: ='Info+Engagés'!B6 -> Quelle Piste ?
A7: N° Départ BO | C7: ='Info+Engagés'!A15 -> 4 | H7: Classement | I7: =INDEX(Résultats!P:P,MATCH(C7,Résultats!A:A,0)) -> 4
A9: Imprimé le : | C9: Coéff . | D9: Juge E | E9: Juge H | F9: Juge C | G9: Juge M | H9: Juge B | I9: écart Max
A10: =TODAY() -> 2017-03-26 | D10: =IF(ISBLANK('Info+Engagés'!H2),"",('Info+Engagés'!H2)) ->  | E10: =IF(ISBLANK('Info+Engagés'!H3),"",('Info+Engagés'!H3)) ->  | F10: =IF(ISBLANK('Info+Engagés'!H4),"",('Info+Engagés'!H4)) -> Nom du juge en C | G10: =IF(ISBLANK('Info+Engagés'!H5),"",('Info+Engagés'!H5)) ->  | H10: =IF(ISBLANK('Info+Engagés'!H6),"",('Info+Engagés'!H6)) -> 
A11: =NOW() -> 42820.46886
A12: Notation figures | B12: Figure 1 | C12: 1 | F12: 57 | I12: =MAX(D12:H12)-MIN(D12:H12) -> 0
B13: Figure 2 | C13: 1 | I13: 0
B14: Figure 3 | C14: 1 | I14: 0
B15: Figure 4 | C15: 1 | I15: 0
B16: Figure 5 | C16: 1 | I16: 0
B17: Figure 6 | C17: 1 | I17: 0
B18: Figure 7 | C18: 1 | I18: 0
B19: Figure 8 | C19: 1 | I19: 0
B20: Figure 9 | C20: 1 | I20: 0
B21: Figure 10 | C21: 1 | I21: 0
B22: Figure 11 | C22: 1 | I22: 0
B23: Figure 12 | C23: 1 | I23: 0
B24: Figure 13 | C24: 1 | I24: 0
B25: Figure 14 | C25: 1 | I25: 0
B26: Figure 15 | C26: 1 | I26: 0
B27: Figure 16 | C27: 1 | I27: 0
B28: Figure 17 | C28: 1 | I28: 0
B29: Figure 18 | C29: 1 | I29: 0
B30: Figure 19 | C30: 1 | I30: 0
B31: Figure 20 | C31: 1 | I31: 0
B32: Figure 21 | C32: 1 | I32: 0
B33: Figure 22 | C33: 1 | I33: 0
A34: Ensemble | B34: Ensemble 1 | C34: 1 | I34: 0
B35: Ensemble 2 | C35: 1 | I35: 0
B36: Ensemble 3 | C36: 1 | I36: 0
B37: Ensemble 4 | C37: 2 | I37: 0
B38: Ensemble 5 | C38: 2 | I38: 0
B39: Ensemble 6 | C39: 1 | I39: 0
A40: Pénalité en points
A41: Erreure(s) de tracé
A42: % Total du juge | D42: =IF(ISBLANK('Info+Engagés'!H2),"",D43/3-D41) ->  | E42: =IF(ISBLANK('Info+Engagés'!H3),"",E43/3-E41) ->  | F42: =IF(ISBLANK('Info+Engagés'!H4),"",F43/3-F41) -> 19 | G42: =IF(ISBLANK('Info+Engagés'!H5),"",G43/3-G41) ->  | H42: =IF(ISBLANK('Info+Engagés'!H6),"",H43/3-H41) ->  | I42: =MAX(D42:H42)-MIN(D42:H42) -> 0
A43: Soit en points | D43: =IF(ISBLANK('Info+Engagés'!H2),"",SUM(D12:D36,D39,D37*2,D38*2)-D40) ->  | E43: =IF(ISBLANK('Info+Engagés'!H3),"",(SUM(E12:E36,E39,E37*2,E38*2)-E40)) ->  | F43: =IF(ISBLANK('Info+Engagés'!H4),"",(SUM(F12:F36,F39,F37*2,F38*2)-F40)) -> 57 | G43: =IF(ISBLANK('Info+Engagés'!H5),"",(SUM(G12:G36,G39,G37*2,G38*2)-G40)) ->  | H43: =IF(ISBLANK('Info+Engagés'!H6),"",(SUM(H12:H36,H39,H37*2,H38*2)-H40)) -> 
A44: Total maxi par juge = 300 1 point correspond à 0,333% 1% correspond en points à : 3 Les notes sont sur 10 et correspondent à la saisie informatique par l'opérateur des protocoles joints, Le total résulte de l'addition des points attribués après application du coefficient et soustraction des points de pénalité encourus après conversion en pourcentage sont déduit les pourcentages de pénalités encourus par suite d'erreurs de tracé pour obtenir le pourcentage par juge.

Sheet Cav5
A1: ='Info+Engagés'!B3 -> Quel Lieu ? (Département ?) | D1: ='Info+Engagés'!B8 -> Amateur 3 Grand Prix (D1) | H1: ='Info+Engagés'!B2 -> Quelle Date ?
A3: N° de concours | D3: Cheval | F3: Cavalier | H3: Note d’ensemble | I3: =SUM(D34:H36,D39:H39,D37*2,E37*2,F37*2,G37*2,H37*2,D38*2,E38*2,F38*2,G38*2,H38*2) -> 0
A4: ='Info+Engagés'!B4 -> Quel N° ? | H4: Points | I4: =SUM(D43:H43) -> 56
A5: Épreuve N° | C5: ='Info+Engagés'!B5 -> Quel N° ? | D5: ='Info+Engagés'!B16 -> Cheval 2 de Jean | F5: ='Info+Engagés'!G16 -> Jean | H5: % Final | I5: =AVERAGE(D42:H42) -> 18.66666667
A6: Piste | C6: ='Info+Engagés'!B6 -> Quelle Piste ?
A7: N° Départ BO | C7: ='Info+Engagés'!A16 -> 5 | H7: Classement | I7: =INDEX(Résultats!P:P,MATCH(C7,Résultats!A:A,0)) -> 5
A9: Imprimé le : | C9: Coéff . | D9: Juge E | E9: Juge H | F9: Juge C | G9: Juge M | H9: Juge B | I9: écart Max
A10: =TODAY() -> 2017-03-26 | D10: =IF(ISBLANK('Info+Engagés'!H2),"",('Info+Engagés'!H2)) ->  | E10: =IF(ISBLANK('Info+Engagés'!H3),"",('Info+Engagés'!H3)) ->  | F10: =IF(ISBLANK('Info+Engagés'!H4),"",('Info+Engagés'!H4)) -> Nom du juge en C | G10: =IF(ISBLANK('Info+Engagés'!H5),"",('Info+Engagés'!H5)) ->  | H10: =IF(ISBLANK('Info+Engagés'!H6),"",('Info+Engagés'!H6)) -> 
A11: =NOW() -> 42820.46886
A12: Notation figures | B12: Figure 1 | C12: 1 | F12: 56 | I12: =MAX(D12:H12)-MIN(D12:H12) -> 0
B13: Figure 2 | C13: 1 | I13: 0
B14: Figure 3 | C14: 1 | I14: 0
B15: Figure 4 | C15: 1 | I15: 0
B16: Figure 5 | C16: 1 | I16: 0
B17: Figure 6 | C17: 1 | I17: 0
B18: Figure 7 | C18: 1 | I18: 0
B19: Figure 8 | C19: 1 | I19: 0
B20: Figure 9 | C20: 1 | I20: 0
B21: Figure 10 | C21: 1 | I21: 0
B22: Figure 11 | C22: 1 | I22: 0
B23: Figure 12 | C23: 1 | I23: 0
B24: Figure 13 | C24: 1 | I24: 0
B25: Figure 14 | C25: 1 | I25: 0
B26: Figure 15 | C26: 1 | I26: 0
B27: Figure 16 | C27: 1 | I27: 0
B28: Figure 17 | C28: 1 | I28: 0
B29: Figure 18 | C29: 1 | I29: 0
B30: Figure 19 | C30: 1 | I30: 0
B31: Figure 20 | C31: 1 | I31: 0
B32: Figure 21 | C32: 1 | I32: 0
B33: Figure 22 | C33: 1 | I33: 0
A34: Ensemble | B34: Ensemble 1 | C34: 1 | I34: 0
B35: Ensemble 2 | C35: 1 | I35: 0
B36: Ensemble 3 | C36: 1 | I36: 0
B37: Ensemble 4 | C37: 2 | I37: 0
B38: Ensemble 5 | C38: 2 | I38: 0
B39: Ensemble 6 | C39: 1 | I39: 0
A40: Pénalité en points
A41: Erreure(s) de tracé
A42: % Total du juge | D42: =IF(ISBLANK('Info+Engagés'!H2),"",D43/3-D41) ->  | E42: =IF(ISBLANK('Info+Engagés'!H3),"",E43/3-E41) ->  | F42: =IF(ISBLANK('Info+Engagés'!H4),"",F43/3-F41) -> 18.66666667 | G42: =IF(ISBLANK('Info+Engagés'!H5),"",G43/3-G41) ->  | H42: =IF(ISBLANK('Info+Engagés'!H6),"",H43/3-H41) ->  | I42: =MAX(D42:H42)-MIN(D42:H42) -> 0
A43: Soit en points | D43: =IF(ISBLANK('Info+Engagés'!H2),"",SUM(D12:D36,D39,D37*2,D38*2)-D40) ->  | E43: =IF(ISBLANK('Info+Engagés'!H3),"",(SUM(E12:E36,E39,E37*2,E38*2)-E40)) ->  | F43: =IF(ISBLANK('Info+Engagés'!H4),"",(SUM(F12:F36,F39,F37*2,F38*2)-F40)) -> 56 | G43: =IF(ISBLANK('Info+Engagés'!H5),"",(SUM(G12:G36,G39,G37*2,G38*2)-G40)) ->  | H43: =IF(ISBLANK('Info+Engagés'!H6),"",(SUM(H12:H36,H39,H37*2,H38*2)-H40)) -> 
A44: Total maxi par juge = 300 1 point correspond à 0,333% 1% correspond en points à : 3 Les notes sont sur 10 et correspondent à la saisie informatique par l'opérateur des protocoles joints, Le total résulte de l'addition des points attribués après application du coefficient et soustraction des points de pénalité encourus après conversion en pourcentage sont déduit les pourcentages de pénalités encourus par suite d'erreurs de tracé pour obtenir le pourcentage par juge.

Sheet Cav6
A1: ='Info+Engagés'!B3 -> Quel Lieu ? (Département ?) | D1: ='Info+Engagés'!B8 -> Amateur 3 Grand Prix (D1) | H1: ='Info+Engagés'!B2 -> Quelle Date ?
A3: N° de concours | D3: Cheval | F3: Cavalier | H3: Note d’ensemble | I3: =SUM(D34:H36,D39:H39,D37*2,E37*2,F37*2,G37*2,H37*2,D38*2,E38*2,F38*2,G38*2,H38*2) -> 0
A4: ='Info+Engagés'!B4 -> Quel N° ? | H4: Points | I4: =SUM(D43:H43) -> 55
A5: Épreuve N° | C5: ='Info+Engagés'!B5 -> Quel N° ? | D5: ='Info+Engagés'!B17 -> Cheval de Stephane | F5: ='Info+Engagés'!G17 -> Stephane | H5: % Final | I5: =AVERAGE(D42:H42) -> 18.33333333
A6: Piste | C6: ='Info+Engagés'!B6 -> Quelle Piste ?
A7: N° Départ BO | C7: ='Info+Engagés'!A17 -> 6 | H7: Classement | I7: =INDEX(Résultats!P:P,MATCH(C7,Résultats!A:A,0)) -> 6
A9: Imprimé le : | C9: Coéff . | D9: Juge E | E9: Juge H | F9: Juge C | G9: Juge M | H9: Juge B | I9: écart Max
A10: =TODAY() -> 2017-03-26 | D10: =IF(ISBLANK('Info+Engagés'!H2),"",('Info+Engagés'!H2)) ->  | E10: =IF(ISBLANK('Info+Engagés'!H3),"",('Info+Engagés'!H3)) ->  | F10: =IF(ISBLANK('Info+Engagés'!H4),"",('Info+Engagés'!H4)) -> Nom du juge en C | G10: =IF(ISBLANK('Info+Engagés'!H5),"",('Info+Engagés'!H5)) ->  | H10: =IF(ISBLANK('Info+Engagés'!H6),"",('Info+Engagés'!H6)) -> 
A11: =NOW() -> 42820.46886
A12: Notation figures | B12: Figure 1 | C12: 1 | F12: 55 | I12: =MAX(D12:H12)-MIN(D12:H12) -> 0
B13: Figure 2 | C13: 1 | I13: 0
B14: Figure 3 | C14: 1 | I14: 0
B15: Figure 4 | C15: 1 | I15: 0
B16: Figure 5 | C16: 1 | I16: 0
B17: Figure 6 | C17: 1 | I17: 0
B18: Figure 7 | C18: 1 | I18: 0
B19: Figure 8 | C19: 1 | I19: 0
B20: Figure 9 | C20: 1 | I20: 0
B21: Figure 10 | C21: 1 | I21: 0
B22: Figure 11 | C22: 1 | I22: 0
B23: Figure 12 | C23: 1 | I23: 0
B24: Figure 13 | C24: 1 | I24: 0
B25: Figure 14 | C25: 1 | I25: 0
B26: Figure 15 | C26: 1 | I26: 0
B27: Figure 16 | C27: 1 | I27: 0
B28: Figure 17 | C28: 1 | I28: 0
B29: Figure 18 | C29: 1 | I29: 0
B30: Figure 19 | C30: 1 | I30: 0
B31: Figure 20 | C31: 1 | I31: 0
B32: Figure 21 | C32: 1 | I32: 0
B33: Figure 22 | C33: 1 | I33: 0
A34: Ensemble | B34: Ensemble 1 | C34: 1 | I34: 0
B35: Ensemble 2 | C35: 1 | I35: 0
B36: Ensemble 3 | C36: 1 | I36: 0
B37: Ensemble 4 | C37: 2 | I37: 0
B38: Ensemble 5 | C38: 2 | I38: 0
B39: Ensemble 6 | C39: 1 | I39: 0
A40: Pénalité en points
A41: Erreure(s) de tracé
A42: % Total du juge | D42: =IF(ISBLANK('Info+Engagés'!H2),"",D43/3-D41) ->  | E42: =IF(ISBLANK('Info+Engagés'!H3),"",E43/3-E41) ->  | F42: =IF(ISBLANK('Info+Engagés'!H4),"",F43/3-F41) -> 18.33333333 | G42: =IF(ISBLANK('Info+Engagés'!H5),"",G43/3-G41) ->  | H42: =IF(ISBLANK('Info+Engagés'!H6),"",H43/3-H41) ->  | I42: =MAX(D42:H42)-MIN(D42:H42) -> 0
A43: Soit en points | D43: =IF(ISBLANK('Info+Engagés'!H2),"",SUM(D12:D36,D39,D37*2,D38*2)-D40) ->  | E43: =IF(ISBLANK('Info+Engagés'!H3),"",(SUM(E12:E36,E39,E37*2,E38*2)-E40)) ->  | F43: =IF(ISBLANK('Info+Engagés'!H4),"",(SUM(F12:F36,F39,F37*2,F38*2)-F40)) -> 55 | G43: =IF(ISBLANK('Info+Engagés'!H5),"",(SUM(G12:G36,G39,G37*2,G38*2)-G40)) ->  | H43: =IF(ISBLANK('Info+Engagés'!H6),"",(SUM(H12:H36,H39,H37*2,H38*2)-H40)) -> 
A44: Total maxi par juge = 300 1 point correspond à 0,333% 1% correspond en points à : 3 Les notes sont sur 10 et correspondent à la saisie informatique par l'opérateur des protocoles joints, Le total résulte de l'addition des points attribués après application du coefficient et soustraction des points de pénalité encourus après conversion en pourcentage sont déduit les pourcentages de pénalités encourus par suite d'erreurs de tracé pour obtenir le pourcentage par juge.

Sheet Cav7
A1: ='Info+Engagés'!B3 -> Quel Lieu ? (Département ?) | D1: ='Info+Engagés'!B8 -> Amateur 3 Grand Prix (D1) | H1: ='Info+Engagés'!B2 -> Quelle Date ?
A3: N° de concours | D3: Cheval | F3: Cavalier | H3: Note d’ensemble | I3: =SUM(D34:H36,D39:H39,D37*2,E37*2,F37*2,G37*2,H37*2,D38*2,E38*2,F38*2,G38*2,H38*2) -> 0
A4: ='Info+Engagés'!B4 -> Quel N° ? | H4: Points | I4: =SUM(D43:H43) -> 54
A5: Épreuve N° | C5: ='Info+Engagés'!B5 -> Quel N° ? | D5: ='Info+Engagés'!B18 -> Cheval de Nicolas | F5: ='Info+Engagés'!G18 -> Nicolas | H5: % Final | I5: =AVERAGE(D42:H42) -> 18
A6: Piste | C6: ='Info+Engagés'!B6 -> Quelle Piste ?
A7: N° Départ BO | C7: ='Info+Engagés'!A18 -> 7 | H7: Classement | I7: =INDEX(Résultats!P:P,MATCH(C7,Résultats!A:A,0)) -> 7
A9: Imprimé le : | C9: Coéff . | D9: Juge E | E9: Juge H | F9: Juge C | G9: Juge M | H9: Juge B | I9: écart Max
A10: =TODAY() -> 2017-03-26 | D10: =IF(ISBLANK('Info+Engagés'!H2),"",('Info+Engagés'!H2)) ->  | E10: =IF(ISBLANK('Info+Engagés'!H3),"",('Info+Engagés'!H3)) ->  | F10: =IF(ISBLANK('Info+Engagés'!H4),"",('Info+Engagés'!H4)) -> Nom du juge en C | G10: =IF(ISBLANK('Info+Engagés'!H5),"",('Info+Engagés'!H5)) ->  | H10: =IF(ISBLANK('Info+Engagés'!H6),"",('Info+Engagés'!H6)) -> 
A11: =NOW() -> 42820.46886
A12: Notation figures | B12: Figure 1 | C12: 1 | F12: 54 | I12: =MAX(D12:H12)-MIN(D12:H12) -> 0
B13: Figure 2 | C13: 1 | I13: 0
B14: Figure 3 | C14: 1 | I14: 0
B15: Figure 4 | C15: 1 | I15: 0
B16: Figure 5 | C16: 1 | I16: 0
B17: Figure 6 | C17: 1 | I17: 0
B18: Figure 7 | C18: 1 | I18: 0
B19: Figure 8 | C19: 1 | I19: 0
B20: Figure 9 | C20: 1 | I20: 0
B21: Figure 10 | C21: 1 | I21: 0
B22: Figure 11 | C22: 1 | I22: 0
B23: Figure 12 | C23: 1 | I23: 0
B24: Figure 13 | C24: 1 | I24: 0
B25: Figure 14 | C25: 1 | I25: 0
B26: Figure 15 | C26: 1 | I26: 0
B27: Figure 16 | C27: 1 | I27: 0
B28: Figure 17 | C28: 1 | I28: 0
B29: Figure 18 | C29: 1 | I29: 0
B30: Figure 19 | C30: 1 | I30: 0
B31: Figure 20 | C31: 1 | I31: 0
B32: Figure 21 | C32: 1 | I32: 0
B33: Figure 22 | C33: 1 | I33: 0
A34: Ensemble | B34: Ensemble 1 | C34: 1 | I34: 0
B35: Ensemble 2 | C35: 1 | I35: 0
B36: Ensemble 3 | C36: 1 | I36: 0
B37: Ensemble 4 | C37: 2 | I37: 0
B38: Ensemble 5 | C38: 2 | I38: 0
B39: Ensemble 6 | C39: 1 | I39: 0
A40: Pénalité en points
A41: Erreure(s) de tracé
A42: % Total du juge | D42: =IF(ISBLANK('Info+Engagés'!H2),"",D43/3-D41) ->  | E42: =IF(ISBLANK('Info+Engagés'!H3),"",E43/3-E41) ->  | F42: =IF(ISBLANK('Info+Engagés'!H4),"",F43/3-F41) -> 18 | G42: =IF(ISBLANK('Info+Engagés'!H5),"",G43/3-G41) ->  | H42: =IF(ISBLANK('Info+Engagés'!H6),"",H43/3-H41) ->  | I42: =MAX(D42:H42)-MIN(D42:H42) -> 0
A43: Soit en points | D43: =IF(ISBLANK('Info+Engagés'!H2),"",SUM(D12:D36,D39,D37*2,D38*2)-D40) ->  | E43: =IF(ISBLANK('Info+Engagés'!H3),"",(SUM(E12:E36,E39,E37*2,E38*2)-E40)) ->  | F43: =IF(ISBLANK('Info+Engagés'!H4),"",(SUM(F12:F36,F39,F37*2,F38*2)-F40)) -> 54 | G43: =IF(ISBLANK('Info+Engagés'!H5),"",(SUM(G12:G36,G39,G37*2,G38*2)-G40)) ->  | H43: =IF(ISBLANK('Info+Engagés'!H6),"",(SUM(H12:H36,H39,H37*2,H38*2)-H40)) -> 
A44: Total maxi par juge = 300 1 point correspond à 0,333% 1% correspond en points à : 3 Les notes sont sur 10 et correspondent à la saisie informatique par l'opérateur des protocoles joints, Le total résulte de l'addition des points attribués après application du coefficient et soustraction des points de pénalité encourus après conversion en pourcentage sont déduit les pourcentages de pénalités encourus par suite d'erreurs de tracé pour obtenir le pourcentage par juge.

Sheet Cav8
A1: ='Info+Engagés'!B3 -> Quel Lieu ? (Département ?) | D1: ='Info+Engagés'!B8 -> Amateur 3 Grand Prix (D1) | H1: ='Info+Engagés'!B2 -> Quelle Date ?
A3: N° de concours | D3: Cheval | F3: Cavalier | H3: Note d’ensemble | I3: =SUM(D34:H36,D39:H39,D37*2,E37*2,F37*2,G37*2,H37*2,D38*2,E38*2,F38*2,G38*2,H38*2) -> 0
A4: ='Info+Engagés'!B4 -> Quel N° ? | H4: Points | I4: =SUM(D43:H43) -> 53
A5: Épreuve N° | C5: ='Info+Engagés'!B5 -> Quel N° ? | D5: ='Info+Engagés'!B19 -> Cheval de Nathalie | F5: ='Info+Engagés'!G19 -> Nathalie | H5: % Final | I5: =AVERAGE(D42:H42) -> 17.66666667
A6: Piste | C6: ='Info+Engagés'!B6 -> Quelle Piste ?
A7: N° Départ BO | C7: ='Info+Engagés'!A19 -> 8 | H7: Classement | I7: =INDEX(Résultats!P:P,MATCH(C7,Résultats!A:A,0)) -> 8
A9: Imprimé le : | C9: Coéff . | D9: Juge E | E9: Juge H | F9: Juge C | G9: Juge M | H9: Juge B | I9: écart Max
A10: =TODAY() -> 2017-03-26 | D10: =IF(ISBLANK('Info+Engagés'!H2),"",('Info+Engagés'!H2)) ->  | E10: =IF(ISBLANK('Info+Engagés'!H3),"",('Info+Engagés'!H3)) ->  | F10: =IF(ISBLANK('Info+Engagés'!H4),"",('Info+Engagés'!H4)) -> Nom du juge en C | G10: =IF(ISBLANK('Info+Engagés'!H5),"",('Info+Engagés'!H5)) ->  | H10: =IF(ISBLANK('Info+Engagés'!H6),"",('Info+Engagés'!H6)) -> 
A11: =NOW() -> 42820.46886
A12: Notation figures | B12: Figure 1 | C12: 1 | F12: 53 | I12: =MAX(D12:H12)-MIN(D12:H12) -> 0
B13: Figure 2 | C13: 1 | I13: 0
B14: Figure 3 | C14: 1 | I14: 0
B15: Figure 4 | C15: 1 | I15: 0
B16: Figure 5 | C16: 1 | I16: 0
B17: Figure 6 | C17: 1 | I17: 0
B18: Figure 7 | C18: 1 | I18: 0
B19: Figure 8 | C19: 1 | I19: 0
B20: Figure 9 | C20: 1 | I20: 0
B21: Figure 10 | C21: 1 | I21: 0
B22: Figure 11 | C22: 1 | I22: 0
B23: Figure 12 | C23: 1 | I23: 0
B24: Figure 13 | C24: 1 | I24: 0
B25: Figure 14 | C25: 1 | I25: 0
B26: Figure 15 | C26: 1 | I26: 0
B27: Figure 16 | C27: 1 | I27: 0
B28: Figure 17 | C28: 1 | I28: 0
B29: Figure 18 | C29: 1 | I29: 0
B30: Figure 19 | C30: 1 | I30: 0
B31: Figure 20 | C31: 1 | I31: 0
B32: Figure 21 | C32: 1 | I32: 0
B33: Figure 22 | C33: 1 | I33: 0
A34: Ensemble | B34: Ensemble 1 | C34: 1 | I34: 0
B35: Ensemble 2 | C35: 1 | I35: 0
B36: Ensemble 3 | C36: 1 | I36: 0
B37: Ensemble 4 | C37: 2 | I37: 0
B38: Ensemble 5 | C38: 2 | I38: 0
B39: Ensemble 6 | C39: 1 | I39: 0
A40: Pénalité en points
A41: Erreure(s) de tracé
A42: % Total du juge | D42: =IF(ISBLANK('Info+Engagés'!H2),"",D43/3-D41) ->  | E42: =IF(ISBLANK('Info+Engagés'!H3),"",E43/3-E41) ->  | F42: =IF(ISBLANK('Info+Engagés'!H4),"",F43/3-F41) -> 17.66666667 | G42: =IF(ISBLANK('Info+Engagés'!H5),"",G43/3-G41) ->  | H42: =IF(ISBLANK('Info+Engagés'!H6),"",H43/3-H41) ->  | I42: =MAX(D42:H42)-MIN(D42:H42) -> 0
A43: Soit en points | D43: =IF(ISBLANK('Info+Engagés'!H2),"",SUM(D12:D36,D39,D37*2,D38*2)-D40) ->  | E43: =IF(ISBLANK('Info+Engagés'!H3),"",(SUM(E12:E36,E39,E37*2,E38*2)-E40)) ->  | F43: =IF(ISBLANK('Info+Engagés'!H4),"",(SUM(F12:F36,F39,F37*2,F38*2)-F40)) -> 53 | G43: =IF(ISBLANK('Info+Engagés'!H5),"",(SUM(G12:G36,G39,G37*2,G38*2)-G40)) ->  | H43: =IF(ISBLANK('Info+Engagés'!H6),"",(SUM(H12:H36,H39,H37*2,H38*2)-H40)) -> 
A44: Total maxi par juge = 300 1 point correspond à 0,333% 1% correspond en points à : 3 Les notes sont sur 10 et correspondent à la saisie informatique par l'opérateur des protocoles joints, Le total résulte de l'addition des points attribués après application du coefficient et soustraction des points de pénalité encourus après conversion en pourcentage sont déduit les pourcentages de pénalités encourus par suite d'erreurs de tracé pour obtenir le pourcentage par juge.

Sheet Cav9
A1: ='Info+Engagés'!B3 -> Quel Lieu ? (Département ?) | D1: ='Info+Engagés'!B8 -> Amateur 3 Grand Prix (D1) | H1: ='Info+Engagés'!B2 -> Quelle Date ?
A3: N° de concours | D3: Cheval | F3: Cavalier | H3: Note d’ensemble | I3: =SUM(D34:H36,D39:H39,D37*2,E37*2,F37*2,G37*2,H37*2,D38*2,E38*2,F38*2,G38*2,H38*2) -> 0
A4: ='Info+Engagés'!B4 -> Quel N° ? | H4: Points | I4: =SUM(D43:H43) -> 52
A5: Épreuve N° | C5: ='Info+Engagés'!B5 -> Quel N° ? | D5: ='Info+Engagés'!B20 -> Cheval de Laura | F5: ='Info+Engagés'!G20 -> Laura | H5: % Final | I5: =AVERAGE(D42:H42) -> 17.33333333
A6: Piste | C6: ='Info+Engagés'!B6 -> Quelle Piste ?
A7: N° Départ BO | C7: ='Info+Engagés'!A20 -> 9 | H7: Classement | I7: =INDEX(Résultats!P:P,MATCH(C7,Résultats!A:A,0)) -> 9
A9: Imprimé le : | C9: Coéff . | D9: Juge E | E9: Juge H | F9: Juge C | G9: Juge M | H9: Juge B | I9: écart Max
A10: =TODAY() -> 2017-03-26 | D10: =IF(ISBLANK('Info+Engagés'!H2),"",('Info+Engagés'!H2)) ->  | E10: =IF(ISBLANK('Info+Engagés'!H3),"",('Info+Engagés'!H3)) ->  | F10: =IF(ISBLANK('Info+Engagés'!H4),"",('Info+Engagés'!H4)) -> Nom du juge en C | G10: =IF(ISBLANK('Info+Engagés'!H5),"",('Info+Engagés'!H5)) ->  | H10: =IF(ISBLANK('Info+Engagés'!H6),"",('Info+Engagés'!H6)) -> 
A11: =NOW() -> 42820.46886
A12: Notation figures | B12: Figure 1 | C12: 1 | F12: 52 | I12: =MAX(D12:H12)-MIN(D12:H12) -> 0
B13: Figure 2 | C13: 1 | I13: 0
B14: Figure 3 | C14: 1 | I14: 0
B15: Figure 4 | C15: 1 | I15: 0
B16: Figure 5 | C16: 1 | I16: 0
B17: Figure 6 | C17: 1 | I17: 0
B18: Figure 7 | C18: 1 | I18: 0
B19: Figure 8 | C19: 1 | I19: 0
B20: Figure 9 | C20: 1 | I20: 0
B21: Figure 10 | C21: 1 | I21: 0
B22: Figure 11 | C22: 1 | I22: 0
B23: Figure 12 | C23: 1 | I23: 0
B24: Figure 13 | C24: 1 | I24: 0
B25: Figure 14 | C25: 1 | I25: 0
B26: Figure 15 | C26: 1 | I26: 0
B27: Figure 16 | C27: 1 | I27: 0
B28: Figure 17 | C28: 1 | I28: 0
B29: Figure 18 | C29: 1 | I29: 0
B30: Figure 19 | C30: 1 | I30: 0
B31: Figure 20 | C31: 1 | I31: 0
B32: Figure 21 | C32: 1 | I32: 0
B33: Figure 22 | C33: 1 | I33: 0
A34: Ensemble | B34: Ensemble 1 | C34: 1 | I34: 0
B35: Ensemble 2 | C35: 1 | I35: 0
B36: Ensemble 3 | C36: 1 | I36: 0
B37: Ensemble 4 | C37: 2 | I37: 0
B38: Ensemble 5 | C38: 2 | I38: 0
B39: Ensemble 6 | C39: 1 | I39: 0
A40: Pénalité en points
A41: Erreure(s) de tracé
A42: % Total du juge | D42: =IF(ISBLANK('Info+Engagés'!H2),"",D43/3-D41) ->  | E42: =IF(ISBLANK('Info+Engagés'!H3),"",E43/3-E41) ->  | F42: =IF(ISBLANK('Info+Engagés'!H4),"",F43/3-F41) -> 17.33333333 | G42: =IF(ISBLANK('Info+Engagés'!H5),"",G43/3-G41) ->  | H42: =IF(ISBLANK('Info+Engagés'!H6),"",H43/3-H41) ->  | I42: =MAX(D42:H42)-MIN(D42:H42) -> 0
A43: Soit en points | D43: =IF(ISBLANK('Info+Engagés'!H2),"",SUM(D12:D36,D39,D37*2,D38*2)-D40) ->  | E43: =IF(ISBLANK('Info+Engagés'!H3),"",(SUM(E12:E36,E39,E37*2,E38*2)-E40)) ->  | F43: =IF(ISBLANK('Info+Engagés'!H4),"",(SUM(F12:F36,F39,F37*2,F38*2)-F40)) -> 52 | G43: =IF(ISBLANK('Info+Engagés'!H5),"",(SUM(G12:G36,G39,G37*2,G38*2)-G40)) ->  | H43: =IF(ISBLANK('Info+Engagés'!H6),"",(SUM(H12:H36,H39,H37*2,H38*2)-H40)) -> 
A44: Total maxi par juge = 300 1 point correspond à 0,333% 1% correspond en points à : 3 Les notes sont sur 10 et correspondent à la saisie informatique par l'opérateur des protocoles joints, Le total résulte de l'addition des points attribués après application du coefficient et soustraction des points de pénalité encourus après conversion en pourcentage sont déduit les pourcentages de pénalités encourus par suite d'erreurs de tracé pour obtenir le pourcentage par juge.

Sheet Cav10
A1: ='Info+Engagés'!B3 -> Quel Lieu ? (Département ?) | D1: ='Info+Engagés'!B8 -> Amateur 3 Grand Prix (D1) | H1: ='Info+Engagés'!B2 -> Quelle Date ?
A3: N° de concours | D3: Cheval | F3: Cavalier | H3: Note d’ensemble | I3: =SUM(D34:H36,D39:H39,D37*2,E37*2,F37*2,G37*2,H37*2,D38*2,E38*2,F38*2,G38*2,H38*2) -> 0
A4: ='Info+Engagés'!B4 -> Quel N° ? | H4: Points | I4: =SUM(D43:H43) -> 51
A5: Épreuve N° | C5: ='Info+Engagés'!B5 -> Quel N° ? | D5: ='Info+Engagés'!B21 -> Cheval de Coralie | F5: ='Info+Engagés'!G21 -> Coralie | H5: % Final | I5: =AVERAGE(D42:H42) -> 17
A6: Piste | C6: ='Info+Engagés'!B6 -> Quelle Piste ?
A7: N° Départ BO | C7: ='Info+Engagés'!A21 -> 10 | H7: Classement | I7: =INDEX(Résultats!P:P,MATCH(C7,Résultats!A:A,0)) -> 10
A9: Imprimé le : | C9: Coéff . | D9: Juge E | E9: Juge H | F9: Juge C | G9: Juge M | H9: Juge B | I9: écart Max
A10: =TODAY() -> 2017-03-26 | D10: =IF(ISBLANK('Info+Engagés'!H2),"",('Info+Engagés'!H2)) ->  | E10: =IF(ISBLANK('Info+Engagés'!H3),"",('Info+Engagés'!H3)) ->  | F10: =IF(ISBLANK('Info+Engagés'!H4),"",('Info+Engagés'!H4)) -> Nom du juge en C | G10: =IF(ISBLANK('Info+Engagés'!H5),"",('Info+Engagés'!H5)) ->  | H10: =IF(ISBLANK('Info+Engagés'!H6),"",('Info+Engagés'!H6)) -> 
A11: =NOW() -> 42820.46886
A12: Notation figures | B12: Figure 1 | C12: 1 | F12: 51 | I12: =MAX(D12:H12)-MIN(D12:H12) -> 0
B13: Figure 2 | C13: 1 | I13: 0
B14: Figure 3 | C14: 1 | I14: 0
B15: Figure 4 | C15: 1 | I15: 0
B16: Figure 5 | C16: 1 | I16: 0
B17: Figure 6 | C17: 1 | I17: 0
B18: Figure 7 | C18: 1 | I18: 0
B19: Figure 8 | C19: 1 | I19: 0
B20: Figure 9 | C20: 1 | I20: 0
B21: Figure 10 | C21: 1 | I21: 0
B22: Figure 11 | C22: 1 | I22: 0
B23: Figure 12 | C23: 1 | I23: 0
B24: Figure 13 | C24: 1 | I24: 0
B25: Figure 14 | C25: 1 | I25: 0
B26: Figure 15 | C26: 1 | I26: 0
B27: Figure 16 | C27: 1 | I27: 0
B28: Figure 17 | C28: 1 | I28: 0
B29: Figure 18 | C29: 1 | I29: 0
B30: Figure 19 | C30: 1 | I30: 0
B31: Figure 20 | C31: 1 | I31: 0
B32: Figure 21 | C32: 1 | I32: 0
B33: Figure 22 | C33: 1 | I33: 0
A34: Ensemble | B34: Ensemble 1 | C34: 1 | I34: 0
B35: Ensemble 2 | C35: 1 | I35: 0
B36: Ensemble 3 | C36: 1 | I36: 0
B37: Ensemble 4 | C37: 2 | I37: 0
B38: Ensemble 5 | C38: 2 | I38: 0
B39: Ensemble 6 | C39: 1 | I39: 0
A40: Pénalité en points
A41: Erreure(s) de tracé
A42: % Total du juge | D42: =IF(ISBLANK('Info+Engagés'!H2),"",D43/3-D41) ->  | E42: =IF(ISBLANK('Info+Engagés'!H3),"",E43/3-E41) ->  | F42: =IF(ISBLANK('Info+Engagés'!H4),"",F43/3-F41) -> 17 | G42: =IF(ISBLANK('Info+Engagés'!H5),"",G43/3-G41) ->  | H42: =IF(ISBLANK('Info+Engagés'!H6),"",H43/3-H41) ->  | I42: =MAX(D42:H42)-MIN(D42:H42) -> 0
A43: Soit en points | D43: =IF(ISBLANK('Info+Engagés'!H2),"",SUM(D12:D36,D39,D37*2,D38*2)-D40) ->  | E43: =IF(ISBLANK('Info+Engagés'!H3),"",(SUM(E12:E36,E39,E37*2,E38*2)-E40)) ->  | F43: =IF(ISBLANK('Info+Engagés'!H4),"",(SUM(F12:F36,F39,F37*2,F38*2)-F40)) -> 51 | G43: =IF(ISBLANK('Info+Engagés'!H5),"",(SUM(G12:G36,G39,G37*2,G38*2)-G40)) ->  | H43: =IF(ISBLANK('Info+Engagés'!H6),"",(SUM(H12:H36,H39,H37*2,H38*2)-H40)) -> 
A44: Total maxi par juge = 300 1 point correspond à 0,333% 1% correspond en points à : 3 Les notes sont sur 10 et correspondent à la saisie informatique par l'opérateur des protocoles joints, Le total résulte de l'addition des points attribués après application du coefficient et soustraction des points de pénalité encourus après conversion en pourcentage sont déduit les pourcentages de pénalités encourus par suite d'erreurs de tracé pour obtenir le pourcentage par juge.

Sheet Cav11
A1: ='Info+Engagés'!B3 -> Quel Lieu ? (Département ?) | D1: ='Info+Engagés'!B8 -> Amateur 3 Grand Prix (D1) | H1: ='Info+Engagés'!B2 -> Quelle Date ?
A3: N° de concours | D3: Cheval | F3: Cavalier | H3: Note d’ensemble | I3: =SUM(D34:H36,D39:H39,D37*2,E37*2,F37*2,G37*2,H37*2,D38*2,E38*2,F38*2,G38*2,H38*2) -> 0
A4: ='Info+Engagés'!B4 -> Quel N° ? | H4: Points | I4: =SUM(D43:H43) -> 50
A5: Épreuve N° | C5: ='Info+Engagés'!B5 -> Quel N° ? | D5: ='Info+Engagés'!B22 -> Cheval de Marie Lou | F5: ='Info+Engagés'!G22 -> Marie Lou | H5: % Final | I5: =AVERAGE(D42:H42) -> 16.66666667
A6: Piste | C6: ='Info+Engagés'!B6 -> Quelle Piste ?
A7: N° Départ BO | C7: ='Info+Engagés'!A22 -> 11 | H7: Classement | I7: =INDEX(Résultats!P:P,MATCH(C7,Résultats!A:A,0)) -> 11
A9: Imprimé le : | C9: Coéff . | D9: Juge E | E9: Juge H | F9: Juge C | G9: Juge M | H9: Juge B | I9: écart Max
A10: =TODAY() -> 2017-03-26 | D10: =IF(ISBLANK('Info+Engagés'!H2),"",('Info+Engagés'!H2)) ->  | E10: =IF(ISBLANK('Info+Engagés'!H3),"",('Info+Engagés'!H3)) ->  | F10: =IF(ISBLANK('Info+Engagés'!H4),"",('Info+Engagés'!H4)) -> Nom du juge en C | G10: =IF(ISBLANK('Info+Engagés'!H5),"",('Info+Engagés'!H5)) ->  | H10: =IF(ISBLANK('Info+Engagés'!H6),"",('Info+Engagés'!H6)) -> 
A11: =NOW() -> 42820.46886
A12: Notation figures | B12: Figure 1 | C12: 1 | F12: 50 | I12: =MAX(D12:H12)-MIN(D12:H12) -> 0
B13: Figure 2 | C13: 1 | I13: 0
B14: Figure 3 | C14: 1 | I14: 0
B15: Figure 4 | C15: 1 | I15: 0
B16: Figure 5 | C16: 1 | I16: 0
B17: Figure 6 | C17: 1 | I17: 0
B18: Figure 7 | C18: 1 | I18: 0
B19: Figure 8 | C19: 1 | I19: 0
B20: Figure 9 | C20: 1 | I20: 0
B21: Figure 10 | C21: 1 | I21: 0
B22: Figure 11 | C22: 1 | I22: 0
B23: Figure 12 | C23: 1 | I23: 0
B24: Figure 13 | C24: 1 | I24: 0
B25: Figure 14 | C25: 1 | I25: 0
B26: Figure 15 | C26: 1 | I26: 0
B27: Figure 16 | C27: 1 | I27: 0
B28: Figure 17 | C28: 1 | I28: 0
B29: Figure 18 | C29: 1 | I29: 0
B30: Figure 19 | C30: 1 | I30: 0
B31: Figure 20 | C31: 1 | I31: 0
B32: Figure 21 | C32: 1 | I32: 0
B33: Figure 22 | C33: 1 | I33: 0
A34: Ensemble | B34: Ensemble 1 | C34: 1 | I34: 0
B35: Ensemble 2 | C35: 1 | I35: 0
B36: Ensemble 3 | C36: 1 | I36: 0
B37: Ensemble 4 | C37: 2 | I37: 0
B38: Ensemble 5 | C38: 2 | I38: 0
B39: Ensemble 6 | C39: 1 | I39: 0
A40: Pénalité en points
A41: Erreure(s) de tracé
A42: % Total du juge | D42: =IF(ISBLANK('Info+Engagés'!H2),"",D43/3-D41) ->  | E42: =IF(ISBLANK('Info+Engagés'!H3),"",E43/3-E41) ->  | F42: =IF(ISBLANK('Info+Engagés'!H4),"",F43/3-F41) -> 16.66666667 | G42: =IF(ISBLANK('Info+Engagés'!H5),"",G43/3-G41) ->  | H42: =IF(ISBLANK('Info+Engagés'!H6),"",H43/3-H41) ->  | I42: =MAX(D42:H42)-MIN(D42:H42) -> 0
A43: Soit en points | D43: =IF(ISBLANK('Info+Engagés'!H2),"",SUM(D12:D36,D39,D37*2,D38*2)-D40) ->  | E43: =IF(ISBLANK('Info+Engagés'!H3),"",(SUM(E12:E36,E39,E37*2,E38*2)-E40)) ->  | F43: =IF(ISBLANK('Info+Engagés'!H4),"",(SUM(F12:F36,F39,F37*2,F38*2)-F40)) -> 50 | G43: =IF(ISBLANK('Info+Engagés'!H5),"",(SUM(G12:G36,G39,G37*2,G38*2)-G40)) ->  | H43: =IF(ISBLANK('Info+Engagés'!H6),"",(SUM(H12:H36,H39,H37*2,H38*2)-H40)) -> 
A44: Total maxi par juge = 300 1 point correspond à 0,333% 1% correspond en points à : 3 Les notes sont sur 10 et correspondent à la saisie informatique par l'opérateur des protocoles joints, Le total résulte de l'addition des points attribués après application du coefficient et soustraction des points de pénalité encourus après conversion en pourcentage sont déduit les pourcentages de pénalités encourus par suite d'erreurs de tracé pour obtenir le pourcentage par juge.

Sheet Cav12
A1: ='Info+Engagés'!B3 -> Quel Lieu ? (Département ?) | D1: ='Info+Engagés'!B8 -> Amateur 3 Grand Prix (D1) | H1: ='Info+Engagés'!B2 -> Quelle Date ?
A3: N° de concours | D3: Cheval | F3: Cavalier | H3: Note d’ensemble | I3: =SUM(D34:H36,D39:H39,D37*2,E37*2,F37*2,G37*2,H37*2,D38*2,E38*2,F38*2,G38*2,H38*2) -> 0
A4: ='Info+Engagés'!B4 -> Quel N° ? | H4: Points | I4: =SUM(D43:H43) -> 49
A5: Épreuve N° | C5: ='Info+Engagés'!B5 -> Quel N° ? | D5: ='Info+Engagés'!B23 -> Cheval de Alysa | F5: ='Info+Engagés'!G23 -> Alysa | H5: % Final | I5: =AVERAGE(D42:H42) -> 16.33333333
A6: Piste | C6: ='Info+Engagés'!B6 -> Quelle Piste ?
A7: N° Départ BO | C7: ='Info+Engagés'!A23 -> 12 | H7: Classement | I7: =INDEX(Résultats!P:P,MATCH(C7,Résultats!A:A,0)) -> 12
A9: Imprimé le : | C9: Coéff . | D9: Juge E | E9: Juge H | F9: Juge C | G9: Juge M | H9: Juge B | I9: écart Max
A10: =TODAY() -> 2017-03-26 | D10: =IF(ISBLANK('Info+Engagés'!H2),"",('Info+Engagés'!H2)) ->  | E10: =IF(ISBLANK('Info+Engagés'!H3),"",('Info+Engagés'!H3)) ->  | F10: =IF(ISBLANK('Info+Engagés'!H4),"",('Info+Engagés'!H4)) -> Nom du juge en C | G10: =IF(ISBLANK('Info+Engagés'!H5),"",('Info+Engagés'!H5)) ->  | H10: =IF(ISBLANK('Info+Engagés'!H6),"",('Info+Engagés'!H6)) -> 
A11: =NOW() -> 42820.46886
A12: Notation figures | B12: Figure 1 | C12: 1 | F12: 49 | I12: =MAX(D12:H12)-MIN(D12:H12) -> 0
B13: Figure 2 | C13: 1 | I13: 0
B14: Figure 3 | C14: 1 | I14: 0
B15: Figure 4 | C15: 1 | I15: 0
B16: Figure 5 | C16: 1 | I16: 0
B17: Figure 6 | C17: 1 | I17: 0
B18: Figure 7 | C18: 1 | I18: 0
B19: Figure 8 | C19: 1 | I19: 0
B20: Figure 9 | C20: 1 | I20: 0
B21: Figure 10 | C21: 1 | I21: 0
B22: Figure 11 | C22: 1 | I22: 0
B23: Figure 12 | C23: 1 | I23: 0
B24: Figure 13 | C24: 1 | I24: 0
B25: Figure 14 | C25: 1 | I25: 0
B26: Figure 15 | C26: 1 | I26: 0
B27: Figure 16 | C27: 1 | I27: 0
B28: Figure 17 | C28: 1 | I28: 0
B29: Figure 18 | C29: 1 | I29: 0
B30: Figure 19 | C30: 1 | I30: 0
B31: Figure 20 | C31: 1 | I31: 0
B32: Figure 21 | C32: 1 | I32: 0
B33: Figure 22 | C33: 1 | I33: 0
A34: Ensemble | B34: Ensemble 1 | C34: 1 | I34: 0
B35: Ensemble 2 | C35: 1 | I35: 0
B36: Ensemble 3 | C36: 1 | I36: 0
B37: Ensemble 4 | C37: 2 | I37: 0
B38: Ensemble 5 | C38: 2 | I38: 0
B39: Ensemble 6 | C39: 1 | I39: 0
A40: Pénalité en points
A41: Erreure(s) de tracé
A42: % Total du juge | D42: =IF(ISBLANK('Info+Engagés'!H2),"",D43/3-D41) ->  | E42: =IF(ISBLANK('Info+Engagés'!H3),"",E43/3-E41) ->  | F42: =IF(ISBLANK('Info+Engagés'!H4),"",F43/3-F41) -> 16.33333333 | G42: =IF(ISBLANK('Info+Engagés'!H5),"",G43/3-G41) ->  | H42: =IF(ISBLANK('Info+Engagés'!H6),"",H43/3-H41) ->  | I42: =MAX(D42:H42)-MIN(D42:H42) -> 0
A43: Soit en points | D43: =IF(ISBLANK('Info+Engagés'!H2),"",SUM(D12:D36,D39,D37*2,D38*2)-D40) ->  | E43: =IF(ISBLANK('Info+Engagés'!H3),"",(SUM(E12:E36,E39,E37*2,E38*2)-E40)) ->  | F43: =IF(ISBLANK('Info+Engagés'!H4),"",(SUM(F12:F36,F39,F37*2,F38*2)-F40)) -> 49 | G43: =IF(ISBLANK('Info+Engagés'!H5),"",(SUM(G12:G36,G39,G37*2,G38*2)-G40)) ->  | H43: =IF(ISBLANK('Info+Engagés'!H6),"",(SUM(H12:H36,H39,H37*2,H38*2)-H40)) -> 
A44: Total maxi par juge = 300 1 point correspond à 0,333% 1% correspond en points à : 3 Les notes sont sur 10 et correspondent à la saisie informatique par l'opérateur des protocoles joints, Le total résulte de l'addition des points attribués après application du coefficient et soustraction des points de pénalité encourus après conversion en pourcentage sont déduit les pourcentages de pénalités encourus par suite d'erreurs de tracé pour obtenir le pourcentage par juge.

Sheet Cav13
A1: ='Info+Engagés'!B3 -> Quel Lieu ? (Département ?) | D1: ='Info+Engagés'!B8 -> Amateur 3 Grand Prix (D1) | H1: ='Info+Engagés'!B2 -> Quelle Date ?
A3: N° de concours | D3: Cheval | F3: Cavalier | H3: Note d’ensemble | I3: =SUM(D34:H36,D39:H39,D37*2,E37*2,F37*2,G37*2,H37*2,D38*2,E38*2,F38*2,G38*2,H38*2) -> 0
A4: ='Info+Engagés'!B4 -> Quel N° ? | H4: Points | I4: =SUM(D43:H43) -> 48
A5: Épreuve N° | C5: ='Info+Engagés'!B5 -> Quel N° ? | D5: ='Info+Engagés'!B24 -> Cheval de Rachida | F5: ='Info+Engagés'!G24 -> Rachida | H5: % Final | I5: =AVERAGE(D42:H42) -> 16
A6: Piste | C6: ='Info+Engagés'!B6 -> Quelle Piste ?
A7: N° Départ BO | C7: ='Info+Engagés'!A24 -> 13 | H7: Classement | I7: =INDEX(Résultats!P:P,MATCH(C7,Résultats!A:A,0)) -> 13
A9: Imprimé le : | C9: Coéff . | D9: Juge E | E9: Juge H | F9: Juge C | G9: Juge M | H9: Juge B | I9: écart Max
A10: =TODAY() -> 2017-03-26 | D10: =IF(ISBLANK('Info+Engagés'!H2),"",('Info+Engagés'!H2)) ->  | E10: =IF(ISBLANK('Info+Engagés'!H3),"",('Info+Engagés'!H3)) ->  | F10: =IF(ISBLANK('Info+Engagés'!H4),"",('Info+Engagés'!H4)) -> Nom du juge en C | G10: =IF(ISBLANK('Info+Engagés'!H5),"",('Info+Engagés'!H5)) ->  | H10: =IF(ISBLANK('Info+Engagés'!H6),"",('Info+Engagés'!H6)) -> 
A11: =NOW() -> 42820.46886
A12: Notation figures | B12: Figure 1 | C12: 1 | F12: 48 | I12: =MAX(D12:H12)-MIN(D12:H12) -> 0
B13: Figure 2 | C13: 1 | I13: 0
B14: Figure 3 | C14: 1 | I14: 0
B15: Figure 4 | C15: 1 | I15: 0
B16: Figure 5 | C16: 1 | I16: 0
B17: Figure 6 | C17: 1 | I17: 0
B18: Figure 7 | C18: 1 | I18: 0
B19: Figure 8 | C19: 1 | I19: 0
B20: Figure 9 | C20: 1 | I20: 0
B21: Figure 10 | C21: 1 | I21: 0
B22: Figure 11 | C22: 1 | I22: 0
B23: Figure 12 | C23: 1 | I23: 0
B24: Figure 13 | C24: 1 | I24: 0
B25: Figure 14 | C25: 1 | I25: 0
B26: Figure 15 | C26: 1 | I26: 0
B27: Figure 16 | C27: 1 | I27: 0
B28: Figure 17 | C28: 1 | I28: 0
B29: Figure 18 | C29: 1 | I29: 0
B30: Figure 19 | C30: 1 | I30: 0
B31: Figure 20 | C31: 1 | I31: 0
B32: Figure 21 | C32: 1 | I32: 0
B33: Figure 22 | C33: 1 | I33: 0
A34: Ensemble | B34: Ensemble 1 | C34: 1 | I34: 0
B35: Ensemble 2 | C35: 1 | I35: 0
B36: Ensemble 3 | C36: 1 | I36: 0
B37: Ensemble 4 | C37: 2 | I37: 0
B38: Ensemble 5 | C38: 2 | I38: 0
B39: Ensemble 6 | C39: 1 | I39: 0
A40: Pénalité en points
A41: Erreure(s) de tracé
A42: % Total du juge | D42: =IF(ISBLANK('Info+Engagés'!H2),"",D43/3-D41) ->  | E42: =IF(ISBLANK('Info+Engagés'!H3),"",E43/3-E41) ->  | F42: =IF(ISBLANK('Info+Engagés'!H4),"",F43/3-F41) -> 16 | G42: =IF(ISBLANK('Info+Engagés'!H5),"",G43/3-G41) ->  | H42: =IF(ISBLANK('Info+Engagés'!H6),"",H43/3-H41) ->  | I42: =MAX(D42:H42)-MIN(D42:H42) -> 0
A43: Soit en points | D43: =IF(ISBLANK('Info+Engagés'!H2),"",SUM(D12:D36,D39,D37*2,D38*2)-D40) ->  | E43: =IF(ISBLANK('Info+Engagés'!H3),"",(SUM(E12:E36,E39,E37*2,E38*2)-E40)) ->  | F43: =IF(ISBLANK('Info+Engagés'!H4),"",(SUM(F12:F36,F39,F37*2,F38*2)-F40)) -> 48 | G43: =IF(ISBLANK('Info+Engagés'!H5),"",(SUM(G12:G36,G39,G37*2,G38*2)-G40)) ->  | H43: =IF(ISBLANK('Info+Engagés'!H6),"",(SUM(H12:H36,H39,H37*2,H38*2)-H40)) -> 
A44: Total maxi par juge = 300 1 point correspond à 0,333% 1% correspond en points à : 3 Les notes sont sur 10 et correspondent à la saisie informatique par l'opérateur des protocoles joints, Le total résulte de l'addition des points attribués après application du coefficient et soustraction des points de pénalité encourus après conversion en pourcentage sont déduit les pourcentages de pénalités encourus par suite d'erreurs de tracé pour obtenir le pourcentage par juge.

Sheet Cav14
A1: ='Info+Engagés'!B3 -> Quel Lieu ? (Département ?) | D1: ='Info+Engagés'!B8 -> Amateur 3 Grand Prix (D1) | H1: ='Info+Engagés'!B2 -> Quelle Date ?
A3: N° de concours | D3: Cheval | F3: Cavalier | H3: Note d’ensemble | I3: =SUM(D34:H36,D39:H39,D37*2,E37*2,F37*2,G37*2,H37*2,D38*2,E38*2,F38*2,G38*2,H38*2) -> 0
A4: ='Info+Engagés'!B4 -> Quel N° ? | H4: Points | I4: =SUM(D43:H43) -> 47
A5: Épreuve N° | C5: ='Info+Engagés'!B5 -> Quel N° ? | D5: ='Info+Engagés'!B25 -> Cheval de Tom | F5: ='Info+Engagés'!G25 -> Tom | H5: % Final | I5: =AVERAGE(D42:H42) -> 15.66666667
A6: Piste | C6: ='Info+Engagés'!B6 -> Quelle Piste ?
A7: N° Départ BO | C7: ='Info+Engagés'!A25 -> 14 | H7: Classement | I7: =INDEX(Résultats!P:P,MATCH(C7,Résultats!A:A,0)) -> 14
A9: Imprimé le : | C9: Coéff . | D9: Juge E | E9: Juge H | F9: Juge C | G9: Juge M | H9: Juge B | I9: écart Max
A10: =TODAY() -> 2017-03-26 | D10: =IF(ISBLANK('Info+Engagés'!H2),"",('Info+Engagés'!H2)) ->  | E10: =IF(ISBLANK('Info+Engagés'!H3),"",('Info+Engagés'!H3)) ->  | F10: =IF(ISBLANK('Info+Engagés'!H4),"",('Info+Engagés'!H4)) -> Nom du juge en C | G10: =IF(ISBLANK('Info+Engagés'!H5),"",('Info+Engagés'!H5)) ->  | H10: =IF(ISBLANK('Info+Engagés'!H6),"",('Info+Engagés'!H6)) -> 
A11: =NOW() -> 42820.46886
A12: Notation figures | B12: Figure 1 | C12: 1 | F12: 47 | I12: =MAX(D12:H12)-MIN(D12:H12) -> 0
B13: Figure 2 | C13: 1 | I13: 0
B14: Figure 3 | C14: 1 | I14: 0
B15: Figure 4 | C15: 1 | I15: 0
B16: Figure 5 | C16: 1 | I16: 0
B17: Figure 6 | C17: 1 | I17: 0
B18: Figure 7 | C18: 1 | I18: 0
B19: Figure 8 | C19: 1 | I19: 0
B20: Figure 9 | C20: 1 | I20: 0
B21: Figure 10 | C21: 1 | I21: 0
B22: Figure 11 | C22: 1 | I22: 0
B23: Figure 12 | C23: 1 | I23: 0
B24: Figure 13 | C24: 1 | I24: 0
B25: Figure 14 | C25: 1 | I25: 0
B26: Figure 15 | C26: 1 | I26: 0
B27: Figure 16 | C27: 1 | I27: 0
B28: Figure 17 | C28: 1 | I28: 0
B29: Figure 18 | C29: 1 | I29: 0
B30: Figure 19 | C30: 1 | I30: 0
B31: Figure 20 | C31: 1 | I31: 0
B32: Figure 21 | C32: 1 | I32: 0
B33: Figure 22 | C33: 1 | I33: 0
A34: Ensemble | B34: Ensemble 1 | C34: 1 | I34: 0
B35: Ensemble 2 | C35: 1 | I35: 0
B36: Ensemble 3 | C36: 1 | I36: 0
B37: Ensemble 4 | C37: 2 | I37: 0
B38: Ensemble 5 | C38: 2 | I38: 0
B39: Ensemble 6 | C39: 1 | I39: 0
A40: Pénalité en points
A41: Erreure(s) de tracé
A42: % Total du juge | D42: =IF(ISBLANK('Info+Engagés'!H2),"",D43/3-D41) ->  | E42: =IF(ISBLANK('Info+Engagés'!H3),"",E43/3-E41) ->  | F42: =IF(ISBLANK('Info+Engagés'!H4),"",F43/3-F41) -> 15.66666667 | G42: =IF(ISBLANK('Info+Engagés'!H5),"",G43/3-G41) ->  | H42: =IF(ISBLANK('Info+Engagés'!H6),"",H43/3-H41) ->  | I42: =MAX(D42:H42)-MIN(D42:H42) -> 0
A43: Soit en points | D43: =IF(ISBLANK('Info+Engagés'!H2),"",SUM(D12:D36,D39,D37*2,D38*2)-D40) ->  | E43: =IF(ISBLANK('Info+Engagés'!H3),"",(SUM(E12:E36,E39,E37*2,E38*2)-E40)) ->  | F43: =IF(ISBLANK('Info+Engagés'!H4),"",(SUM(F12:F36,F39,F37*2,F38*2)-F40)) -> 47 | G43: =IF(ISBLANK('Info+Engagés'!H5),"",(SUM(G12:G36,G39,G37*2,G38*2)-G40)) ->  | H43: =IF(ISBLANK('Info+Engagés'!H6),"",(SUM(H12:H36,H39,H37*2,H38*2)-H40)) -> 
A44: Total maxi par juge = 300 1 point correspond à 0,333% 1% correspond en points à : 3 Les notes sont sur 10 et correspondent à la saisie informatique par l'opérateur des protocoles joints, Le total résulte de l'addition des points attribués après application du coefficient et soustraction des points de pénalité encourus après conversion en pourcentage sont déduit les pourcentages de pénalités encourus par suite d'erreurs de tracé pour obtenir le pourcentage par juge.

Sheet Cav15
A1: ='Info+Engagés'!B3 -> Quel Lieu ? (Département ?) | D1: ='Info+Engagés'!B8 -> Amateur 3 Grand Prix (D1) | H1: ='Info+Engagés'!B2 -> Quelle Date ?
A3: N° de concours | D3: Cheval | F3: Cavalier | H3: Note d’ensemble | I3: =SUM(D34:H36,D39:H39,D37*2,E37*2,F37*2,G37*2,H37*2,D38*2,E38*2,F38*2,G38*2,H38*2) -> 0
A4: ='Info+Engagés'!B4 -> Quel N° ? | H4: Points | I4: =SUM(D43:H43) -> 46
A5: Épreuve N° | C5: ='Info+Engagés'!B5 -> Quel N° ? | D5: ='Info+Engagés'!B26 -> 0 | F5: ='Info+Engagés'!G26 -> 0 | H5: % Final | I5: =AVERAGE(D42:H42) -> 15.33333333
A6: Piste | C6: ='Info+Engagés'!B6 -> Quelle Piste ?
A7: N° Départ BO | C7: ='Info+Engagés'!A26 -> 15 | H7: Classement | I7: =INDEX(Résultats!P:P,MATCH(C7,Résultats!A:A,0)) -> 15
A9: Imprimé le : | C9: Coéff . | D9: Juge E | E9: Juge H | F9: Juge C | G9: Juge M | H9: Juge B | I9: écart Max
A10: =TODAY() -> 2017-03-26 | D10: =IF(ISBLANK('Info+Engagés'!H2),"",('Info+Engagés'!H2)) ->  | E10: =IF(ISBLANK('Info+Engagés'!H3),"",('Info+Engagés'!H3)) ->  | F10: =IF(ISBLANK('Info+Engagés'!H4),"",('Info+Engagés'!H4)) -> Nom du juge en C | G10: =IF(ISBLANK('Info+Engagés'!H5),"",('Info+Engagés'!H5)) ->  | H10: =IF(ISBLANK('Info+Engagés'!H6),"",('Info+Engagés'!H6)) -> 
A11: =NOW() -> 42820.46886
A12: Notation figures | B12: Figure 1 | C12: 1 | F12: 46 | I12: =MAX(D12:H12)-MIN(D12:H12) -> 0
B13: Figure 2 | C13: 1 | I13: 0
B14: Figure 3 | C14: 1 | I14: 0
B15: Figure 4 | C15: 1 | I15: 0
B16: Figure 5 | C16: 1 | I16: 0
B17: Figure 6 | C17: 1 | I17: 0
B18: Figure 7 | C18: 1 | I18: 0
B19: Figure 8 | C19: 1 | I19: 0
B20: Figure 9 | C20: 1 | I20: 0
B21: Figure 10 | C21: 1 | I21: 0
B22: Figure 11 | C22: 1 | I22: 0
B23: Figure 12 | C23: 1 | I23: 0
B24: Figure 13 | C24: 1 | I24: 0
B25: Figure 14 | C25: 1 | I25: 0
B26: Figure 15 | C26: 1 | I26: 0
B27: Figure 16 | C27: 1 | I27: 0
B28: Figure 17 | C28: 1 | I28: 0
B29: Figure 18 | C29: 1 | I29: 0
B30: Figure 19 | C30: 1 | I30: 0
B31: Figure 20 | C31: 1 | I31: 0
B32: Figure 21 | C32: 1 | I32: 0
B33: Figure 22 | C33: 1 | I33: 0
A34: Ensemble | B34: Ensemble 1 | C34: 1 | I34: 0
B35: Ensemble 2 | C35: 1 | I35: 0
B36: Ensemble 3 | C36: 1 | I36: 0
B37: Ensemble 4 | C37: 2 | I37: 0
B38: Ensemble 5 | C38: 2 | I38: 0
B39: Ensemble 6 | C39: 1 | I39: 0
A40: Pénalité en points
A41: Erreure(s) de tracé
A42: % Total du juge | D42: =IF(ISBLANK('Info+Engagés'!H2),"",D43/3-D41) ->  | E42: =IF(ISBLANK('Info+Engagés'!H3),"",E43/3-E41) ->  | F42: =IF(ISBLANK('Info+Engagés'!H4),"",F43/3-F41) -> 15.33333333 | G42: =IF(ISBLANK('Info+Engagés'!H5),"",G43/3-G41) ->  | H42: =IF(ISBLANK('Info+Engagés'!H6),"",H43/3-H41) ->  | I42: =MAX(D42:H42)-MIN(D42:H42) -> 0
A43: Soit en points | D43: =IF(ISBLANK('Info+Engagés'!H2),"",SUM(D12:D36,D39,D37*2,D38*2)-D40) ->  | E43: =IF(ISBLANK('Info+Engagés'!H3),"",(SUM(E12:E36,E39,E37*2,E38*2)-E40)) ->  | F43: =IF(ISBLANK('Info+Engagés'!H4),"",(SUM(F12:F36,F39,F37*2,F38*2)-F40)) -> 46 | G43: =IF(ISBLANK('Info+Engagés'!H5),"",(SUM(G12:G36,G39,G37*2,G38*2)-G40)) ->  | H43: =IF(ISBLANK('Info+Engagés'!H6),"",(SUM(H12:H36,H39,H37*2,H38*2)-H40)) -> 
A44: Total maxi par juge = 300 1 point correspond à 0,333% 1% correspond en points à : 3 Les notes sont sur 10 et correspondent à la saisie informatique par l'opérateur des protocoles joints, Le total résulte de l'addition des points attribués après application du coefficient et soustraction des points de pénalité encourus après conversion en pourcentage sont déduit les pourcentages de pénalités encourus par suite d'erreurs de tracé pour obtenir le pourcentage par juge.

Sheet Cav16
A1: ='Info+Engagés'!B3 -> Quel Lieu ? (Département ?) | D1: ='Info+Engagés'!B8 -> Amateur 3 Grand Prix (D1) | H1: ='Info+Engagés'!B2 -> Quelle Date ?
A3: N° de concours | D3: Cheval | F3: Cavalier | H3: Note d’ensemble | I3: =SUM(D34:H36,D39:H39,D37*2,E37*2,F37*2,G37*2,H37*2,D38*2,E38*2,F38*2,G38*2,H38*2) -> 0
A4: ='Info+Engagés'!B4 -> Quel N° ? | H4: Points | I4: =SUM(D43:H43) -> 45
A5: Épreuve N° | C5: ='Info+Engagés'!B5 -> Quel N° ? | D5: ='Info+Engagés'!B27 -> 0 | F5: ='Info+Engagés'!G27 -> 0 | H5: % Final | I5: =AVERAGE(D42:H42) -> 15
A6: Piste | C6: ='Info+Engagés'!B6 -> Quelle Piste ?
A7: N° Départ BO | C7: ='Info+Engagés'!A27 -> 16 | H7: Classement | I7: =INDEX(Résultats!P:P,MATCH(C7,Résultats!A:A,0)) -> 16
A9: Imprimé le : | C9: Coéff . | D9: Juge E | E9: Juge H | F9: Juge C | G9: Juge M | H9: Juge B | I9: écart Max
A10: =TODAY() -> 2017-03-26 | D10: =IF(ISBLANK('Info+Engagés'!H2),"",('Info+Engagés'!H2)) ->  | E10: =IF(ISBLANK('Info+Engagés'!H3),"",('Info+Engagés'!H3)) ->  | F10: =IF(ISBLANK('Info+Engagés'!H4),"",('Info+Engagés'!H4)) -> Nom du juge en C | G10: =IF(ISBLANK('Info+Engagés'!H5),"",('Info+Engagés'!H5)) ->  | H10: =IF(ISBLANK('Info+Engagés'!H6),"",('Info+Engagés'!H6)) -> 
A11: =NOW() -> 42820.46886
A12: Notation figures | B12: Figure 1 | C12: 1 | F12: 45 | I12: =MAX(D12:H12)-MIN(D12:H12) -> 0
B13: Figure 2 | C13: 1 | I13: 0
B14: Figure 3 | C14: 1 | I14: 0
B15: Figure 4 | C15: 1 | I15: 0
B16: Figure 5 | C16: 1 | I16: 0
B17: Figure 6 | C17: 1 | I17: 0
B18: Figure 7 | C18: 1 | I18: 0
B19: Figure 8 | C19: 1 | I19: 0
B20: Figure 9 | C20: 1 | I20: 0
B21: Figure 10 | C21: 1 | I21: 0
B22: Figure 11 | C22: 1 | I22: 0
B23: Figure 12 | C23: 1 | I23: 0
B24: Figure 13 | C24: 1 | I24: 0
B25: Figure 14 | C25: 1 | I25: 0
B26: Figure 15 | C26: 1 | I26: 0
B27: Figure 16 | C27: 1 | I27: 0
B28: Figure 17 | C28: 1 | I28: 0
B29: Figure 18 | C29: 1 | I29: 0
B30: Figure 19 | C30: 1 | I30: 0
B31: Figure 20 | C31: 1 | I31: 0
B32: Figure 21 | C32: 1 | I32: 0
B33: Figure 22 | C33: 1 | I33: 0
A34: Ensemble | B34: Ensemble 1 | C34: 1 | I34: 0
B35: Ensemble 2 | C35: 1 | I35: 0
B36: Ensemble 3 | C36: 1 | I36: 0
B37: Ensemble 4 | C37: 2 | I37: 0
B38: Ensemble 5 | C38: 2 | I38: 0
B39: Ensemble 6 | C39: 1 | I39: 0
A40: Pénalité en points
A41: Erreure(s) de tracé
A42: % Total du juge | D42: =IF(ISBLANK('Info+Engagés'!H2),"",D43/3-D41) ->  | E42: =IF(ISBLANK('Info+Engagés'!H3),"",E43/3-E41) ->  | F42: =IF(ISBLANK('Info+Engagés'!H4),"",F43/3-F41) -> 15 | G42: =IF(ISBLANK('Info+Engagés'!H5),"",G43/3-G41) ->  | H42: =IF(ISBLANK('Info+Engagés'!H6),"",H43/3-H41) ->  | I42: =MAX(D42:H42)-MIN(D42:H42) -> 0
A43: Soit en points | D43: =IF(ISBLANK('Info+Engagés'!H2),"",SUM(D12:D36,D39,D37*2,D38*2)-D40) ->  | E43: =IF(ISBLANK('Info+Engagés'!H3),"",(SUM(E12:E36,E39,E37*2,E38*2)-E40)) ->  | F43: =IF(ISBLANK('Info+Engagés'!H4),"",(SUM(F12:F36,F39,F37*2,F38*2)-F40)) -> 45 | G43: =IF(ISBLANK('Info+Engagés'!H5),"",(SUM(G12:G36,G39,G37*2,G38*2)-G40)) ->  | H43: =IF(ISBLANK('Info+Engagés'!H6),"",(SUM(H12:H36,H39,H37*2,H38*2)-H40)) -> 
A44: Total maxi par juge = 300 1 point correspond à 0,333% 1% correspond en points à : 3 Les notes sont sur 10 et correspondent à la saisie informatique par l'opérateur des protocoles joints, Le total résulte de l'addition des points attribués après application du coefficient et soustraction des points de pénalité encourus après conversion en pourcentage sont déduit les pourcentages de pénalités encourus par suite d'erreurs de tracé pour obtenir le pourcentage par juge.

Sheet Cav17
A1: ='Info+Engagés'!B3 -> Quel Lieu ? (Département ?) | D1: ='Info+Engagés'!B8 -> Amateur 3 Grand Prix (D1) | H1: ='Info+Engagés'!B2 -> Quelle Date ?
A3: N° de concours | D3: Cheval | F3: Cavalier | H3: Note d’ensemble | I3: =SUM(D34:H36,D39:H39,D37*2,E37*2,F37*2,G37*2,H37*2,D38*2,E38*2,F38*2,G38*2,H38*2) -> 0
A4: ='Info+Engagés'!B4 -> Quel N° ? | H4: Points | I4: =SUM(D43:H43) -> 44
A5: Épreuve N° | C5: ='Info+Engagés'!B5 -> Quel N° ? | D5: ='Info+Engagés'!B28 -> 0 | F5: ='Info+Engagés'!G28 -> 0 | H5: % Final | I5: =AVERAGE(D42:H42) -> 14.66666667
A6: Piste | C6: ='Info+Engagés'!B6 -> Quelle Piste ?
A7: N° Départ BO | C7: ='Info+Engagés'!A28 -> 17 | H7: Classement | I7: =INDEX(Résultats!P:P,MATCH(C7,Résultats!A:A,0)) -> 17
A9: Imprimé le : | C9: Coéff . | D9: Juge E | E9: Juge H | F9: Juge C | G9: Juge M | H9: Juge B | I9: écart Max
A10: =TODAY() -> 2017-03-26 | D10: =IF(ISBLANK('Info+Engagés'!H2),"",('Info+Engagés'!H2)) ->  | E10: =IF(ISBLANK('Info+Engagés'!H3),"",('Info+Engagés'!H3)) ->  | F10: =IF(ISBLANK('Info+Engagés'!H4),"",('Info+Engagés'!H4)) -> Nom du juge en C | G10: =IF(ISBLANK('Info+Engagés'!H5),"",('Info+Engagés'!H5)) ->  | H10: =IF(ISBLANK('Info+Engagés'!H6),"",('Info+Engagés'!H6)) -> 
A11: =NOW() -> 42820.46886
A12: Notation figures | B12: Figure 1 | C12: 1 | F12: 44 | I12: =MAX(D12:H12)-MIN(D12:H12) -> 0
B13: Figure 2 | C13: 1 | I13: 0
B14: Figure 3 | C14: 1 | I14: 0
B15: Figure 4 | C15: 1 | I15: 0
B16: Figure 5 | C16: 1 | I16: 0
B17: Figure 6 | C17: 1 | I17: 0
B18: Figure 7 | C18: 1 | I18: 0
B19: Figure 8 | C19: 1 | I19: 0
B20: Figure 9 | C20: 1 | I20: 0
B21: Figure 10 | C21: 1 | I21: 0
B22: Figure 11 | C22: 1 | I22: 0
B23: Figure 12 | C23: 1 | I23: 0
B24: Figure 13 | C24: 1 | I24: 0
B25: Figure 14 | C25: 1 | I25: 0
B26: Figure 15 | C26: 1 | I26: 0
B27: Figure 16 | C27: 1 | I27: 0
B28: Figure 17 | C28: 1 | I28: 0
B29: Figure 18 | C29: 1 | I29: 0
B30: Figure 19 | C30: 1 | I30: 0
B31: Figure 20 | C31: 1 | I31: 0
B32: Figure 21 | C32: 1 | I32: 0
B33: Figure 22 | C33: 1 | I33: 0
A34: Ensemble | B34: Ensemble 1 | C34: 1 | I34: 0
B35: Ensemble 2 | C35: 1 | I35: 0
B36: Ensemble 3 | C36: 1 | I36: 0
B37: Ensemble 4 | C37: 2 | I37: 0
B38: Ensemble 5 | C38: 2 | I38: 0
B39: Ensemble 6 | C39: 1 | I39: 0
A40: Pénalité en points
A41: Erreure(s) de tracé
A42: % Total du juge | D42: =IF(ISBLANK('Info+Engagés'!H2),"",D43/3-D41) ->  | E42: =IF(ISBLANK('Info+Engagés'!H3),"",E43/3-E41) ->  | F42: =IF(ISBLANK('Info+Engagés'!H4),"",F43/3-F41) -> 14.66666667 | G42: =IF(ISBLANK('Info+Engagés'!H5),"",G43/3-G41) ->  | H42: =IF(ISBLANK('Info+Engagés'!H6),"",H43/3-H41) ->  | I42: =MAX(D42:H42)-MIN(D42:H42) -> 0
A43: Soit en points | D43: =IF(ISBLANK('Info+Engagés'!H2),"",SUM(D12:D36,D39,D37*2,D38*2)-D40) ->  | E43: =IF(ISBLANK('Info+Engagés'!H3),"",(SUM(E12:E36,E39,E37*2,E38*2)-E40)) ->  | F43: =IF(ISBLANK('Info+Engagés'!H4),"",(SUM(F12:F36,F39,F37*2,F38*2)-F40)) -> 44 | G43: =IF(ISBLANK('Info+Engagés'!H5),"",(SUM(G12:G36,G39,G37*2,G38*2)-G40)) ->  | H43: =IF(ISBLANK('Info+Engagés'!H6),"",(SUM(H12:H36,H39,H37*2,H38*2)-H40)) -> 
A44: Total maxi par juge = 300 1 point correspond à 0,333% 1% correspond en points à : 3 Les notes sont sur 10 et correspondent à la saisie informatique par l'opérateur des protocoles joints, Le total résulte de l'addition des points attribués après application du coefficient et soustraction des points de pénalité encourus après conversion en pourcentage sont déduit les pourcentages de pénalités encourus par suite d'erreurs de tracé pour obtenir le pourcentage par juge.

Sheet Cav18
A1: ='Info+Engagés'!B3 -> Quel Lieu ? (Département ?) | D1: ='Info+Engagés'!B8 -> Amateur 3 Grand Prix (D1) | H1: ='Info+Engagés'!B2 -> Quelle Date ?
A3: N° de concours | D3: Cheval | F3: Cavalier | H3: Note d’ensemble | I3: =SUM(D34:H36,D39:H39,D37*2,E37*2,F37*2,G37*2,H37*2,D38*2,E38*2,F38*2,G38*2,H38*2) -> 0
A4: ='Info+Engagés'!B4 -> Quel N° ? | H4: Points | I4: =SUM(D43:H43) -> 43
A5: Épreuve N° | C5: ='Info+Engagés'!B5 -> Quel N° ? | D5: ='Info+Engagés'!B29 -> 0 | F5: ='Info+Engagés'!G29 -> 0 | H5: % Final | I5: =AVERAGE(D42:H42) -> 14.33333333
A6: Piste | C6: ='Info+Engagés'!B6 -> Quelle Piste ?
A7: N° Départ BO | C7: ='Info+Engagés'!A29 -> 18 | H7: Classement | I7: =INDEX(Résultats!P:P,MATCH(C7,Résultats!A:A,0)) -> 18
A9: Imprimé le : | C9: Coéff . | D9: Juge E | E9: Juge H | F9: Juge C | G9: Juge M | H9: Juge B | I9: écart Max
A10: =TODAY() -> 2017-03-26 | D10: =IF(ISBLANK('Info+Engagés'!H2),"",('Info+Engagés'!H2)) ->  | E10: =IF(ISBLANK('Info+Engagés'!H3),"",('Info+Engagés'!H3)) ->  | F10: =IF(ISBLANK('Info+Engagés'!H4),"",('Info+Engagés'!H4)) -> Nom du juge en C | G10: =IF(ISBLANK('Info+Engagés'!H5),"",('Info+Engagés'!H5)) ->  | H10: =IF(ISBLANK('Info+Engagés'!H6),"",('Info+Engagés'!H6)) -> 
A11: =NOW() -> 42820.46886
A12: Notation figures | B12: Figure 1 | C12: 1 | F12: 43 | I12: =MAX(D12:H12)-MIN(D12:H12) -> 0
B13: Figure 2 | C13: 1 | I13: 0
B14: Figure 3 | C14: 1 | I14: 0
B15: Figure 4 | C15: 1 | I15: 0
B16: Figure 5 | C16: 1 | I16: 0
B17: Figure 6 | C17: 1 | I17: 0
B18: Figure 7 | C18: 1 | I18: 0
B19: Figure 8 | C19: 1 | I19: 0
B20: Figure 9 | C20: 1 | I20: 0
B21: Figure 10 | C21: 1 | I21: 0
B22: Figure 11 | C22: 1 | I22: 0
B23: Figure 12 | C23: 1 | I23: 0
B24: Figure 13 | C24: 1 | I24: 0
B25: Figure 14 | C25: 1 | I25: 0
B26: Figure 15 | C26: 1 | I26: 0
B27: Figure 16 | C27: 1 | I27: 0
B28: Figure 17 | C28: 1 | I28: 0
B29: Figure 18 | C29: 1 | I29: 0
B30: Figure 19 | C30: 1 | I30: 0
B31: Figure 20 | C31: 1 | I31: 0
B32: Figure 21 | C32: 1 | I32: 0
B33: Figure 22 | C33: 1 | I33: 0
A34: Ensemble | B34: Ensemble 1 | C34: 1 | I34: 0
B35: Ensemble 2 | C35: 1 | I35: 0
B36: Ensemble 3 | C36: 1 | I36: 0
B37: Ensemble 4 | C37: 2 | I37: 0
B38: Ensemble 5 | C38: 2 | I38: 0
B39: Ensemble 6 | C39: 1 | I39: 0
A40: Pénalité en points
A41: Erreure(s) de tracé
A42: % Total du juge | D42: =IF(ISBLANK('Info+Engagés'!H2),"",D43/3-D41) ->  | E42: =IF(ISBLANK('Info+Engagés'!H3),"",E43/3-E41) ->  | F42: =IF(ISBLANK('Info+Engagés'!H4),"",F43/3-F41) -> 14.33333333 | G42: =IF(ISBLANK('Info+Engagés'!H5),"",G43/3-G41) ->  | H42: =IF(ISBLANK('Info+Engagés'!H6),"",H43/3-H41) ->  | I42: =MAX(D42:H42)-MIN(D42:H42) -> 0
A43: Soit en points | D43: =IF(ISBLANK('Info+Engagés'!H2),"",SUM(D12:D36,D39,D37*2,D38*2)-D40) ->  | E43: =IF(ISBLANK('Info+Engagés'!H3),"",(SUM(E12:E36,E39,E37*2,E38*2)-E40)) ->  | F43: =IF(ISBLANK('Info+Engagés'!H4),"",(SUM(F12:F36,F39,F37*2,F38*2)-F40)) -> 43 | G43: =IF(ISBLANK('Info+Engagés'!H5),"",(SUM(G12:G36,G39,G37*2,G38*2)-G40)) ->  | H43: =IF(ISBLANK('Info+Engagés'!H6),"",(SUM(H12:H36,H39,H37*2,H38*2)-H40)) -> 
A44: Total maxi par juge = 300 1 point correspond à 0,333% 1% correspond en points à : 3 Les notes sont sur 10 et correspondent à la saisie informatique par l'opérateur des protocoles joints, Le total résulte de l'addition des points attribués après application du coefficient et soustraction des points de pénalité encourus après conversion en pourcentage sont déduit les pourcentages de pénalités encourus par suite d'erreurs de tracé pour obtenir le pourcentage par juge.

Sheet Cav19
A1: ='Info+Engagés'!B3 -> Quel Lieu ? (Département ?) | D1: ='Info+Engagés'!B8 -> Amateur 3 Grand Prix (D1) | H1: ='Info+Engagés'!B2 -> Quelle Date ?
A3: N° de concours | D3: Cheval | F3: Cavalier | H3: Note d’ensemble | I3: =SUM(D34:H36,D39:H39,D37*2,E37*2,F37*2,G37*2,H37*2,D38*2,E38*2,F38*2,G38*2,H38*2) -> 0
A4: ='Info+Engagés'!B4 -> Quel N° ? | H4: Points | I4: =SUM(D43:H43) -> 42
A5: Épreuve N° | C5: ='Info+Engagés'!B5 -> Quel N° ? | D5: ='Info+Engagés'!B30 -> 0 | F5: ='Info+Engagés'!G30 -> 0 | H5: % Final | I5: =AVERAGE(D42:H42) -> 14
A6: Piste | C6: ='Info+Engagés'!B6 -> Quelle Piste ?
A7: N° Départ BO | C7: ='Info+Engagés'!A30 -> 19 | H7: Classement | I7: =INDEX(Résultats!P:P,MATCH(C7,Résultats!A:A,0)) -> 19
A9: Imprimé le : | C9: Coéff . | D9: Juge E | E9: Juge H | F9: Juge C | G9: Juge M | H9: Juge B | I9: écart Max
A10: =TODAY() -> 2017-03-26 | D10: =IF(ISBLANK('Info+Engagés'!H2),"",('Info+Engagés'!H2)) ->  | E10: =IF(ISBLANK('Info+Engagés'!H3),"",('Info+Engagés'!H3)) ->  | F10: =IF(ISBLANK('Info+Engagés'!H4),"",('Info+Engagés'!H4)) -> Nom du juge en C | G10: =IF(ISBLANK('Info+Engagés'!H5),"",('Info+Engagés'!H5)) ->  | H10: =IF(ISBLANK('Info+Engagés'!H6),"",('Info+Engagés'!H6)) -> 
A11: =NOW() -> 42820.46886
A12: Notation figures | B12: Figure 1 | C12: 1 | F12: 42 | I12: =MAX(D12:H12)-MIN(D12:H12) -> 0
B13: Figure 2 | C13: 1 | I13: 0
B14: Figure 3 | C14: 1 | I14: 0
B15: Figure 4 | C15: 1 | I15: 0
B16: Figure 5 | C16: 1 | I16: 0
B17: Figure 6 | C17: 1 | I17: 0
B18: Figure 7 | C18: 1 | I18: 0
B19: Figure 8 | C19: 1 | I19: 0
B20: Figure 9 | C20: 1 | I20: 0
B21: Figure 10 | C21: 1 | I21: 0
B22: Figure 11 | C22: 1 | I22: 0
B23: Figure 12 | C23: 1 | I23: 0
B24: Figure 13 | C24: 1 | I24: 0
B25: Figure 14 | C25: 1 | I25: 0
B26: Figure 15 | C26: 1 | I26: 0
B27: Figure 16 | C27: 1 | I27: 0
B28: Figure 17 | C28: 1 | I28: 0
B29: Figure 18 | C29: 1 | I29: 0
B30: Figure 19 | C30: 1 | I30: 0
B31: Figure 20 | C31: 1 | I31: 0
B32: Figure 21 | C32: 1 | I32: 0
B33: Figure 22 | C33: 1 | I33: 0
A34: Ensemble | B34: Ensemble 1 | C34: 1 | I34: 0
B35: Ensemble 2 | C35: 1 | I35: 0
B36: Ensemble 3 | C36: 1 | I36: 0
B37: Ensemble 4 | C37: 2 | I37: 0
B38: Ensemble 5 | C38: 2 | I38: 0
B39: Ensemble 6 | C39: 1 | I39: 0
A40: Pénalité en points
A41: Erreure(s) de tracé
A42: % Total du juge | D42: =IF(ISBLANK('Info+Engagés'!H2),"",D43/3-D41) ->  | E42: =IF(ISBLANK('Info+Engagés'!H3),"",E43/3-E41) ->  | F42: =IF(ISBLANK('Info+Engagés'!H4),"",F43/3-F41) -> 14 | G42: =IF(ISBLANK('Info+Engagés'!H5),"",G43/3-G41) ->  | H42: =IF(ISBLANK('Info+Engagés'!H6),"",H43/3-H41) ->  | I42: =MAX(D42:H42)-MIN(D42:H42) -> 0
A43: Soit en points | D43: =IF(ISBLANK('Info+Engagés'!H2),"",SUM(D12:D36,D39,D37*2,D38*2)-D40) ->  | E43: =IF(ISBLANK('Info+Engagés'!H3),"",(SUM(E12:E36,E39,E37*2,E38*2)-E40)) ->  | F43: =IF(ISBLANK('Info+Engagés'!H4),"",(SUM(F12:F36,F39,F37*2,F38*2)-F40)) -> 42 | G43: =IF(ISBLANK('Info+Engagés'!H5),"",(SUM(G12:G36,G39,G37*2,G38*2)-G40)) ->  | H43: =IF(ISBLANK('Info+Engagés'!H6),"",(SUM(H12:H36,H39,H37*2,H38*2)-H40)) -> 
A44: Total maxi par juge = 300 1 point correspond à 0,333% 1% correspond en points à : 3 Les notes sont sur 10 et correspondent à la saisie informatique par l'opérateur des protocoles joints, Le total résulte de l'addition des points attribués après application du coefficient et soustraction des points de pénalité encourus après conversion en pourcentage sont déduit les pourcentages de pénalités encourus par suite d'erreurs de tracé pour obtenir le pourcentage par juge.

Sheet Cav20
A1: ='Info+Engagés'!B3 -> Quel Lieu ? (Département ?) | D1: ='Info+Engagés'!B8 -> Amateur 3 Grand Prix (D1) | H1: ='Info+Engagés'!B2 -> Quelle Date ?
A3: N° de concours | D3: Cheval | F3: Cavalier | H3: Note d’ensemble | I3: =SUM(D34:H36,D39:H39,D37*2,E37*2,F37*2,G37*2,H37*2,D38*2,E38*2,F38*2,G38*2,H38*2) -> 0
A4: ='Info+Engagés'!B4 -> Quel N° ? | H4: Points | I4: =SUM(D43:H43) -> 41
A5: Épreuve N° | C5: ='Info+Engagés'!B5 -> Quel N° ? | D5: ='Info+Engagés'!B31 -> 0 | F5: ='Info+Engagés'!G31 -> 0 | H5: % Final | I5: =AVERAGE(D42:H42) -> 13.66666667
A6: Piste | C6: ='Info+Engagés'!B6 -> Quelle Piste ?
A7: N° Départ BO | C7: ='Info+Engagés'!A31 -> 20 | H7: Classement | I7: =INDEX(Résultats!P:P,MATCH(C7,Résultats!A:A,0)) -> 20
A9: Imprimé le : | C9: Coéff . | D9: Juge E | E9: Juge H | F9: Juge C | G9: Juge M | H9: Juge B | I9: écart Max
A10: =TODAY() -> 2017-03-26 | D10: =IF(ISBLANK('Info+Engagés'!H2),"",('Info+Engagés'!H2)) ->  | E10: =IF(ISBLANK('Info+Engagés'!H3),"",('Info+Engagés'!H3)) ->  | F10: =IF(ISBLANK('Info+Engagés'!H4),"",('Info+Engagés'!H4)) -> Nom du juge en C | G10: =IF(ISBLANK('Info+Engagés'!H5),"",('Info+Engagés'!H5)) ->  | H10: =IF(ISBLANK('Info+Engagés'!H6),"",('Info+Engagés'!H6)) -> 
A11: =NOW() -> 42820.46886
A12: Notation figures | B12: Figure 1 | C12: 1 | F12: 41 | I12: =MAX(D12:H12)-MIN(D12:H12) -> 0
B13: Figure 2 | C13: 1 | I13: 0
B14: Figure 3 | C14: 1 | I14: 0
B15: Figure 4 | C15: 1 | I15: 0
B16: Figure 5 | C16: 1 | I16: 0
B17: Figure 6 | C17: 1 | I17: 0
B18: Figure 7 | C18: 1 | I18: 0
B19: Figure 8 | C19: 1 | I19: 0
B20: Figure 9 | C20: 1 | I20: 0
B21: Figure 10 | C21: 1 | I21: 0
B22: Figure 11 | C22: 1 | I22: 0
B23: Figure 12 | C23: 1 | I23: 0
B24: Figure 13 | C24: 1 | I24: 0
B25: Figure 14 | C25: 1 | I25: 0
B26: Figure 15 | C26: 1 | I26: 0
B27: Figure 16 | C27: 1 | I27: 0
B28: Figure 17 | C28: 1 | I28: 0
B29: Figure 18 | C29: 1 | I29: 0
B30: Figure 19 | C30: 1 | I30: 0
B31: Figure 20 | C31: 1 | I31: 0
B32: Figure 21 | C32: 1 | I32: 0
B33: Figure 22 | C33: 1 | I33: 0
A34: Ensemble | B34: Ensemble 1 | C34: 1 | I34: 0
B35: Ensemble 2 | C35: 1 | I35: 0
B36: Ensemble 3 | C36: 1 | I36: 0
B37: Ensemble 4 | C37: 2 | I37: 0
B38: Ensemble 5 | C38: 2 | I38: 0
B39: Ensemble 6 | C39: 1 | I39: 0
A40: Pénalité en points
A41: Erreure(s) de tracé
A42: % Total du juge | D42: =IF(ISBLANK('Info+Engagés'!H2),"",D43/3-D41) ->  | E42: =IF(ISBLANK('Info+Engagés'!H3),"",E43/3-E41) ->  | F42: =IF(ISBLANK('Info+Engagés'!H4),"",F43/3-F41) -> 13.66666667 | G42: =IF(ISBLANK('Info+Engagés'!H5),"",G43/3-G41) ->  | H42: =IF(ISBLANK('Info+Engagés'!H6),"",H43/3-H41) ->  | I42: =MAX(D42:H42)-MIN(D42:H42) -> 0
A43: Soit en points | D43: =IF(ISBLANK('Info+Engagés'!H2),"",SUM(D12:D36,D39,D37*2,D38*2)-D40) ->  | E43: =IF(ISBLANK('Info+Engagés'!H3),"",(SUM(E12:E36,E39,E37*2,E38*2)-E40)) ->  | F43: =IF(ISBLANK('Info+Engagés'!H4),"",(SUM(F12:F36,F39,F37*2,F38*2)-F40)) -> 41 | G43: =IF(ISBLANK('Info+Engagés'!H5),"",(SUM(G12:G36,G39,G37*2,G38*2)-G40)) ->  | H43: =IF(ISBLANK('Info+Engagés'!H6),"",(SUM(H12:H36,H39,H37*2,H38*2)-H40)) -> 
A44: Total maxi par juge = 300 1 point correspond à 0,333% 1% correspond en points à : 3 Les notes sont sur 10 et correspondent à la saisie informatique par l'opérateur des protocoles joints, Le total résulte de l'addition des points attribués après application du coefficient et soustraction des points de pénalité encourus après conversion en pourcentage sont déduit les pourcentages de pénalités encourus par suite d'erreurs de tracé pour obtenir le pourcentage par juge.

Sheet Cav21
A1: ='Info+Engagés'!B3 -> Quel Lieu ? (Département ?) | D1: ='Info+Engagés'!B8 -> Amateur 3 Grand Prix (D1) | H1: ='Info+Engagés'!B2 -> Quelle Date ?
A3: N° de concours | D3: Cheval | F3: Cavalier | H3: Note d’ensemble | I3: =SUM(D34:H36,D39:H39,D37*2,E37*2,F37*2,G37*2,H37*2,D38*2,E38*2,F38*2,G38*2,H38*2) -> 0
A4: ='Info+Engagés'!B4 -> Quel N° ? | H4: Points | I4: =SUM(D43:H43) -> 40
A5: Épreuve N° | C5: ='Info+Engagés'!B5 -> Quel N° ? | D5: ='Info+Engagés'!B32 -> 0 | F5: ='Info+Engagés'!G32 -> 0 | H5: % Final | I5: =AVERAGE(D42:H42) -> 13.33333333
A6: Piste | C6: ='Info+Engagés'!B6 -> Quelle Piste ?
A7: N° Départ BO | C7: ='Info+Engagés'!A32 -> 21 | H7: Classement | I7: =INDEX(Résultats!P:P,MATCH(C7,Résultats!A:A,0)) -> 21
A9: Imprimé le : | C9: Coéff . | D9: Juge E | E9: Juge H | F9: Juge C | G9: Juge M | H9: Juge B | I9: écart Max
A10: =TODAY() -> 2017-03-26 | D10: =IF(ISBLANK('Info+Engagés'!H2),"",('Info+Engagés'!H2)) ->  | E10: =IF(ISBLANK('Info+Engagés'!H3),"",('Info+Engagés'!H3)) ->  | F10: =IF(ISBLANK('Info+Engagés'!H4),"",('Info+Engagés'!H4)) -> Nom du juge en C | G10: =IF(ISBLANK('Info+Engagés'!H5),"",('Info+Engagés'!H5)) ->  | H10: =IF(ISBLANK('Info+Engagés'!H6),"",('Info+Engagés'!H6)) -> 
A11: =NOW() -> 42820.46886
A12: Notation figures | B12: Figure 1 | C12: 1 | F12: 40 | I12: =MAX(D12:H12)-MIN(D12:H12) -> 0
B13: Figure 2 | C13: 1 | I13: 0
B14: Figure 3 | C14: 1 | I14: 0
B15: Figure 4 | C15: 1 | I15: 0
B16: Figure 5 | C16: 1 | I16: 0
B17: Figure 6 | C17: 1 | I17: 0
B18: Figure 7 | C18: 1 | I18: 0
B19: Figure 8 | C19: 1 | I19: 0
B20: Figure 9 | C20: 1 | I20: 0
B21: Figure 10 | C21: 1 | I21: 0
B22: Figure 11 | C22: 1 | I22: 0
B23: Figure 12 | C23: 1 | I23: 0
B24: Figure 13 | C24: 1 | I24: 0
B25: Figure 14 | C25: 1 | I25: 0
B26: Figure 15 | C26: 1 | I26: 0
B27: Figure 16 | C27: 1 | I27: 0
B28: Figure 17 | C28: 1 | I28: 0
B29: Figure 18 | C29: 1 | I29: 0
B30: Figure 19 | C30: 1 | I30: 0
B31: Figure 20 | C31: 1 | I31: 0
B32: Figure 21 | C32: 1 | I32: 0
B33: Figure 22 | C33: 1 | I33: 0
A34: Ensemble | B34: Ensemble 1 | C34: 1 | I34: 0
B35: Ensemble 2 | C35: 1 | I35: 0
B36: Ensemble 3 | C36: 1 | I36: 0
B37: Ensemble 4 | C37: 2 | I37: 0
B38: Ensemble 5 | C38: 2 | I38: 0
B39: Ensemble 6 | C39: 1 | I39: 0
A40: Pénalité en points
A41: Erreure(s) de tracé
A42: % Total du juge | D42: =IF(ISBLANK('Info+Engagés'!H2),"",D43/3-D41) ->  | E42: =IF(ISBLANK('Info+Engagés'!H3),"",E43/3-E41) ->  | F42: =IF(ISBLANK('Info+Engagés'!H4),"",F43/3-F41) -> 13.33333333 | G42: =IF(ISBLANK('Info+Engagés'!H5),"",G43/3-G41) ->  | H42: =IF(ISBLANK('Info+Engagés'!H6),"",H43/3-H41) ->  | I42: =MAX(D42:H42)-MIN(D42:H42) -> 0
A43: Soit en points | D43: =IF(ISBLANK('Info+Engagés'!H2),"",SUM(D12:D36,D39,D37*2,D38*2)-D40) ->  | E43: =IF(ISBLANK('Info+Engagés'!H3),"",(SUM(E12:E36,E39,E37*2,E38*2)-E40)) ->  | F43: =IF(ISBLANK('Info+Engagés'!H4),"",(SUM(F12:F36,F39,F37*2,F38*2)-F40)) -> 40 | G43: =IF(ISBLANK('Info+Engagés'!H5),"",(SUM(G12:G36,G39,G37*2,G38*2)-G40)) ->  | H43: =IF(ISBLANK('Info+Engagés'!H6),"",(SUM(H12:H36,H39,H37*2,H38*2)-H40)) -> 
A44: Total maxi par juge = 300 1 point correspond à 0,333% 1% correspond en points à : 3 Les notes sont sur 10 et correspondent à la saisie informatique par l'opérateur des protocoles joints, Le total résulte de l'addition des points attribués après application du coefficient et soustraction des points de pénalité encourus après conversion en pourcentage sont déduit les pourcentages de pénalités encourus par suite d'erreurs de tracé pour obtenir le pourcentage par juge.

Sheet Cav22
A1: ='Info+Engagés'!B3 -> Quel Lieu ? (Département ?) | D1: ='Info+Engagés'!B8 -> Amateur 3 Grand Prix (D1) | H1: ='Info+Engagés'!B2 -> Quelle Date ?
A3: N° de concours | D3: Cheval | F3: Cavalier | H3: Note d’ensemble | I3: =SUM(D34:H36,D39:H39,D37*2,E37*2,F37*2,G37*2,H37*2,D38*2,E38*2,F38*2,G38*2,H38*2) -> 0
A4: ='Info+Engagés'!B4 -> Quel N° ? | H4: Points | I4: =SUM(D43:H43) -> 39
A5: Épreuve N° | C5: ='Info+Engagés'!B5 -> Quel N° ? | D5: ='Info+Engagés'!B33 -> 0 | F5: ='Info+Engagés'!G33 -> 0 | H5: % Final | I5: =AVERAGE(D42:H42) -> 13
A6: Piste | C6: ='Info+Engagés'!B6 -> Quelle Piste ?
A7: N° Départ BO | C7: ='Info+Engagés'!A33 -> 22 | H7: Classement | I7: =INDEX(Résultats!P:P,MATCH(C7,Résultats!A:A,0)) -> 22
A9: Imprimé le : | C9: Coéff . | D9: Juge E | E9: Juge H | F9: Juge C | G9: Juge M | H9: Juge B | I9: écart Max
A10: =TODAY() -> 2017-03-26 | D10: =IF(ISBLANK('Info+Engagés'!H2),"",('Info+Engagés'!H2)) ->  | E10: =IF(ISBLANK('Info+Engagés'!H3),"",('Info+Engagés'!H3)) ->  | F10: =IF(ISBLANK('Info+Engagés'!H4),"",('Info+Engagés'!H4)) -> Nom du juge en C | G10: =IF(ISBLANK('Info+Engagés'!H5),"",('Info+Engagés'!H5)) ->  | H10: =IF(ISBLANK('Info+Engagés'!H6),"",('Info+Engagés'!H6)) -> 
A11: =NOW() -> 42820.46886
A12: Notation figures | B12: Figure 1 | C12: 1 | F12: 39 | I12: =MAX(D12:H12)-MIN(D12:H12) -> 0
B13: Figure 2 | C13: 1 | I13: 0
B14: Figure 3 | C14: 1 | I14: 0
B15: Figure 4 | C15: 1 | I15: 0
B16: Figure 5 | C16: 1 | I16: 0
B17: Figure 6 | C17: 1 | I17: 0
B18: Figure 7 | C18: 1 | I18: 0
B19: Figure 8 | C19: 1 | I19: 0
B20: Figure 9 | C20: 1 | I20: 0
B21: Figure 10 | C21: 1 | I21: 0
B22: Figure 11 | C22: 1 | I22: 0
B23: Figure 12 | C23: 1 | I23: 0
B24: Figure 13 | C24: 1 | I24: 0
B25: Figure 14 | C25: 1 | I25: 0
B26: Figure 15 | C26: 1 | I26: 0
B27: Figure 16 | C27: 1 | I27: 0
B28: Figure 17 | C28: 1 | I28: 0
B29: Figure 18 | C29: 1 | I29: 0
B30: Figure 19 | C30: 1 | I30: 0
B31: Figure 20 | C31: 1 | I31: 0
B32: Figure 21 | C32: 1 | I32: 0
B33: Figure 22 | C33: 1 | I33: 0
A34: Ensemble | B34: Ensemble 1 | C34: 1 | I34: 0
B35: Ensemble 2 | C35: 1 | I35: 0
B36: Ensemble 3 | C36: 1 | I36: 0
B37: Ensemble 4 | C37: 2 | I37: 0
B38: Ensemble 5 | C38: 2 | I38: 0
B39: Ensemble 6 | C39: 1 | I39: 0
A40: Pénalité en points
A41: Erreure(s) de tracé
A42: % Total du juge | D42: =IF(ISBLANK('Info+Engagés'!H2),"",D43/3-D41) ->  | E42: =IF(ISBLANK('Info+Engagés'!H3),"",E43/3-E41) ->  | F42: =IF(ISBLANK('Info+Engagés'!H4),"",F43/3-F41) -> 13 | G42: =IF(ISBLANK('Info+Engagés'!H5),"",G43/3-G41) ->  | H42: =IF(ISBLANK('Info+Engagés'!H6),"",H43/3-H41) ->  | I42: =MAX(D42:H42)-MIN(D42:H42) -> 0
A43: Soit en points | D43: =IF(ISBLANK('Info+Engagés'!H2),"",SUM(D12:D36,D39,D37*2,D38*2)-D40) ->  | E43: =IF(ISBLANK('Info+Engagés'!H3),"",(SUM(E12:E36,E39,E37*2,E38*2)-E40)) ->  | F43: =IF(ISBLANK('Info+Engagés'!H4),"",(SUM(F12:F36,F39,F37*2,F38*2)-F40)) -> 39 | G43: =IF(ISBLANK('Info+Engagés'!H5),"",(SUM(G12:G36,G39,G37*2,G38*2)-G40)) ->  | H43: =IF(ISBLANK('Info+Engagés'!H6),"",(SUM(H12:H36,H39,H37*2,H38*2)-H40)) -> 
A44: Total maxi par juge = 300 1 point correspond à 0,333% 1% correspond en points à : 3 Les notes sont sur 10 et correspondent à la saisie informatique par l'opérateur des protocoles joints, Le total résulte de l'addition des points attribués après application du coefficient et soustraction des points de pénalité encourus après conversion en pourcentage sont déduit les pourcentages de pénalités encourus par suite d'erreurs de tracé pour obtenir le pourcentage par juge.

Sheet Cav23
A1: ='Info+Engagés'!B3 -> Quel Lieu ? (Département ?) | D1: ='Info+Engagés'!B8 -> Amateur 3 Grand Prix (D1) | H1: ='Info+Engagés'!B2 -> Quelle Date ?
A3: N° de concours | D3: Cheval | F3: Cavalier | H3: Note d’ensemble | I3: =SUM(D34:H36,D39:H39,D37*2,E37*2,F37*2,G37*2,H37*2,D38*2,E38*2,F38*2,G38*2,H38*2) -> 0
A4: ='Info+Engagés'!B4 -> Quel N° ? | H4: Points | I4: =SUM(D43:H43) -> 38
A5: Épreuve N° | C5: ='Info+Engagés'!B5 -> Quel N° ? | D5: ='Info+Engagés'!B34 -> 0 | F5: ='Info+Engagés'!G34 -> 0 | H5: % Final | I5: =AVERAGE(D42:H42) -> 12.66666667
A6: Piste | C6: ='Info+Engagés'!B6 -> Quelle Piste ?
A7: N° Départ BO | C7: ='Info+Engagés'!A34 -> 23 | H7: Classement | I7: =INDEX(Résultats!P:P,MATCH(C7,Résultats!A:A,0)) -> 23
A9: Imprimé le : | C9: Coéff . | D9: Juge E | E9: Juge H | F9: Juge C | G9: Juge M | H9: Juge B | I9: écart Max
A10: =TODAY() -> 2017-03-26 | D10: =IF(ISBLANK('Info+Engagés'!H2),"",('Info+Engagés'!H2)) ->  | E10: =IF(ISBLANK('Info+Engagés'!H3),"",('Info+Engagés'!H3)) ->  | F10: =IF(ISBLANK('Info+Engagés'!H4),"",('Info+Engagés'!H4)) -> Nom du juge en C | G10: =IF(ISBLANK('Info+Engagés'!H5),"",('Info+Engagés'!H5)) ->  | H10: =IF(ISBLANK('Info+Engagés'!H6),"",('Info+Engagés'!H6)) -> 
A11: =NOW() -> 42820.46886
A12: Notation figures | B12: Figure 1 | C12: 1 | F12: 38 | I12: =MAX(D12:H12)-MIN(D12:H12) -> 0
B13: Figure 2 | C13: 1 | I13: 0
B14: Figure 3 | C14: 1 | I14: 0
B15: Figure 4 | C15: 1 | I15: 0
B16: Figure 5 | C16: 1 | I16: 0
B17: Figure 6 | C17: 1 | I17: 0
B18: Figure 7 | C18: 1 | I18: 0
B19: Figure 8 | C19: 1 | I19: 0
B20: Figure 9 | C20: 1 | I20: 0
B21: Figure 10 | C21: 1 | I21: 0
B22: Figure 11 | C22: 1 | I22: 0
B23: Figure 12 | C23: 1 | I23: 0
B24: Figure 13 | C24: 1 | I24: 0
B25: Figure 14 | C25: 1 | I25: 0
B26: Figure 15 | C26: 1 | I26: 0
B27: Figure 16 | C27: 1 | I27: 0
B28: Figure 17 | C28: 1 | I28: 0
B29: Figure 18 | C29: 1 | I29: 0
B30: Figure 19 | C30: 1 | I30: 0
B31: Figure 20 | C31: 1 | I31: 0
B32: Figure 21 | C32: 1 | I32: 0
B33: Figure 22 | C33: 1 | I33: 0
A34: Ensemble | B34: Ensemble 1 | C34: 1 | I34: 0
B35: Ensemble 2 | C35: 1 | I35: 0
B36: Ensemble 3 | C36: 1 | I36: 0
B37: Ensemble 4 | C37: 2 | I37: 0
B38: Ensemble 5 | C38: 2 | I38: 0
B39: Ensemble 6 | C39: 1 | I39: 0
A40: Pénalité en points
A41: Erreure(s) de tracé
A42: % Total du juge | D42: =IF(ISBLANK('Info+Engagés'!H2),"",D43/3-D41) ->  | E42: =IF(ISBLANK('Info+Engagés'!H3),"",E43/3-E41) ->  | F42: =IF(ISBLANK('Info+Engagés'!H4),"",F43/3-F41) -> 12.66666667 | G42: =IF(ISBLANK('Info+Engagés'!H5),"",G43/3-G41) ->  | H42: =IF(ISBLANK('Info+Engagés'!H6),"",H43/3-H41) ->  | I42: =MAX(D42:H42)-MIN(D42:H42) -> 0
A43: Soit en points | D43: =IF(ISBLANK('Info+Engagés'!H2),"",SUM(D12:D36,D39,D37*2,D38*2)-D40) ->  | E43: =IF(ISBLANK('Info+Engagés'!H3),"",(SUM(E12:E36,E39,E37*2,E38*2)-E40)) ->  | F43: =IF(ISBLANK('Info+Engagés'!H4),"",(SUM(F12:F36,F39,F37*2,F38*2)-F40)) -> 38 | G43: =IF(ISBLANK('Info+Engagés'!H5),"",(SUM(G12:G36,G39,G37*2,G38*2)-G40)) ->  | H43: =IF(ISBLANK('Info+Engagés'!H6),"",(SUM(H12:H36,H39,H37*2,H38*2)-H40)) -> 
A44: Total maxi par juge = 300 1 point correspond à 0,333% 1% correspond en points à : 3 Les notes sont sur 10 et correspondent à la saisie informatique par l'opérateur des protocoles joints, Le total résulte de l'addition des points attribués après application du coefficient et soustraction des points de pénalité encourus après conversion en pourcentage sont déduit les pourcentages de pénalités encourus par suite d'erreurs de tracé pour obtenir le pourcentage par juge.

Sheet Cav24
A1: ='Info+Engagés'!B3 -> Quel Lieu ? (Département ?) | D1: ='Info+Engagés'!B8 -> Amateur 3 Grand Prix (D1) | H1: ='Info+Engagés'!B2 -> Quelle Date ?
A3: N° de concours | D3: Cheval | F3: Cavalier | H3: Note d’ensemble | I3: =SUM(D34:H36,D39:H39,D37*2,E37*2,F37*2,G37*2,H37*2,D38*2,E38*2,F38*2,G38*2,H38*2) -> 0
A4: ='Info+Engagés'!B4 -> Quel N° ? | H4: Points | I4: =SUM(D43:H43) -> 37
A5: Épreuve N° | C5: ='Info+Engagés'!B5 -> Quel N° ? | D5: ='Info+Engagés'!B35 -> 0 | F5: ='Info+Engagés'!G35 -> 0 | H5: % Final | I5: =AVERAGE(D42:H42) -> 12.33333333
A6: Piste | C6: ='Info+Engagés'!B6 -> Quelle Piste ?
A7: N° Départ BO | C7: ='Info+Engagés'!A35 -> 24 | H7: Classement | I7: =INDEX(Résultats!P:P,MATCH(C7,Résultats!A:A,0)) -> 24
A9: Imprimé le : | C9: Coéff . | D9: Juge E | E9: Juge H | F9: Juge C | G9: Juge M | H9: Juge B | I9: écart Max
A10: =TODAY() -> 2017-03-26 | D10: =IF(ISBLANK('Info+Engagés'!H2),"",('Info+Engagés'!H2)) ->  | E10: =IF(ISBLANK('Info+Engagés'!H3),"",('Info+Engagés'!H3)) ->  | F10: =IF(ISBLANK('Info+Engagés'!H4),"",('Info+Engagés'!H4)) -> Nom du juge en C | G10: =IF(ISBLANK('Info+Engagés'!H5),"",('Info+Engagés'!H5)) ->  | H10: =IF(ISBLANK('Info+Engagés'!H6),"",('Info+Engagés'!H6)) -> 
A11: =NOW() -> 42820.46886
A12: Notation figures | B12: Figure 1 | C12: 1 | F12: 37 | I12: =MAX(D12:H12)-MIN(D12:H12) -> 0
B13: Figure 2 | C13: 1 | I13: 0
B14: Figure 3 | C14: 1 | I14: 0
B15: Figure 4 | C15: 1 | I15: 0
B16: Figure 5 | C16: 1 | I16: 0
B17: Figure 6 | C17: 1 | I17: 0
B18: Figure 7 | C18: 1 | I18: 0
B19: Figure 8 | C19: 1 | I19: 0
B20: Figure 9 | C20: 1 | I20: 0
B21: Figure 10 | C21: 1 | I21: 0
B22: Figure 11 | C22: 1 | I22: 0
B23: Figure 12 | C23: 1 | I23: 0
B24: Figure 13 | C24: 1 | I24: 0
B25: Figure 14 | C25: 1 | I25: 0
B26: Figure 15 | C26: 1 | I26: 0
B27: Figure 16 | C27: 1 | I27: 0
B28: Figure 17 | C28: 1 | I28: 0
B29: Figure 18 | C29: 1 | I29: 0
B30: Figure 19 | C30: 1 | I30: 0
B31: Figure 20 | C31: 1 | I31: 0
B32: Figure 21 | C32: 1 | I32: 0
B33: Figure 22 | C33: 1 | I33: 0
A34: Ensemble | B34: Ensemble 1 | C34: 1 | I34: 0
B35: Ensemble 2 | C35: 1 | I35: 0
B36: Ensemble 3 | C36: 1 | I36: 0
B37: Ensemble 4 | C37: 2 | I37: 0
B38: Ensemble 5 | C38: 2 | I38: 0
B39: Ensemble 6 | C39: 1 | I39: 0
A40: Pénalité en points
A41: Erreure(s) de tracé
A42: % Total du juge | D42: =IF(ISBLANK('Info+Engagés'!H2),"",D43/3-D41) ->  | E42: =IF(ISBLANK('Info+Engagés'!H3),"",E43/3-E41) ->  | F42: =IF(ISBLANK('Info+Engagés'!H4),"",F43/3-F41) -> 12.33333333 | G42: =IF(ISBLANK('Info+Engagés'!H5),"",G43/3-G41) ->  | H42: =IF(ISBLANK('Info+Engagés'!H6),"",H43/3-H41) ->  | I42: =MAX(D42:H42)-MIN(D42:H42) -> 0
A43: Soit en points | D43: =IF(ISBLANK('Info+Engagés'!H2),"",SUM(D12:D36,D39,D37*2,D38*2)-D40) ->  | E43: =IF(ISBLANK('Info+Engagés'!H3),"",(SUM(E12:E36,E39,E37*2,E38*2)-E40)) ->  | F43: =IF(ISBLANK('Info+Engagés'!H4),"",(SUM(F12:F36,F39,F37*2,F38*2)-F40)) -> 37 | G43: =IF(ISBLANK('Info+Engagés'!H5),"",(SUM(G12:G36,G39,G37*2,G38*2)-G40)) ->  | H43: =IF(ISBLANK('Info+Engagés'!H6),"",(SUM(H12:H36,H39,H37*2,H38*2)-H40)) -> 
A44: Total maxi par juge = 300 1 point correspond à 0,333% 1% correspond en points à : 3 Les notes sont sur 10 et correspondent à la saisie informatique par l'opérateur des protocoles joints, Le total résulte de l'addition des points attribués après application du coefficient et soustraction des points de pénalité encourus après conversion en pourcentage sont déduit les pourcentages de pénalités encourus par suite d'erreurs de tracé pour obtenir le pourcentage par juge.

Sheet Cav25
A1: ='Info+Engagés'!B3 -> Quel Lieu ? (Département ?) | D1: ='Info+Engagés'!B8 -> Amateur 3 Grand Prix (D1) | H1: ='Info+Engagés'!B2 -> Quelle Date ?
A3: N° de concours | D3: Cheval | F3: Cavalier | H3: Note d’ensemble | I3: =SUM(D34:H36,D39:H39,D37*2,E37*2,F37*2,G37*2,H37*2,D38*2,E38*2,F38*2,G38*2,H38*2) -> 0
A4: ='Info+Engagés'!B4 -> Quel N° ? | H4: Points | I4: =SUM(D43:H43) -> 36
A5: Épreuve N° | C5: ='Info+Engagés'!B5 -> Quel N° ? | D5: ='Info+Engagés'!B36 -> 0 | F5: ='Info+Engagés'!G36 -> 0 | H5: % Final | I5: =AVERAGE(D42:H42) -> 12
A6: Piste | C6: ='Info+Engagés'!B6 -> Quelle Piste ?
A7: N° Départ BO | C7: ='Info+Engagés'!A36 -> 25 | H7: Classement | I7: =INDEX(Résultats!P:P,MATCH(C7,Résultats!A:A,0)) -> 25
A9: Imprimé le : | C9: Coéff . | D9: Juge E | E9: Juge H | F9: Juge C | G9: Juge M | H9: Juge B | I9: écart Max
A10: =TODAY() -> 2017-03-26 | D10: =IF(ISBLANK('Info+Engagés'!H2),"",('Info+Engagés'!H2)) ->  | E10: =IF(ISBLANK('Info+Engagés'!H3),"",('Info+Engagés'!H3)) ->  | F10: =IF(ISBLANK('Info+Engagés'!H4),"",('Info+Engagés'!H4)) -> Nom du juge en C | G10: =IF(ISBLANK('Info+Engagés'!H5),"",('Info+Engagés'!H5)) ->  | H10: =IF(ISBLANK('Info+Engagés'!H6),"",('Info+Engagés'!H6)) -> 
A11: =NOW() -> 42820.46886
A12: Notation figures | B12: Figure 1 | C12: 1 | F12: 36 | I12: =MAX(D12:H12)-MIN(D12:H12) -> 0
B13: Figure 2 | C13: 1 | I13: 0
B14: Figure 3 | C14: 1 | I14: 0
B15: Figure 4 | C15: 1 | I15: 0
B16: Figure 5 | C16: 1 | I16: 0
B17: Figure 6 | C17: 1 | I17: 0
B18: Figure 7 | C18: 1 | I18: 0
B19: Figure 8 | C19: 1 | I19: 0
B20: Figure 9 | C20: 1 | I20: 0
B21: Figure 10 | C21: 1 | I21: 0
B22: Figure 11 | C22: 1 | I22: 0
B23: Figure 12 | C23: 1 | I23: 0
B24: Figure 13 | C24: 1 | I24: 0
B25: Figure 14 | C25: 1 | I25: 0
B26: Figure 15 | C26: 1 | I26: 0
B27: Figure 16 | C27: 1 | I27: 0
B28: Figure 17 | C28: 1 | I28: 0
B29: Figure 18 | C29: 1 | I29: 0
B30: Figure 19 | C30: 1 | I30: 0
B31: Figure 20 | C31: 1 | I31: 0
B32: Figure 21 | C32: 1 | I32: 0
B33: Figure 22 | C33: 1 | I33: 0
A34: Ensemble | B34: Ensemble 1 | C34: 1 | I34: 0
B35: Ensemble 2 | C35: 1 | I35: 0
B36: Ensemble 3 | C36: 1 | I36: 0
B37: Ensemble 4 | C37: 2 | I37: 0
B38: Ensemble 5 | C38: 2 | I38: 0
B39: Ensemble 6 | C39: 1 | I39: 0
A40: Pénalité en points
A41: Erreure(s) de tracé
A42: % Total du juge | D42: =IF(ISBLANK('Info+Engagés'!H2),"",D43/3-D41) ->  | E42: =IF(ISBLANK('Info+Engagés'!H3),"",E43/3-E41) ->  | F42: =IF(ISBLANK('Info+Engagés'!H4),"",F43/3-F41) -> 12 | G42: =IF(ISBLANK('Info+Engagés'!H5),"",G43/3-G41) ->  | H42: =IF(ISBLANK('Info+Engagés'!H6),"",H43/3-H41) ->  | I42: =MAX(D42:H42)-MIN(D42:H42) -> 0
A43: Soit en points | D43: =IF(ISBLANK('Info+Engagés'!H2),"",SUM(D12:D36,D39,D37*2,D38*2)-D40) ->  | E43: =IF(ISBLANK('Info+Engagés'!H3),"",(SUM(E12:E36,E39,E37*2,E38*2)-E40)) ->  | F43: =IF(ISBLANK('Info+Engagés'!H4),"",(SUM(F12:F36,F39,F37*2,F38*2)-F40)) -> 36 | G43: =IF(ISBLANK('Info+Engagés'!H5),"",(SUM(G12:G36,G39,G37*2,G38*2)-G40)) ->  | H43: =IF(ISBLANK('Info+Engagés'!H6),"",(SUM(H12:H36,H39,H37*2,H38*2)-H40)) -> 
A44: Total maxi par juge = 300 1 point correspond à 0,333% 1% correspond en points à : 3 Les notes sont sur 10 et correspondent à la saisie informatique par l'opérateur des protocoles joints, Le total résulte de l'addition des points attribués après application du coefficient et soustraction des points de pénalité encourus après conversion en pourcentage sont déduit les pourcentages de pénalités encourus par suite d'erreurs de tracé pour obtenir le pourcentage par juge.

Sheet Cav26
A1: ='Info+Engagés'!B3 -> Quel Lieu ? (Département ?) | D1: ='Info+Engagés'!B8 -> Amateur 3 Grand Prix (D1) | H1: ='Info+Engagés'!B2 -> Quelle Date ?
A3: N° de concours | D3: Cheval | F3: Cavalier | H3: Note d’ensemble | I3: =SUM(D34:H36,D39:H39,D37*2,E37*2,F37*2,G37*2,H37*2,D38*2,E38*2,F38*2,G38*2,H38*2) -> 0
A4: ='Info+Engagés'!B4 -> Quel N° ? | H4: Points | I4: =SUM(D43:H43) -> 35
A5: Épreuve N° | C5: ='Info+Engagés'!B5 -> Quel N° ? | D5: ='Info+Engagés'!B37 -> 0 | F5: ='Info+Engagés'!G37 -> 0 | H5: % Final | I5: =AVERAGE(D42:H42) -> 11.66666667
A6: Piste | C6: ='Info+Engagés'!B6 -> Quelle Piste ?
A7: N° Départ BO | C7: ='Info+Engagés'!A37 -> 26 | H7: Classement | I7: =INDEX(Résultats!P:P,MATCH(C7,Résultats!A:A,0)) -> 26
A9: Imprimé le : | C9: Coéff . | D9: Juge E | E9: Juge H | F9: Juge C | G9: Juge M | H9: Juge B | I9: écart Max
A10: =TODAY() -> 2017-03-26 | D10: =IF(ISBLANK('Info+Engagés'!H2),"",('Info+Engagés'!H2)) ->  | E10: =IF(ISBLANK('Info+Engagés'!H3),"",('Info+Engagés'!H3)) ->  | F10: =IF(ISBLANK('Info+Engagés'!H4),"",('Info+Engagés'!H4)) -> Nom du juge en C | G10: =IF(ISBLANK('Info+Engagés'!H5),"",('Info+Engagés'!H5)) ->  | H10: =IF(ISBLANK('Info+Engagés'!H6),"",('Info+Engagés'!H6)) -> 
A11: =NOW() -> 42820.46886
A12: Notation figures | B12: Figure 1 | C12: 1 | F12: 35 | I12: =MAX(D12:H12)-MIN(D12:H12) -> 0
B13: Figure 2 | C13: 1 | I13: 0
B14: Figure 3 | C14: 1 | I14: 0
B15: Figure 4 | C15: 1 | I15: 0
B16: Figure 5 | C16: 1 | I16: 0
B17: Figure 6 | C17: 1 | I17: 0
B18: Figure 7 | C18: 1 | I18: 0
B19: Figure 8 | C19: 1 | I19: 0
B20: Figure 9 | C20: 1 | I20: 0
B21: Figure 10 | C21: 1 | I21: 0
B22: Figure 11 | C22: 1 | I22: 0
B23: Figure 12 | C23: 1 | I23: 0
B24: Figure 13 | C24: 1 | I24: 0
B25: Figure 14 | C25: 1 | I25: 0
B26: Figure 15 | C26: 1 | I26: 0
B27: Figure 16 | C27: 1 | I27: 0
B28: Figure 17 | C28: 1 | I28: 0
B29: Figure 18 | C29: 1 | I29: 0
B30: Figure 19 | C30: 1 | I30: 0
B31: Figure 20 | C31: 1 | I31: 0
B32: Figure 21 | C32: 1 | I32: 0
B33: Figure 22 | C33: 1 | I33: 0
A34: Ensemble | B34: Ensemble 1 | C34: 1 | I34: 0
B35: Ensemble 2 | C35: 1 | I35: 0
B36: Ensemble 3 | C36: 1 | I36: 0
B37: Ensemble 4 | C37: 2 | I37: 0
B38: Ensemble 5 | C38: 2 | I38: 0
B39: Ensemble 6 | C39: 1 | I39: 0
A40: Pénalité en points
A41: Erreure(s) de tracé
A42: % Total du juge | D42: =IF(ISBLANK('Info+Engagés'!H2),"",D43/3-D41) ->  | E42: =IF(ISBLANK('Info+Engagés'!H3),"",E43/3-E41) ->  | F42: =IF(ISBLANK('Info+Engagés'!H4),"",F43/3-F41) -> 11.66666667 | G42: =IF(ISBLANK('Info+Engagés'!H5),"",G43/3-G41) ->  | H42: =IF(ISBLANK('Info+Engagés'!H6),"",H43/3-H41) ->  | I42: =MAX(D42:H42)-MIN(D42:H42) -> 0
A43: Soit en points | D43: =IF(ISBLANK('Info+Engagés'!H2),"",SUM(D12:D36,D39,D37*2,D38*2)-D40) ->  | E43: =IF(ISBLANK('Info+Engagés'!H3),"",(SUM(E12:E36,E39,E37*2,E38*2)-E40)) ->  | F43: =IF(ISBLANK('Info+Engagés'!H4),"",(SUM(F12:F36,F39,F37*2,F38*2)-F40)) -> 35 | G43: =IF(ISBLANK('Info+Engagés'!H5),"",(SUM(G12:G36,G39,G37*2,G38*2)-G40)) ->  | H43: =IF(ISBLANK('Info+Engagés'!H6),"",(SUM(H12:H36,H39,H37*2,H38*2)-H40)) -> 
A44: Total maxi par juge = 300 1 point correspond à 0,333% 1% correspond en points à : 3 Les notes sont sur 10 et correspondent à la saisie informatique par l'opérateur des protocoles joints, Le total résulte de l'addition des points attribués après application du coefficient et soustraction des points de pénalité encourus après conversion en pourcentage sont déduit les pourcentages de pénalités encourus par suite d'erreurs de tracé pour obtenir le pourcentage par juge.

Sheet Cav27
A1: ='Info+Engagés'!B3 -> Quel Lieu ? (Département ?) | D1: ='Info+Engagés'!B8 -> Amateur 3 Grand Prix (D1) | H1: ='Info+Engagés'!B2 -> Quelle Date ?
A3: N° de concours | D3: Cheval | F3: Cavalier | H3: Note d’ensemble | I3: =SUM(D34:H36,D39:H39,D37*2,E37*2,F37*2,G37*2,H37*2,D38*2,E38*2,F38*2,G38*2,H38*2) -> 0
A4: ='Info+Engagés'!B4 -> Quel N° ? | H4: Points | I4: =SUM(D43:H43) -> 34
A5: Épreuve N° | C5: ='Info+Engagés'!B5 -> Quel N° ? | D5: ='Info+Engagés'!B38 -> 0 | F5: ='Info+Engagés'!G38 -> 0 | H5: % Final | I5: =AVERAGE(D42:H42) -> 11.33333333
A6: Piste | C6: ='Info+Engagés'!B6 -> Quelle Piste ?
A7: N° Départ BO | C7: ='Info+Engagés'!A38 -> 27 | H7: Classement | I7: =INDEX(Résultats!P:P,MATCH(C7,Résultats!A:A,0)) -> 27
A9: Imprimé le : | C9: Coéff . | D9: Juge E | E9: Juge H | F9: Juge C | G9: Juge M | H9: Juge B | I9: écart Max
A10: =TODAY() -> 2017-03-26 | D10: =IF(ISBLANK('Info+Engagés'!H2),"",('Info+Engagés'!H2)) ->  | E10: =IF(ISBLANK('Info+Engagés'!H3),"",('Info+Engagés'!H3)) ->  | F10: =IF(ISBLANK('Info+Engagés'!H4),"",('Info+Engagés'!H4)) -> Nom du juge en C | G10: =IF(ISBLANK('Info+Engagés'!H5),"",('Info+Engagés'!H5)) ->  | H10: =IF(ISBLANK('Info+Engagés'!H6),"",('Info+Engagés'!H6)) -> 
A11: =NOW() -> 42820.46886
A12: Notation figures | B12: Figure 1 | C12: 1 | F12: 34 | I12: =MAX(D12:H12)-MIN(D12:H12) -> 0
B13: Figure 2 | C13: 1 | I13: 0
B14: Figure 3 | C14: 1 | I14: 0
B15: Figure 4 | C15: 1 | I15: 0
B16: Figure 5 | C16: 1 | I16: 0
B17: Figure 6 | C17: 1 | I17: 0
B18: Figure 7 | C18: 1 | I18: 0
B19: Figure 8 | C19: 1 | I19: 0
B20: Figure 9 | C20: 1 | I20: 0
B21: Figure 10 | C21: 1 | I21: 0
B22: Figure 11 | C22: 1 | I22: 0
B23: Figure 12 | C23: 1 | I23: 0
B24: Figure 13 | C24: 1 | I24: 0
B25: Figure 14 | C25: 1 | I25: 0
B26: Figure 15 | C26: 1 | I26: 0
B27: Figure 16 | C27: 1 | I27: 0
B28: Figure 17 | C28: 1 | I28: 0
B29: Figure 18 | C29: 1 | I29: 0
B30: Figure 19 | C30: 1 | I30: 0
B31: Figure 20 | C31: 1 | I31: 0
B32: Figure 21 | C32: 1 | I32: 0
B33: Figure 22 | C33: 1 | I33: 0
A34: Ensemble | B34: Ensemble 1 | C34: 1 | I34: 0
B35: Ensemble 2 | C35: 1 | I35: 0
B36: Ensemble 3 | C36: 1 | I36: 0
B37: Ensemble 4 | C37: 2 | I37: 0
B38: Ensemble 5 | C38: 2 | I38: 0
B39: Ensemble 6 | C39: 1 | I39: 0
A40: Pénalité en points
A41: Erreure(s) de tracé
A42: % Total du juge | D42: =IF(ISBLANK('Info+Engagés'!H2),"",D43/3-D41) ->  | E42: =IF(ISBLANK('Info+Engagés'!H3),"",E43/3-E41) ->  | F42: =IF(ISBLANK('Info+Engagés'!H4),"",F43/3-F41) -> 11.33333333 | G42: =IF(ISBLANK('Info+Engagés'!H5),"",G43/3-G41) ->  | H42: =IF(ISBLANK('Info+Engagés'!H6),"",H43/3-H41) ->  | I42: =MAX(D42:H42)-MIN(D42:H42) -> 0
A43: Soit en points | D43: =IF(ISBLANK('Info+Engagés'!H2),"",SUM(D12:D36,D39,D37*2,D38*2)-D40) ->  | E43: =IF(ISBLANK('Info+Engagés'!H3),"",(SUM(E12:E36,E39,E37*2,E38*2)-E40)) ->  | F43: =IF(ISBLANK('Info+Engagés'!H4),"",(SUM(F12:F36,F39,F37*2,F38*2)-F40)) -> 34 | G43: =IF(ISBLANK('Info+Engagés'!H5),"",(SUM(G12:G36,G39,G37*2,G38*2)-G40)) ->  | H43: =IF(ISBLANK('Info+Engagés'!H6),"",(SUM(H12:H36,H39,H37*2,H38*2)-H40)) -> 
A44: Total maxi par juge = 300 1 point correspond à 0,333% 1% correspond en points à : 3 Les notes sont sur 10 et correspondent à la saisie informatique par l'opérateur des protocoles joints, Le total résulte de l'addition des points attribués après application du coefficient et soustraction des points de pénalité encourus après conversion en pourcentage sont déduit les pourcentages de pénalités encourus par suite d'erreurs de tracé pour obtenir le pourcentage par juge.

Sheet Cav28
A1: ='Info+Engagés'!B3 -> Quel Lieu ? (Département ?) | D1: ='Info+Engagés'!B8 -> Amateur 3 Grand Prix (D1) | H1: ='Info+Engagés'!B2 -> Quelle Date ?
A3: N° de concours | D3: Cheval | F3: Cavalier | H3: Note d’ensemble | I3: =SUM(D34:H36,D39:H39,D37*2,E37*2,F37*2,G37*2,H37*2,D38*2,E38*2,F38*2,G38*2,H38*2) -> 0
A4: ='Info+Engagés'!B4 -> Quel N° ? | H4: Points | I4: =SUM(D43:H43) -> 33
A5: Épreuve N° | C5: ='Info+Engagés'!B5 -> Quel N° ? | D5: ='Info+Engagés'!B39 -> 0 | F5: ='Info+Engagés'!G39 -> 0 | H5: % Final | I5: =AVERAGE(D42:H42) -> 11
A6: Piste | C6: ='Info+Engagés'!B6 -> Quelle Piste ?
A7: N° Départ BO | C7: ='Info+Engagés'!A39 -> 28 | H7: Classement | I7: =INDEX(Résultats!P:P,MATCH(C7,Résultats!A:A,0)) -> 28
A9: Imprimé le : | C9: Coéff . | D9: Juge E | E9: Juge H | F9: Juge C | G9: Juge M | H9: Juge B | I9: écart Max
A10: =TODAY() -> 2017-03-26 | D10: =IF(ISBLANK('Info+Engagés'!H2),"",('Info+Engagés'!H2)) ->  | E10: =IF(ISBLANK('Info+Engagés'!H3),"",('Info+Engagés'!H3)) ->  | F10: =IF(ISBLANK('Info+Engagés'!H4),"",('Info+Engagés'!H4)) -> Nom du juge en C | G10: =IF(ISBLANK('Info+Engagés'!H5),"",('Info+Engagés'!H5)) ->  | H10: =IF(ISBLANK('Info+Engagés'!H6),"",('Info+Engagés'!H6)) -> 
A11: =NOW() -> 42820.46886
A12: Notation figures | B12: Figure 1 | C12: 1 | F12: 33 | I12: =MAX(D12:H12)-MIN(D12:H12) -> 0
B13: Figure 2 | C13: 1 | I13: 0
B14: Figure 3 | C14: 1 | I14: 0
B15: Figure 4 | C15: 1 | I15: 0
B16: Figure 5 | C16: 1 | I16: 0
B17: Figure 6 | C17: 1 | I17: 0
B18: Figure 7 | C18: 1 | I18: 0
B19: Figure 8 | C19: 1 | I19: 0
B20: Figure 9 | C20: 1 | I20: 0
B21: Figure 10 | C21: 1 | I21: 0
B22: Figure 11 | C22: 1 | I22: 0
B23: Figure 12 | C23: 1 | I23: 0
B24: Figure 13 | C24: 1 | I24: 0
B25: Figure 14 | C25: 1 | I25: 0
B26: Figure 15 | C26: 1 | I26: 0
B27: Figure 16 | C27: 1 | I27: 0
B28: Figure 17 | C28: 1 | I28: 0
B29: Figure 18 | C29: 1 | I29: 0
B30: Figure 19 | C30: 1 | I30: 0
B31: Figure 20 | C31: 1 | I31: 0
B32: Figure 21 | C32: 1 | I32: 0
B33: Figure 22 | C33: 1 | I33: 0
A34: Ensemble | B34: Ensemble 1 | C34: 1 | I34: 0
B35: Ensemble 2 | C35: 1 | I35: 0
B36: Ensemble 3 | C36: 1 | I36: 0
B37: Ensemble 4 | C37: 2 | I37: 0
B38: Ensemble 5 | C38: 2 | I38: 0
B39: Ensemble 6 | C39: 1 | I39: 0
A40: Pénalité en points
A41: Erreure(s) de tracé
A42: % Total du juge | D42: =IF(ISBLANK('Info+Engagés'!H2),"",D43/3-D41) ->  | E42: =IF(ISBLANK('Info+Engagés'!H3),"",E43/3-E41) ->  | F42: =IF(ISBLANK('Info+Engagés'!H4),"",F43/3-F41) -> 11 | G42: =IF(ISBLANK('Info+Engagés'!H5),"",G43/3-G41) ->  | H42: =IF(ISBLANK('Info+Engagés'!H6),"",H43/3-H41) ->  | I42: =MAX(D42:H42)-MIN(D42:H42) -> 0
A43: Soit en points | D43: =IF(ISBLANK('Info+Engagés'!H2),"",SUM(D12:D36,D39,D37*2,D38*2)-D40) ->  | E43: =IF(ISBLANK('Info+Engagés'!H3),"",(SUM(E12:E36,E39,E37*2,E38*2)-E40)) ->  | F43: =IF(ISBLANK('Info+Engagés'!H4),"",(SUM(F12:F36,F39,F37*2,F38*2)-F40)) -> 33 | G43: =IF(ISBLANK('Info+Engagés'!H5),"",(SUM(G12:G36,G39,G37*2,G38*2)-G40)) ->  | H43: =IF(ISBLANK('Info+Engagés'!H6),"",(SUM(H12:H36,H39,H37*2,H38*2)-H40)) -> 
A44: Total maxi par juge = 300 1 point correspond à 0,333% 1% correspond en points à : 3 Les notes sont sur 10 et correspondent à la saisie informatique par l'opérateur des protocoles joints, Le total résulte de l'addition des points attribués après application du coefficient et soustraction des points de pénalité encourus après conversion en pourcentage sont déduit les pourcentages de pénalités encourus par suite d'erreurs de tracé pour obtenir le pourcentage par juge.

Sheet Cav29
A1: ='Info+Engagés'!B3 -> Quel Lieu ? (Département ?) | D1: ='Info+Engagés'!B8 -> Amateur 3 Grand Prix (D1) | H1: ='Info+Engagés'!B2 -> Quelle Date ?
A3: N° de concours | D3: Cheval | F3: Cavalier | H3: Note d’ensemble | I3: =SUM(D34:H36,D39:H39,D37*2,E37*2,F37*2,G37*2,H37*2,D38*2,E38*2,F38*2,G38*2,H38*2) -> 0
A4: ='Info+Engagés'!B4 -> Quel N° ? | H4: Points | I4: =SUM(D43:H43) -> 32
A5: Épreuve N° | C5: ='Info+Engagés'!B5 -> Quel N° ? | D5: ='Info+Engagés'!B40 -> 0 | F5: ='Info+Engagés'!G40 -> 0 | H5: % Final | I5: =AVERAGE(D42:H42) -> 10.66666667
A6: Piste | C6: ='Info+Engagés'!B6 -> Quelle Piste ?
A7: N° Départ BO | C7: ='Info+Engagés'!A40 -> 29 | H7: Classement | I7: =INDEX(Résultats!P:P,MATCH(C7,Résultats!A:A,0)) -> 29
A9: Imprimé le : | C9: Coéff . | D9: Juge E | E9: Juge H | F9: Juge C | G9: Juge M | H9: Juge B | I9: écart Max
A10: =TODAY() -> 2017-03-26 | D10: =IF(ISBLANK('Info+Engagés'!H2),"",('Info+Engagés'!H2)) ->  | E10: =IF(ISBLANK('Info+Engagés'!H3),"",('Info+Engagés'!H3)) ->  | F10: =IF(ISBLANK('Info+Engagés'!H4),"",('Info+Engagés'!H4)) -> Nom du juge en C | G10: =IF(ISBLANK('Info+Engagés'!H5),"",('Info+Engagés'!H5)) ->  | H10: =IF(ISBLANK('Info+Engagés'!H6),"",('Info+Engagés'!H6)) -> 
A11: =NOW() -> 42820.46886
A12: Notation figures | B12: Figure 1 | C12: 1 | F12: 32 | I12: =MAX(D12:H12)-MIN(D12:H12) -> 0
B13: Figure 2 | C13: 1 | I13: 0
B14: Figure 3 | C14: 1 | I14: 0
B15: Figure 4 | C15: 1 | I15: 0
B16: Figure 5 | C16: 1 | I16: 0
B17: Figure 6 | C17: 1 | I17: 0
B18: Figure 7 | C18: 1 | I18: 0
B19: Figure 8 | C19: 1 | I19: 0
B20: Figure 9 | C20: 1 | I20: 0
B21: Figure 10 | C21: 1 | I21: 0
B22: Figure 11 | C22: 1 | I22: 0
B23: Figure 12 | C23: 1 | I23: 0
B24: Figure 13 | C24: 1 | I24: 0
B25: Figure 14 | C25: 1 | I25: 0
B26: Figure 15 | C26: 1 | I26: 0
B27: Figure 16 | C27: 1 | I27: 0
B28: Figure 17 | C28: 1 | I28: 0
B29: Figure 18 | C29: 1 | I29: 0
B30: Figure 19 | C30: 1 | I30: 0
B31: Figure 20 | C31: 1 | I31: 0
B32: Figure 21 | C32: 1 | I32: 0
B33: Figure 22 | C33: 1 | I33: 0
A34: Ensemble | B34: Ensemble 1 | C34: 1 | I34: 0
B35: Ensemble 2 | C35: 1 | I35: 0
B36: Ensemble 3 | C36: 1 | I36: 0
B37: Ensemble 4 | C37: 2 | I37: 0
B38: Ensemble 5 | C38: 2 | I38: 0
B39: Ensemble 6 | C39: 1 | I39: 0
A40: Pénalité en points
A41: Erreure(s) de tracé
A42: % Total du juge | D42: =IF(ISBLANK('Info+Engagés'!H2),"",D43/3-D41) ->  | E42: =IF(ISBLANK('Info+Engagés'!H3),"",E43/3-E41) ->  | F42: =IF(ISBLANK('Info+Engagés'!H4),"",F43/3-F41) -> 10.66666667 | G42: =IF(ISBLANK('Info+Engagés'!H5),"",G43/3-G41) ->  | H42: =IF(ISBLANK('Info+Engagés'!H6),"",H43/3-H41) ->  | I42: =MAX(D42:H42)-MIN(D42:H42) -> 0
A43: Soit en points | D43: =IF(ISBLANK('Info+Engagés'!H2),"",SUM(D12:D36,D39,D37*2,D38*2)-D40) ->  | E43: =IF(ISBLANK('Info+Engagés'!H3),"",(SUM(E12:E36,E39,E37*2,E38*2)-E40)) ->  | F43: =IF(ISBLANK('Info+Engagés'!H4),"",(SUM(F12:F36,F39,F37*2,F38*2)-F40)) -> 32 | G43: =IF(ISBLANK('Info+Engagés'!H5),"",(SUM(G12:G36,G39,G37*2,G38*2)-G40)) ->  | H43: =IF(ISBLANK('Info+Engagés'!H6),"",(SUM(H12:H36,H39,H37*2,H38*2)-H40)) -> 
A44: Total maxi par juge = 300 1 point correspond à 0,333% 1% correspond en points à : 3 Les notes sont sur 10 et correspondent à la saisie informatique par l'opérateur des protocoles joints, Le total résulte de l'addition des points attribués après application du coefficient et soustraction des points de pénalité encourus après conversion en pourcentage sont déduit les pourcentages de pénalités encourus par suite d'erreurs de tracé pour obtenir le pourcentage par juge.

Sheet Cav30
A1: ='Info+Engagés'!B3 -> Quel Lieu ? (Département ?) | D1: ='Info+Engagés'!B8 -> Amateur 3 Grand Prix (D1) | H1: ='Info+Engagés'!B2 -> Quelle Date ?
A3: N° de concours | D3: Cheval | F3: Cavalier | H3: Note d’ensemble | I3: =SUM(D34:H36,D39:H39,D37*2,E37*2,F37*2,G37*2,H37*2,D38*2,E38*2,F38*2,G38*2,H38*2) -> 0
A4: ='Info+Engagés'!B4 -> Quel N° ? | H4: Points | I4: =SUM(D43:H43) -> 31
A5: Épreuve N° | C5: ='Info+Engagés'!B5 -> Quel N° ? | D5: ='Info+Engagés'!B41 -> 0 | F5: ='Info+Engagés'!G41 -> 0 | H5: % Final | I5: =AVERAGE(D42:H42) -> 10.33333333
A6: Piste | C6: ='Info+Engagés'!B6 -> Quelle Piste ?
A7: N° Départ BO | C7: ='Info+Engagés'!A41 -> 30 | H7: Classement | I7: =INDEX(Résultats!P:P,MATCH(C7,Résultats!A:A,0)) -> 30
A9: Imprimé le : | C9: Coéff . | D9: Juge E | E9: Juge H | F9: Juge C | G9: Juge M | H9: Juge B | I9: écart Max
A10: =TODAY() -> 2017-03-26 | D10: =IF(ISBLANK('Info+Engagés'!H2),"",('Info+Engagés'!H2)) ->  | E10: =IF(ISBLANK('Info+Engagés'!H3),"",('Info+Engagés'!H3)) ->  | F10: =IF(ISBLANK('Info+Engagés'!H4),"",('Info+Engagés'!H4)) -> Nom du juge en C | G10: =IF(ISBLANK('Info+Engagés'!H5),"",('Info+Engagés'!H5)) ->  | H10: =IF(ISBLANK('Info+Engagés'!H6),"",('Info+Engagés'!H6)) -> 
A11: =NOW() -> 42820.46886
A12: Notation figures | B12: Figure 1 | C12: 1 | F12: 31 | I12: =MAX(D12:H12)-MIN(D12:H12) -> 0
B13: Figure 2 | C13: 1 | I13: 0
B14: Figure 3 | C14: 1 | I14: 0
B15: Figure 4 | C15: 1 | I15: 0
B16: Figure 5 | C16: 1 | I16: 0
B17: Figure 6 | C17: 1 | I17: 0
B18: Figure 7 | C18: 1 | I18: 0
B19: Figure 8 | C19: 1 | I19: 0
B20: Figure 9 | C20: 1 | I20: 0
B21: Figure 10 | C21: 1 | I21: 0
B22: Figure 11 | C22: 1 | I22: 0
B23: Figure 12 | C23: 1 | I23: 0
B24: Figure 13 | C24: 1 | I24: 0
B25: Figure 14 | C25: 1 | I25: 0
B26: Figure 15 | C26: 1 | I26: 0
B27: Figure 16 | C27: 1 | I27: 0
B28: Figure 17 | C28: 1 | I28: 0
B29: Figure 18 | C29: 1 | I29: 0
B30: Figure 19 | C30: 1 | I30: 0
B31: Figure 20 | C31: 1 | I31: 0
B32: Figure 21 | C32: 1 | I32: 0
B33: Figure 22 | C33: 1 | I33: 0
A34: Ensemble | B34: Ensemble 1 | C34: 1 | I34: 0
B35: Ensemble 2 | C35: 1 | I35: 0
B36: Ensemble 3 | C36: 1 | I36: 0
B37: Ensemble 4 | C37: 2 | I37: 0
B38: Ensemble 5 | C38: 2 | I38: 0
B39: Ensemble 6 | C39: 1 | I39: 0
A40: Pénalité en points
A41: Erreure(s) de tracé
A42: % Total du juge | D42: =IF(ISBLANK('Info+Engagés'!H2),"",D43/3-D41) ->  | E42: =IF(ISBLANK('Info+Engagés'!H3),"",E43/3-E41) ->  | F42: =IF(ISBLANK('Info+Engagés'!H4),"",F43/3-F41) -> 10.33333333 | G42: =IF(ISBLANK('Info+Engagés'!H5),"",G43/3-G41) ->  | H42: =IF(ISBLANK('Info+Engagés'!H6),"",H43/3-H41) ->  | I42: =MAX(D42:H42)-MIN(D42:H42) -> 0
A43: Soit en points | D43: =IF(ISBLANK('Info+Engagés'!H2),"",SUM(D12:D36,D39,D37*2,D38*2)-D40) ->  | E43: =IF(ISBLANK('Info+Engagés'!H3),"",(SUM(E12:E36,E39,E37*2,E38*2)-E40)) ->  | F43: =IF(ISBLANK('Info+Engagés'!H4),"",(SUM(F12:F36,F39,F37*2,F38*2)-F40)) -> 31 | G43: =IF(ISBLANK('Info+Engagés'!H5),"",(SUM(G12:G36,G39,G37*2,G38*2)-G40)) ->  | H43: =IF(ISBLANK('Info+Engagés'!H6),"",(SUM(H12:H36,H39,H37*2,H38*2)-H40)) -> 
A44: Total maxi par juge = 300 1 point correspond à 0,333% 1% correspond en points à : 3 Les notes sont sur 10 et correspondent à la saisie informatique par l'opérateur des protocoles joints, Le total résulte de l'addition des points attribués après application du coefficient et soustraction des points de pénalité encourus après conversion en pourcentage sont déduit les pourcentages de pénalités encourus par suite d'erreurs de tracé pour obtenir le pourcentage par juge.

Sheet Cav31
A1: ='Info+Engagés'!B3 -> Quel Lieu ? (Département ?) | D1: ='Info+Engagés'!B8 -> Amateur 3 Grand Prix (D1) | H1: ='Info+Engagés'!B2 -> Quelle Date ?
A3: N° de concours | D3: Cheval | F3: Cavalier | H3: Note d’ensemble | I3: =SUM(D34:H36,D39:H39,D37*2,E37*2,F37*2,G37*2,H37*2,D38*2,E38*2,F38*2,G38*2,H38*2) -> 0
A4: ='Info+Engagés'!B4 -> Quel N° ? | H4: Points | I4: =SUM(D43:H43) -> 30
A5: Épreuve N° | C5: ='Info+Engagés'!B5 -> Quel N° ? | D5: ='Info+Engagés'!B42 -> 0 | F5: ='Info+Engagés'!G42 -> 0 | H5: % Final | I5: =AVERAGE(D42:H42) -> 10
A6: Piste | C6: ='Info+Engagés'!B6 -> Quelle Piste ?
A7: N° Départ BO | C7: ='Info+Engagés'!A42 -> 31 | H7: Classement | I7: =INDEX(Résultats!P:P,MATCH(C7,Résultats!A:A,0)) -> 31
A9: Imprimé le : | C9: Coéff . | D9: Juge E | E9: Juge H | F9: Juge C | G9: Juge M | H9: Juge B | I9: écart Max
A10: =TODAY() -> 2017-03-26 | D10: =IF(ISBLANK('Info+Engagés'!H2),"",('Info+Engagés'!H2)) ->  | E10: =IF(ISBLANK('Info+Engagés'!H3),"",('Info+Engagés'!H3)) ->  | F10: =IF(ISBLANK('Info+Engagés'!H4),"",('Info+Engagés'!H4)) -> Nom du juge en C | G10: =IF(ISBLANK('Info+Engagés'!H5),"",('Info+Engagés'!H5)) ->  | H10: =IF(ISBLANK('Info+Engagés'!H6),"",('Info+Engagés'!H6)) -> 
A11: =NOW() -> 42820.46886
A12: Notation figures | B12: Figure 1 | C12: 1 | F12: 30 | I12: =MAX(D12:H12)-MIN(D12:H12) -> 0
B13: Figure 2 | C13: 1 | I13: 0
B14: Figure 3 | C14: 1 | I14: 0
B15: Figure 4 | C15: 1 | I15: 0
B16: Figure 5 | C16: 1 | I16: 0
B17: Figure 6 | C17: 1 | I17: 0
B18: Figure 7 | C18: 1 | I18: 0
B19: Figure 8 | C19: 1 | I19: 0
B20: Figure 9 | C20: 1 | I20: 0
B21: Figure 10 | C21: 1 | I21: 0
B22: Figure 11 | C22: 1 | I22: 0
B23: Figure 12 | C23: 1 | I23: 0
B24: Figure 13 | C24: 1 | I24: 0
B25: Figure 14 | C25: 1 | I25: 0
B26: Figure 15 | C26: 1 | I26: 0
B27: Figure 16 | C27: 1 | I27: 0
B28: Figure 17 | C28: 1 | I28: 0
B29: Figure 18 | C29: 1 | I29: 0
B30: Figure 19 | C30: 1 | I30: 0
B31: Figure 20 | C31: 1 | I31: 0
B32: Figure 21 | C32: 1 | I32: 0
B33: Figure 22 | C33: 1 | I33: 0
A34: Ensemble | B34: Ensemble 1 | C34: 1 | I34: 0
B35: Ensemble 2 | C35: 1 | I35: 0
B36: Ensemble 3 | C36: 1 | I36: 0
B37: Ensemble 4 | C37: 2 | I37: 0
B38: Ensemble 5 | C38: 2 | I38: 0
B39: Ensemble 6 | C39: 1 | I39: 0
A40: Pénalité en points
A41: Erreure(s) de tracé
A42: % Total du juge | D42: =IF(ISBLANK('Info+Engagés'!H2),"",D43/3-D41) ->  | E42: =IF(ISBLANK('Info+Engagés'!H3),"",E43/3-E41) ->  | F42: =IF(ISBLANK('Info+Engagés'!H4),"",F43/3-F41) -> 10 | G42: =IF(ISBLANK('Info+Engagés'!H5),"",G43/3-G41) ->  | H42: =IF(ISBLANK('Info+Engagés'!H6),"",H43/3-H41) ->  | I42: =MAX(D42:H42)-MIN(D42:H42) -> 0
A43: Soit en points | D43: =IF(ISBLANK('Info+Engagés'!H2),"",SUM(D12:D36,D39,D37*2,D38*2)-D40) ->  | E43: =IF(ISBLANK('Info+Engagés'!H3),"",(SUM(E12:E36,E39,E37*2,E38*2)-E40)) ->  | F43: =IF(ISBLANK('Info+Engagés'!H4),"",(SUM(F12:F36,F39,F37*2,F38*2)-F40)) -> 30 | G43: =IF(ISBLANK('Info+Engagés'!H5),"",(SUM(G12:G36,G39,G37*2,G38*2)-G40)) ->  | H43: =IF(ISBLANK('Info+Engagés'!H6),"",(SUM(H12:H36,H39,H37*2,H38*2)-H40)) -> 
A44: Total maxi par juge = 300 1 point correspond à 0,333% 1% correspond en points à : 3 Les notes sont sur 10 et correspondent à la saisie informatique par l'opérateur des protocoles joints, Le total résulte de l'addition des points attribués après application du coefficient et soustraction des points de pénalité encourus après conversion en pourcentage sont déduit les pourcentages de pénalités encourus par suite d'erreurs de tracé pour obtenir le pourcentage par juge.

Sheet Cav32
A1: ='Info+Engagés'!B3 -> Quel Lieu ? (Département ?) | D1: ='Info+Engagés'!B8 -> Amateur 3 Grand Prix (D1) | H1: ='Info+Engagés'!B2 -> Quelle Date ?
A3: N° de concours | D3: Cheval | F3: Cavalier | H3: Note d’ensemble | I3: =SUM(D34:H36,D39:H39,D37*2,E37*2,F37*2,G37*2,H37*2,D38*2,E38*2,F38*2,G38*2,H38*2) -> 0
A4: ='Info+Engagés'!B4 -> Quel N° ? | H4: Points | I4: =SUM(D43:H43) -> 29
A5: Épreuve N° | C5: ='Info+Engagés'!B5 -> Quel N° ? | D5: ='Info+Engagés'!B43 -> 0 | F5: ='Info+Engagés'!G43 -> 0 | H5: % Final | I5: =AVERAGE(D42:H42) -> 9.666666667
A6: Piste | C6: ='Info+Engagés'!B6 -> Quelle Piste ?
A7: N° Départ BO | C7: ='Info+Engagés'!A43 -> 32 | H7: Classement | I7: =INDEX(Résultats!P:P,MATCH(C7,Résultats!A:A,0)) -> 32
A9: Imprimé le : | C9: Coéff . | D9: Juge E | E9: Juge H | F9: Juge C | G9: Juge M | H9: Juge B | I9: écart Max
A10: =TODAY() -> 2017-03-26 | D10: =IF(ISBLANK('Info+Engagés'!H2),"",('Info+Engagés'!H2)) ->  | E10: =IF(ISBLANK('Info+Engagés'!H3),"",('Info+Engagés'!H3)) ->  | F10: =IF(ISBLANK('Info+Engagés'!H4),"",('Info+Engagés'!H4)) -> Nom du juge en C | G10: =IF(ISBLANK('Info+Engagés'!H5),"",('Info+Engagés'!H5)) ->  | H10: =IF(ISBLANK('Info+Engagés'!H6),"",('Info+Engagés'!H6)) -> 
A11: =NOW() -> 42820.46886
A12: Notation figures | B12: Figure 1 | C12: 1 | F12: 29 | I12: =MAX(D12:H12)-MIN(D12:H12) -> 0
B13: Figure 2 | C13: 1 | I13: 0
B14: Figure 3 | C14: 1 | I14: 0
B15: Figure 4 | C15: 1 | I15: 0
B16: Figure 5 | C16: 1 | I16: 0
B17: Figure 6 | C17: 1 | I17: 0
B18: Figure 7 | C18: 1 | I18: 0
B19: Figure 8 | C19: 1 | I19: 0
B20: Figure 9 | C20: 1 | I20: 0
B21: Figure 10 | C21: 1 | I21: 0
B22: Figure 11 | C22: 1 | I22: 0
B23: Figure 12 | C23: 1 | I23: 0
B24: Figure 13 | C24: 1 | I24: 0
B25: Figure 14 | C25: 1 | I25: 0
B26: Figure 15 | C26: 1 | I26: 0
B27: Figure 16 | C27: 1 | I27: 0
B28: Figure 17 | C28: 1 | I28: 0
B29: Figure 18 | C29: 1 | I29: 0
B30: Figure 19 | C30: 1 | I30: 0
B31: Figure 20 | C31: 1 | I31: 0
B32: Figure 21 | C32: 1 | I32: 0
B33: Figure 22 | C33: 1 | I33: 0
A34: Ensemble | B34: Ensemble 1 | C34: 1 | I34: 0
B35: Ensemble 2 | C35: 1 | I35: 0
B36: Ensemble 3 | C36: 1 | I36: 0
B37: Ensemble 4 | C37: 2 | I37: 0
B38: Ensemble 5 | C38: 2 | I38: 0
B39: Ensemble 6 | C39: 1 | I39: 0
A40: Pénalité en points
A41: Erreure(s) de tracé
A42: % Total du juge | D42: =IF(ISBLANK('Info+Engagés'!H2),"",D43/3-D41) ->  | E42: =IF(ISBLANK('Info+Engagés'!H3),"",E43/3-E41) ->  | F42: =IF(ISBLANK('Info+Engagés'!H4),"",F43/3-F41) -> 9.666666667 | G42: =IF(ISBLANK('Info+Engagés'!H5),"",G43/3-G41) ->  | H42: =IF(ISBLANK('Info+Engagés'!H6),"",H43/3-H41) ->  | I42: =MAX(D42:H42)-MIN(D42:H42) -> 0
A43: Soit en points | D43: =IF(ISBLANK('Info+Engagés'!H2),"",SUM(D12:D36,D39,D37*2,D38*2)-D40) ->  | E43: =IF(ISBLANK('Info+Engagés'!H3),"",(SUM(E12:E36,E39,E37*2,E38*2)-E40)) ->  | F43: =IF(ISBLANK('Info+Engagés'!H4),"",(SUM(F12:F36,F39,F37*2,F38*2)-F40)) -> 29 | G43: =IF(ISBLANK('Info+Engagés'!H5),"",(SUM(G12:G36,G39,G37*2,G38*2)-G40)) ->  | H43: =IF(ISBLANK('Info+Engagés'!H6),"",(SUM(H12:H36,H39,H37*2,H38*2)-H40)) -> 
A44: Total maxi par juge = 300 1 point correspond à 0,333% 1% correspond en points à : 3 Les notes sont sur 10 et correspondent à la saisie informatique par l'opérateur des protocoles joints, Le total résulte de l'addition des points attribués après application du coefficient et soustraction des points de pénalité encourus après conversion en pourcentage sont déduit les pourcentages de pénalités encourus par suite d'erreurs de tracé pour obtenir le pourcentage par juge.

Sheet Cav33
A1: ='Info+Engagés'!B3 -> Quel Lieu ? (Département ?) | D1: ='Info+Engagés'!B8 -> Amateur 3 Grand Prix (D1) | H1: ='Info+Engagés'!B2 -> Quelle Date ?
A3: N° de concours | D3: Cheval | F3: Cavalier | H3: Note d’ensemble | I3: =SUM(D34:H36,D39:H39,D37*2,E37*2,F37*2,G37*2,H37*2,D38*2,E38*2,F38*2,G38*2,H38*2) -> 0
A4: ='Info+Engagés'!B4 -> Quel N° ? | H4: Points | I4: =SUM(D43:H43) -> 28
A5: Épreuve N° | C5: ='Info+Engagés'!B5 -> Quel N° ? | D5: ='Info+Engagés'!B44 -> 0 | F5: ='Info+Engagés'!G44 -> 0 | H5: % Final | I5: =AVERAGE(D42:H42) -> 9.333333333
A6: Piste | C6: ='Info+Engagés'!B6 -> Quelle Piste ?
A7: N° Départ BO | C7: ='Info+Engagés'!A44 -> 33 | H7: Classement | I7: =INDEX(Résultats!P:P,MATCH(C7,Résultats!A:A,0)) -> 33
A9: Imprimé le : | C9: Coéff . | D9: Juge E | E9: Juge H | F9: Juge C | G9: Juge M | H9: Juge B | I9: écart Max
A10: =TODAY() -> 2017-03-26 | D10: =IF(ISBLANK('Info+Engagés'!H2),"",('Info+Engagés'!H2)) ->  | E10: =IF(ISBLANK('Info+Engagés'!H3),"",('Info+Engagés'!H3)) ->  | F10: =IF(ISBLANK('Info+Engagés'!H4),"",('Info+Engagés'!H4)) -> Nom du juge en C | G10: =IF(ISBLANK('Info+Engagés'!H5),"",('Info+Engagés'!H5)) ->  | H10: =IF(ISBLANK('Info+Engagés'!H6),"",('Info+Engagés'!H6)) -> 
A11: =NOW() -> 42820.46886
A12: Notation figures | B12: Figure 1 | C12: 1 | F12: 28 | I12: =MAX(D12:H12)-MIN(D12:H12) -> 0
B13: Figure 2 | C13: 1 | I13: 0
B14: Figure 3 | C14: 1 | I14: 0
B15: Figure 4 | C15: 1 | I15: 0
B16: Figure 5 | C16: 1 | I16: 0
B17: Figure 6 | C17: 1 | I17: 0
B18: Figure 7 | C18: 1 | I18: 0
B19: Figure 8 | C19: 1 | I19: 0
B20: Figure 9 | C20: 1 | I20: 0
B21: Figure 10 | C21: 1 | I21: 0
B22: Figure 11 | C22: 1 | I22: 0
B23: Figure 12 | C23: 1 | I23: 0
B24: Figure 13 | C24: 1 | I24: 0
B25: Figure 14 | C25: 1 | I25: 0
B26: Figure 15 | C26: 1 | I26: 0
B27: Figure 16 | C27: 1 | I27: 0
B28: Figure 17 | C28: 1 | I28: 0
B29: Figure 18 | C29: 1 | I29: 0
B30: Figure 19 | C30: 1 | I30: 0
B31: Figure 20 | C31: 1 | I31: 0
B32: Figure 21 | C32: 1 | I32: 0
B33: Figure 22 | C33: 1 | I33: 0
A34: Ensemble | B34: Ensemble 1 | C34: 1 | I34: 0
B35: Ensemble 2 | C35: 1 | I35: 0
B36: Ensemble 3 | C36: 1 | I36: 0
B37: Ensemble 4 | C37: 2 | I37: 0
B38: Ensemble 5 | C38: 2 | I38: 0
B39: Ensemble 6 | C39: 1 | I39: 0
A40: Pénalité en points
A41: Erreure(s) de tracé
A42: % Total du juge | D42: =IF(ISBLANK('Info+Engagés'!H2),"",D43/3-D41) ->  | E42: =IF(ISBLANK('Info+Engagés'!H3),"",E43/3-E41) ->  | F42: =IF(ISBLANK('Info+Engagés'!H4),"",F43/3-F41) -> 9.333333333 | G42: =IF(ISBLANK('Info+Engagés'!H5),"",G43/3-G41) ->  | H42: =IF(ISBLANK('Info+Engagés'!H6),"",H43/3-H41) ->  | I42: =MAX(D42:H42)-MIN(D42:H42) -> 0
A43: Soit en points | D43: =IF(ISBLANK('Info+Engagés'!H2),"",SUM(D12:D36,D39,D37*2,D38*2)-D40) ->  | E43: =IF(ISBLANK('Info+Engagés'!H3),"",(SUM(E12:E36,E39,E37*2,E38*2)-E40)) ->  | F43: =IF(ISBLANK('Info+Engagés'!H4),"",(SUM(F12:F36,F39,F37*2,F38*2)-F40)) -> 28 | G43: =IF(ISBLANK('Info+Engagés'!H5),"",(SUM(G12:G36,G39,G37*2,G38*2)-G40)) ->  | H43: =IF(ISBLANK('Info+Engagés'!H6),"",(SUM(H12:H36,H39,H37*2,H38*2)-H40)) -> 
A44: Total maxi par juge = 300 1 point correspond à 0,333% 1% correspond en points à : 3 Les notes sont sur 10 et correspondent à la saisie informatique par l'opérateur des protocoles joints, Le total résulte de l'addition des points attribués après application du coefficient et soustraction des points de pénalité encourus après conversion en pourcentage sont déduit les pourcentages de pénalités encourus par suite d'erreurs de tracé pour obtenir le pourcentage par juge.

Sheet Cav34
A1: ='Info+Engagés'!B3 -> Quel Lieu ? (Département ?) | D1: ='Info+Engagés'!B8 -> Amateur 3 Grand Prix (D1) | H1: ='Info+Engagés'!B2 -> Quelle Date ?
A3: N° de concours | D3: Cheval | F3: Cavalier | H3: Note d’ensemble | I3: =SUM(D34:H36,D39:H39,D37*2,E37*2,F37*2,G37*2,H37*2,D38*2,E38*2,F38*2,G38*2,H38*2) -> 0
A4: ='Info+Engagés'!B4 -> Quel N° ? | H4: Points | I4: =SUM(D43:H43) -> 27
A5: Épreuve N° | C5: ='Info+Engagés'!B5 -> Quel N° ? | D5: ='Info+Engagés'!B45 -> 0 | F5: ='Info+Engagés'!G45 -> 0 | H5: % Final | I5: =AVERAGE(D42:H42) -> 9
A6: Piste | C6: ='Info+Engagés'!B6 -> Quelle Piste ?
A7: N° Départ BO | C7: ='Info+Engagés'!A45 -> 34 | H7: Classement | I7: =INDEX(Résultats!P:P,MATCH(C7,Résultats!A:A,0)) -> 34
A9: Imprimé le : | C9: Coéff . | D9: Juge E | E9: Juge H | F9: Juge C | G9: Juge M | H9: Juge B | I9: écart Max
A10: =TODAY() -> 2017-03-26 | D10: =IF(ISBLANK('Info+Engagés'!H2),"",('Info+Engagés'!H2)) ->  | E10: =IF(ISBLANK('Info+Engagés'!H3),"",('Info+Engagés'!H3)) ->  | F10: =IF(ISBLANK('Info+Engagés'!H4),"",('Info+Engagés'!H4)) -> Nom du juge en C | G10: =IF(ISBLANK('Info+Engagés'!H5),"",('Info+Engagés'!H5)) ->  | H10: =IF(ISBLANK('Info+Engagés'!H6),"",('Info+Engagés'!H6)) -> 
A11: =NOW() -> 42820.46886
A12: Notation figures | B12: Figure 1 | C12: 1 | F12: 27 | I12: =MAX(D12:H12)-MIN(D12:H12) -> 0
B13: Figure 2 | C13: 1 | I13: 0
B14: Figure 3 | C14: 1 | I14: 0
B15: Figure 4 | C15: 1 | I15: 0
B16: Figure 5 | C16: 1 | I16: 0
B17: Figure 6 | C17: 1 | I17: 0
B18: Figure 7 | C18: 1 | I18: 0
B19: Figure 8 | C19: 1 | I19: 0
B20: Figure 9 | C20: 1 | I20: 0
B21: Figure 10 | C21: 1 | I21: 0
B22: Figure 11 | C22: 1 | I22: 0
B23: Figure 12 | C23: 1 | I23: 0
B24: Figure 13 | C24: 1 | I24: 0
B25: Figure 14 | C25: 1 | I25: 0
B26: Figure 15 | C26: 1 | I26: 0
B27: Figure 16 | C27: 1 | I27: 0
B28: Figure 17 | C28: 1 | I28: 0
B29: Figure 18 | C29: 1 | I29: 0
B30: Figure 19 | C30: 1 | I30: 0
B31: Figure 20 | C31: 1 | I31: 0
B32: Figure 21 | C32: 1 | I32: 0
B33: Figure 22 | C33: 1 | I33: 0
A34: Ensemble | B34: Ensemble 1 | C34: 1 | I34: 0
B35: Ensemble 2 | C35: 1 | I35: 0
B36: Ensemble 3 | C36: 1 | I36: 0
B37: Ensemble 4 | C37: 2 | I37: 0
B38: Ensemble 5 | C38: 2 | I38: 0
B39: Ensemble 6 | C39: 1 | I39: 0
A40: Pénalité en points
A41: Erreure(s) de tracé
A42: % Total du juge | D42: =IF(ISBLANK('Info+Engagés'!H2),"",D43/3-D41) ->  | E42: =IF(ISBLANK('Info+Engagés'!H3),"",E43/3-E41) ->  | F42: =IF(ISBLANK('Info+Engagés'!H4),"",F43/3-F41) -> 9 | G42: =IF(ISBLANK('Info+Engagés'!H5),"",G43/3-G41) ->  | H42: =IF(ISBLANK('Info+Engagés'!H6),"",H43/3-H41) ->  | I42: =MAX(D42:H42)-MIN(D42:H42) -> 0
A43: Soit en points | D43: =IF(ISBLANK('Info+Engagés'!H2),"",SUM(D12:D36,D39,D37*2,D38*2)-D40) ->  | E43: =IF(ISBLANK('Info+Engagés'!H3),"",(SUM(E12:E36,E39,E37*2,E38*2)-E40)) ->  | F43: =IF(ISBLANK('Info+Engagés'!H4),"",(SUM(F12:F36,F39,F37*2,F38*2)-F40)) -> 27 | G43: =IF(ISBLANK('Info+Engagés'!H5),"",(SUM(G12:G36,G39,G37*2,G38*2)-G40)) ->  | H43: =IF(ISBLANK('Info+Engagés'!H6),"",(SUM(H12:H36,H39,H37*2,H38*2)-H40)) -> 
A44: Total maxi par juge = 300 1 point correspond à 0,333% 1% correspond en points à : 3 Les notes sont sur 10 et correspondent à la saisie informatique par l'opérateur des protocoles joints, Le total résulte de l'addition des points attribués après application du coefficient et soustraction des points de pénalité encourus après conversion en pourcentage sont déduit les pourcentages de pénalités encourus par suite d'erreurs de tracé pour obtenir le pourcentage par juge.

Sheet Cav35
A1: ='Info+Engagés'!B3 -> Quel Lieu ? (Département ?) | D1: ='Info+Engagés'!B8 -> Amateur 3 Grand Prix (D1) | H1: ='Info+Engagés'!B2 -> Quelle Date ?
A3: N° de concours | D3: Cheval | F3: Cavalier | H3: Note d’ensemble | I3: =SUM(D34:H36,D39:H39,D37*2,E37*2,F37*2,G37*2,H37*2,D38*2,E38*2,F38*2,G38*2,H38*2) -> 0
A4: ='Info+Engagés'!B4 -> Quel N° ? | H4: Points | I4: =SUM(D43:H43) -> 26
A5: Épreuve N° | C5: ='Info+Engagés'!B5 -> Quel N° ? | D5: ='Info+Engagés'!B46 -> 0 | F5: ='Info+Engagés'!G46 -> 0 | H5: % Final | I5: =AVERAGE(D42:H42) -> 8.666666667
A6: Piste | C6: ='Info+Engagés'!B6 -> Quelle Piste ?
A7: N° Départ BO | C7: ='Info+Engagés'!A46 -> 35 | H7: Classement | I7: =INDEX(Résultats!P:P,MATCH(C7,Résultats!A:A,0)) -> 35
A9: Imprimé le : | C9: Coéff . | D9: Juge E | E9: Juge H | F9: Juge C | G9: Juge M | H9: Juge B | I9: écart Max
A10: =TODAY() -> 2017-03-26 | D10: =IF(ISBLANK('Info+Engagés'!H2),"",('Info+Engagés'!H2)) ->  | E10: =IF(ISBLANK('Info+Engagés'!H3),"",('Info+Engagés'!H3)) ->  | F10: =IF(ISBLANK('Info+Engagés'!H4),"",('Info+Engagés'!H4)) -> Nom du juge en C | G10: =IF(ISBLANK('Info+Engagés'!H5),"",('Info+Engagés'!H5)) ->  | H10: =IF(ISBLANK('Info+Engagés'!H6),"",('Info+Engagés'!H6)) -> 
A11: =NOW() -> 42820.46886
A12: Notation figures | B12: Figure 1 | C12: 1 | F12: 26 | I12: =MAX(D12:H12)-MIN(D12:H12) -> 0
B13: Figure 2 | C13: 1 | I13: 0
B14: Figure 3 | C14: 1 | I14: 0
B15: Figure 4 | C15: 1 | I15: 0
B16: Figure 5 | C16: 1 | I16: 0
B17: Figure 6 | C17: 1 | I17: 0
B18: Figure 7 | C18: 1 | I18: 0
B19: Figure 8 | C19: 1 | I19: 0
B20: Figure 9 | C20: 1 | I20: 0
B21: Figure 10 | C21: 1 | I21: 0
B22: Figure 11 | C22: 1 | I22: 0
B23: Figure 12 | C23: 1 | I23: 0
B24: Figure 13 | C24: 1 | I24: 0
B25: Figure 14 | C25: 1 | I25: 0
B26: Figure 15 | C26: 1 | I26: 0
B27: Figure 16 | C27: 1 | I27: 0
B28: Figure 17 | C28: 1 | I28: 0
B29: Figure 18 | C29: 1 | I29: 0
B30: Figure 19 | C30: 1 | I30: 0
B31: Figure 20 | C31: 1 | I31: 0
B32: Figure 21 | C32: 1 | I32: 0
B33: Figure 22 | C33: 1 | I33: 0
A34: Ensemble | B34: Ensemble 1 | C34: 1 | I34: 0
B35: Ensemble 2 | C35: 1 | I35: 0
B36: Ensemble 3 | C36: 1 | I36: 0
B37: Ensemble 4 | C37: 2 | I37: 0
B38: Ensemble 5 | C38: 2 | I38: 0
B39: Ensemble 6 | C39: 1 | I39: 0
A40: Pénalité en points
A41: Erreure(s) de tracé
A42: % Total du juge | D42: =IF(ISBLANK('Info+Engagés'!H2),"",D43/3-D41) ->  | E42: =IF(ISBLANK('Info+Engagés'!H3),"",E43/3-E41) ->  | F42: =IF(ISBLANK('Info+Engagés'!H4),"",F43/3-F41) -> 8.666666667 | G42: =IF(ISBLANK('Info+Engagés'!H5),"",G43/3-G41) ->  | H42: =IF(ISBLANK('Info+Engagés'!H6),"",H43/3-H41) ->  | I42: =MAX(D42:H42)-MIN(D42:H42) -> 0
A43: Soit en points | D43: =IF(ISBLANK('Info+Engagés'!H2),"",SUM(D12:D36,D39,D37*2,D38*2)-D40) ->  | E43: =IF(ISBLANK('Info+Engagés'!H3),"",(SUM(E12:E36,E39,E37*2,E38*2)-E40)) ->  | F43: =IF(ISBLANK('Info+Engagés'!H4),"",(SUM(F12:F36,F39,F37*2,F38*2)-F40)) -> 26 | G43: =IF(ISBLANK('Info+Engagés'!H5),"",(SUM(G12:G36,G39,G37*2,G38*2)-G40)) ->  | H43: =IF(ISBLANK('Info+Engagés'!H6),"",(SUM(H12:H36,H39,H37*2,H38*2)-H40)) -> 
A44: Total maxi par juge = 300 1 point correspond à 0,333% 1% correspond en points à : 3 Les notes sont sur 10 et correspondent à la saisie informatique par l'opérateur des protocoles joints, Le total résulte de l'addition des points attribués après application du coefficient et soustraction des points de pénalité encourus après conversion en pourcentage sont déduit les pourcentages de pénalités encourus par suite d'erreurs de tracé pour obtenir le pourcentage par juge.

Sheet Cav36
A1: ='Info+Engagés'!B3 -> Quel Lieu ? (Département ?) | D1: ='Info+Engagés'!B8 -> Amateur 3 Grand Prix (D1) | H1: ='Info+Engagés'!B2 -> Quelle Date ?
A3: N° de concours | D3: Cheval | F3: Cavalier | H3: Note d’ensemble | I3: =SUM(D34:H36,D39:H39,D37*2,E37*2,F37*2,G37*2,H37*2,D38*2,E38*2,F38*2,G38*2,H38*2) -> 0
A4: ='Info+Engagés'!B4 -> Quel N° ? | H4: Points | I4: =SUM(D43:H43) -> 25
A5: Épreuve N° | C5: ='Info+Engagés'!B5 -> Quel N° ? | D5: ='Info+Engagés'!B47 -> 0 | F5: ='Info+Engagés'!G47 -> 0 | H5: % Final | I5: =AVERAGE(D42:H42) -> 8.333333333
A6: Piste | C6: ='Info+Engagés'!B6 -> Quelle Piste ?
A7: N° Départ BO | C7: ='Info+Engagés'!A47 -> 36 | H7: Classement | I7: =INDEX(Résultats!P:P,MATCH(C7,Résultats!A:A,0)) -> 36
A9: Imprimé le : | C9: Coéff . | D9: Juge E | E9: Juge H | F9: Juge C | G9: Juge M | H9: Juge B | I9: écart Max
A10: =TODAY() -> 2017-03-26 | D10: =IF(ISBLANK('Info+Engagés'!H2),"",('Info+Engagés'!H2)) ->  | E10: =IF(ISBLANK('Info+Engagés'!H3),"",('Info+Engagés'!H3)) ->  | F10: =IF(ISBLANK('Info+Engagés'!H4),"",('Info+Engagés'!H4)) -> Nom du juge en C | G10: =IF(ISBLANK('Info+Engagés'!H5),"",('Info+Engagés'!H5)) ->  | H10: =IF(ISBLANK('Info+Engagés'!H6),"",('Info+Engagés'!H6)) -> 
A11: =NOW() -> 42820.46886
A12: Notation figures | B12: Figure 1 | C12: 1 | F12: 25 | I12: =MAX(D12:H12)-MIN(D12:H12) -> 0
B13: Figure 2 | C13: 1 | I13: 0
B14: Figure 3 | C14: 1 | I14: 0
B15: Figure 4 | C15: 1 | I15: 0
B16: Figure 5 | C16: 1 | I16: 0
B17: Figure 6 | C17: 1 | I17: 0
B18: Figure 7 | C18: 1 | I18: 0
B19: Figure 8 | C19: 1 | I19: 0
B20: Figure 9 | C20: 1 | I20: 0
B21: Figure 10 | C21: 1 | I21: 0
B22: Figure 11 | C22: 1 | I22: 0
B23: Figure 12 | C23: 1 | I23: 0
B24: Figure 13 | C24: 1 | I24: 0
B25: Figure 14 | C25: 1 | I25: 0
B26: Figure 15 | C26: 1 | I26: 0
B27: Figure 16 | C27: 1 | I27: 0
B28: Figure 17 | C28: 1 | I28: 0
B29: Figure 18 | C29: 1 | I29: 0
B30: Figure 19 | C30: 1 | I30: 0
B31: Figure 20 | C31: 1 | I31: 0
B32: Figure 21 | C32: 1 | I32: 0
B33: Figure 22 | C33: 1 | I33: 0
A34: Ensemble | B34: Ensemble 1 | C34: 1 | I34: 0
B35: Ensemble 2 | C35: 1 | I35: 0
B36: Ensemble 3 | C36: 1 | I36: 0
B37: Ensemble 4 | C37: 2 | I37: 0
B38: Ensemble 5 | C38: 2 | I38: 0
B39: Ensemble 6 | C39: 1 | I39: 0
A40: Pénalité en points
A41: Erreure(s) de tracé
A42: % Total du juge | D42: =IF(ISBLANK('Info+Engagés'!H2),"",D43/3-D41) ->  | E42: =IF(ISBLANK('Info+Engagés'!H3),"",E43/3-E41) ->  | F42: =IF(ISBLANK('Info+Engagés'!H4),"",F43/3-F41) -> 8.333333333 | G42: =IF(ISBLANK('Info+Engagés'!H5),"",G43/3-G41) ->  | H42: =IF(ISBLANK('Info+Engagés'!H6),"",H43/3-H41) ->  | I42: =MAX(D42:H42)-MIN(D42:H42) -> 0
A43: Soit en points | D43: =IF(ISBLANK('Info+Engagés'!H2),"",SUM(D12:D36,D39,D37*2,D38*2)-D40) ->  | E43: =IF(ISBLANK('Info+Engagés'!H3),"",(SUM(E12:E36,E39,E37*2,E38*2)-E40)) ->  | F43: =IF(ISBLANK('Info+Engagés'!H4),"",(SUM(F12:F36,F39,F37*2,F38*2)-F40)) -> 25 | G43: =IF(ISBLANK('Info+Engagés'!H5),"",(SUM(G12:G36,G39,G37*2,G38*2)-G40)) ->  | H43: =IF(ISBLANK('Info+Engagés'!H6),"",(SUM(H12:H36,H39,H37*2,H38*2)-H40)) -> 
A44: Total maxi par juge = 300 1 point correspond à 0,333% 1% correspond en points à : 3 Les notes sont sur 10 et correspondent à la saisie informatique par l'opérateur des protocoles joints, Le total résulte de l'addition des points attribués après application du coefficient et soustraction des points de pénalité encourus après conversion en pourcentage sont déduit les pourcentages de pénalités encourus par suite d'erreurs de tracé pour obtenir le pourcentage par juge.

Sheet Cav37
A1: ='Info+Engagés'!B3 -> Quel Lieu ? (Département ?) | D1: ='Info+Engagés'!B8 -> Amateur 3 Grand Prix (D1) | H1: ='Info+Engagés'!B2 -> Quelle Date ?
A3: N° de concours | D3: Cheval | F3: Cavalier | H3: Note d’ensemble | I3: =SUM(D34:H36,D39:H39,D37*2,E37*2,F37*2,G37*2,H37*2,D38*2,E38*2,F38*2,G38*2,H38*2) -> 0
A4: ='Info+Engagés'!B4 -> Quel N° ? | H4: Points | I4: =SUM(D43:H43) -> 24
A5: Épreuve N° | C5: ='Info+Engagés'!B5 -> Quel N° ? | D5: ='Info+Engagés'!B48 -> 0 | F5: ='Info+Engagés'!G48 -> 0 | H5: % Final | I5: =AVERAGE(D42:H42) -> 8
A6: Piste | C6: ='Info+Engagés'!B6 -> Quelle Piste ?
A7: N° Départ BO | C7: ='Info+Engagés'!A48 -> 37 | H7: Classement | I7: =INDEX(Résultats!P:P,MATCH(C7,Résultats!A:A,0)) -> 37
A9: Imprimé le : | C9: Coéff . | D9: Juge E | E9: Juge H | F9: Juge C | G9: Juge M | H9: Juge B | I9: écart Max
A10: =TODAY() -> 2017-03-26 | D10: =IF(ISBLANK('Info+Engagés'!H2),"",('Info+Engagés'!H2)) ->  | E10: =IF(ISBLANK('Info+Engagés'!H3),"",('Info+Engagés'!H3)) ->  | F10: =IF(ISBLANK('Info+Engagés'!H4),"",('Info+Engagés'!H4)) -> Nom du juge en C | G10: =IF(ISBLANK('Info+Engagés'!H5),"",('Info+Engagés'!H5)) ->  | H10: =IF(ISBLANK('Info+Engagés'!H6),"",('Info+Engagés'!H6)) -> 
A11: =NOW() -> 42820.46886
A12: Notation figures | B12: Figure 1 | C12: 1 | F12: 24 | I12: =MAX(D12:H12)-MIN(D12:H12) -> 0
B13: Figure 2 | C13: 1 | I13: 0
B14: Figure 3 | C14: 1 | I14: 0
B15: Figure 4 | C15: 1 | I15: 0
B16: Figure 5 | C16: 1 | I16: 0
B17: Figure 6 | C17: 1 | I17: 0
B18: Figure 7 | C18: 1 | I18: 0
B19: Figure 8 | C19: 1 | I19: 0
B20: Figure 9 | C20: 1 | I20: 0
B21: Figure 10 | C21: 1 | I21: 0
B22: Figure 11 | C22: 1 | I22: 0
B23: Figure 12 | C23: 1 | I23: 0
B24: Figure 13 | C24: 1 | I24: 0
B25: Figure 14 | C25: 1 | I25: 0
B26: Figure 15 | C26: 1 | I26: 0
B27: Figure 16 | C27: 1 | I27: 0
B28: Figure 17 | C28: 1 | I28: 0
B29: Figure 18 | C29: 1 | I29: 0
B30: Figure 19 | C30: 1 | I30: 0
B31: Figure 20 | C31: 1 | I31: 0
B32: Figure 21 | C32: 1 | I32: 0
B33: Figure 22 | C33: 1 | I33: 0
A34: Ensemble | B34: Ensemble 1 | C34: 1 | I34: 0
B35: Ensemble 2 | C35: 1 | I35: 0
B36: Ensemble 3 | C36: 1 | I36: 0
B37: Ensemble 4 | C37: 2 | I37: 0
B38: Ensemble 5 | C38: 2 | I38: 0
B39: Ensemble 6 | C39: 1 | I39: 0
A40: Pénalité en points
A41: Erreure(s) de tracé
A42: % Total du juge | D42: =IF(ISBLANK('Info+Engagés'!H2),"",D43/3-D41) ->  | E42: =IF(ISBLANK('Info+Engagés'!H3),"",E43/3-E41) ->  | F42: =IF(ISBLANK('Info+Engagés'!H4),"",F43/3-F41) -> 8 | G42: =IF(ISBLANK('Info+Engagés'!H5),"",G43/3-G41) ->  | H42: =IF(ISBLANK('Info+Engagés'!H6),"",H43/3-H41) ->  | I42: =MAX(D42:H42)-MIN(D42:H42) -> 0
A43: Soit en points | D43: =IF(ISBLANK('Info+Engagés'!H2),"",SUM(D12:D36,D39,D37*2,D38*2)-D40) ->  | E43: =IF(ISBLANK('Info+Engagés'!H3),"",(SUM(E12:E36,E39,E37*2,E38*2)-E40)) ->  | F43: =IF(ISBLANK('Info+Engagés'!H4),"",(SUM(F12:F36,F39,F37*2,F38*2)-F40)) -> 24 | G43: =IF(ISBLANK('Info+Engagés'!H5),"",(SUM(G12:G36,G39,G37*2,G38*2)-G40)) ->  | H43: =IF(ISBLANK('Info+Engagés'!H6),"",(SUM(H12:H36,H39,H37*2,H38*2)-H40)) -> 
A44: Total maxi par juge = 300 1 point correspond à 0,333% 1% correspond en points à : 3 Les notes sont sur 10 et correspondent à la saisie informatique par l'opérateur des protocoles joints, Le total résulte de l'addition des points attribués après application du coefficient et soustraction des points de pénalité encourus après conversion en pourcentage sont déduit les pourcentages de pénalités encourus par suite d'erreurs de tracé pour obtenir le pourcentage par juge.

Sheet Cav38
A1: ='Info+Engagés'!B3 -> Quel Lieu ? (Département ?) | D1: ='Info+Engagés'!B8 -> Amateur 3 Grand Prix (D1) | H1: ='Info+Engagés'!B2 -> Quelle Date ?
A3: N° de concours | D3: Cheval | F3: Cavalier | H3: Note d’ensemble | I3: =SUM(D34:H36,D39:H39,D37*2,E37*2,F37*2,G37*2,H37*2,D38*2,E38*2,F38*2,G38*2,H38*2) -> 0
A4: ='Info+Engagés'!B4 -> Quel N° ? | H4: Points | I4: =SUM(D43:H43) -> 23
A5: Épreuve N° | C5: ='Info+Engagés'!B5 -> Quel N° ? | D5: ='Info+Engagés'!B49 -> 0 | F5: ='Info+Engagés'!G49 -> 0 | H5: % Final | I5: =AVERAGE(D42:H42) -> 7.666666667
A6: Piste | C6: ='Info+Engagés'!B6 -> Quelle Piste ?
A7: N° Départ BO | C7: ='Info+Engagés'!A49 -> 38 | H7: Classement | I7: =INDEX(Résultats!P:P,MATCH(C7,Résultats!A:A,0)) -> 38
A9: Imprimé le : | C9: Coéff . | D9: Juge E | E9: Juge H | F9: Juge C | G9: Juge M | H9: Juge B | I9: écart Max
A10: =TODAY() -> 2017-03-26 | D10: =IF(ISBLANK('Info+Engagés'!H2),"",('Info+Engagés'!H2)) ->  | E10: =IF(ISBLANK('Info+Engagés'!H3),"",('Info+Engagés'!H3)) ->  | F10: =IF(ISBLANK('Info+Engagés'!H4),"",('Info+Engagés'!H4)) -> Nom du juge en C | G10: =IF(ISBLANK('Info+Engagés'!H5),"",('Info+Engagés'!H5)) ->  | H10: =IF(ISBLANK('Info+Engagés'!H6),"",('Info+Engagés'!H6)) -> 
A11: =NOW() -> 42820.46886
A12: Notation figures | B12: Figure 1 | C12: 1 | F12: 23 | I12: =MAX(D12:H12)-MIN(D12:H12) -> 0
B13: Figure 2 | C13: 1 | I13: 0
B14: Figure 3 | C14: 1 | I14: 0
B15: Figure 4 | C15: 1 | I15: 0
B16: Figure 5 | C16: 1 | I16: 0
B17: Figure 6 | C17: 1 | I17: 0
B18: Figure 7 | C18: 1 | I18: 0
B19: Figure 8 | C19: 1 | I19: 0
B20: Figure 9 | C20: 1 | I20: 0
B21: Figure 10 | C21: 1 | I21: 0
B22: Figure 11 | C22: 1 | I22: 0
B23: Figure 12 | C23: 1 | I23: 0
B24: Figure 13 | C24: 1 | I24: 0
B25: Figure 14 | C25: 1 | I25: 0
B26: Figure 15 | C26: 1 | I26: 0
B27: Figure 16 | C27: 1 | I27: 0
B28: Figure 17 | C28: 1 | I28: 0
B29: Figure 18 | C29: 1 | I29: 0
B30: Figure 19 | C30: 1 | I30: 0
B31: Figure 20 | C31: 1 | I31: 0
B32: Figure 21 | C32: 1 | I32: 0
B33: Figure 22 | C33: 1 | I33: 0
A34: Ensemble | B34: Ensemble 1 | C34: 1 | I34: 0
B35: Ensemble 2 | C35: 1 | I35: 0
B36: Ensemble 3 | C36: 1 | I36: 0
B37: Ensemble 4 | C37: 2 | I37: 0
B38: Ensemble 5 | C38: 2 | I38: 0
B39: Ensemble 6 | C39: 1 | I39: 0
A40: Pénalité en points
A41: Erreure(s) de tracé
A42: % Total du juge | D42: =IF(ISBLANK('Info+Engagés'!H2),"",D43/3-D41) ->  | E42: =IF(ISBLANK('Info+Engagés'!H3),"",E43/3-E41) ->  | F42: =IF(ISBLANK('Info+Engagés'!H4),"",F43/3-F41) -> 7.666666667 | G42: =IF(ISBLANK('Info+Engagés'!H5),"",G43/3-G41) ->  | H42: =IF(ISBLANK('Info+Engagés'!H6),"",H43/3-H41) ->  | I42: =MAX(D42:H42)-MIN(D42:H42) -> 0
A43: Soit en points | D43: =IF(ISBLANK('Info+Engagés'!H2),"",SUM(D12:D36,D39,D37*2,D38*2)-D40) ->  | E43: =IF(ISBLANK('Info+Engagés'!H3),"",(SUM(E12:E36,E39,E37*2,E38*2)-E40)) ->  | F43: =IF(ISBLANK('Info+Engagés'!H4),"",(SUM(F12:F36,F39,F37*2,F38*2)-F40)) -> 23 | G43: =IF(ISBLANK('Info+Engagés'!H5),"",(SUM(G12:G36,G39,G37*2,G38*2)-G40)) ->  | H43: =IF(ISBLANK('Info+Engagés'!H6),"",(SUM(H12:H36,H39,H37*2,H38*2)-H40)) -> 
A44: Total maxi par juge = 300 1 point correspond à 0,333% 1% correspond en points à : 3 Les notes sont sur 10 et correspondent à la saisie informatique par l'opérateur des protocoles joints, Le total résulte de l'addition des points attribués après application du coefficient et soustraction des points de pénalité encourus après conversion en pourcentage sont déduit les pourcentages de pénalités encourus par suite d'erreurs de tracé pour obtenir le pourcentage par juge.

Sheet Cav39
A1: ='Info+Engagés'!B3 -> Quel Lieu ? (Département ?) | D1: ='Info+Engagés'!B8 -> Amateur 3 Grand Prix (D1) | H1: ='Info+Engagés'!B2 -> Quelle Date ?
A3: N° de concours | D3: Cheval | F3: Cavalier | H3: Note d’ensemble | I3: =SUM(D34:H36,D39:H39,D37*2,E37*2,F37*2,G37*2,H37*2,D38*2,E38*2,F38*2,G38*2,H38*2) -> 0
A4: ='Info+Engagés'!B4 -> Quel N° ? | H4: Points | I4: =SUM(D43:H43) -> 22
A5: Épreuve N° | C5: ='Info+Engagés'!B5 -> Quel N° ? | D5: ='Info+Engagés'!B50 -> 0 | F5: ='Info+Engagés'!G50 -> 0 | H5: % Final | I5: =AVERAGE(D42:H42) -> 7.333333333
A6: Piste | C6: ='Info+Engagés'!B6 -> Quelle Piste ?
A7: N° Départ BO | C7: ='Info+Engagés'!A50 -> 39 | H7: Classement | I7: =INDEX(Résultats!P:P,MATCH(C7,Résultats!A:A,0)) -> 39
A9: Imprimé le : | C9: Coéff . | D9: Juge E | E9: Juge H | F9: Juge C | G9: Juge M | H9: Juge B | I9: écart Max
A10: =TODAY() -> 2017-03-26 | D10: =IF(ISBLANK('Info+Engagés'!H2),"",('Info+Engagés'!H2)) ->  | E10: =IF(ISBLANK('Info+Engagés'!H3),"",('Info+Engagés'!H3)) ->  | F10: =IF(ISBLANK('Info+Engagés'!H4),"",('Info+Engagés'!H4)) -> Nom du juge en C | G10: =IF(ISBLANK('Info+Engagés'!H5),"",('Info+Engagés'!H5)) ->  | H10: =IF(ISBLANK('Info+Engagés'!H6),"",('Info+Engagés'!H6)) -> 
A11: =NOW() -> 42820.46886
A12: Notation figures | B12: Figure 1 | C12: 1 | F12: 22 | I12: =MAX(D12:H12)-MIN(D12:H12) -> 0
B13: Figure 2 | C13: 1 | I13: 0
B14: Figure 3 | C14: 1 | I14: 0
B15: Figure 4 | C15: 1 | I15: 0
B16: Figure 5 | C16: 1 | I16: 0
B17: Figure 6 | C17: 1 | I17: 0
B18: Figure 7 | C18: 1 | I18: 0
B19: Figure 8 | C19: 1 | I19: 0
B20: Figure 9 | C20: 1 | I20: 0
B21: Figure 10 | C21: 1 | I21: 0
B22: Figure 11 | C22: 1 | I22: 0
B23: Figure 12 | C23: 1 | I23: 0
B24: Figure 13 | C24: 1 | I24: 0
B25: Figure 14 | C25: 1 | I25: 0
B26: Figure 15 | C26: 1 | I26: 0
B27: Figure 16 | C27: 1 | I27: 0
B28: Figure 17 | C28: 1 | I28: 0
B29: Figure 18 | C29: 1 | I29: 0
B30: Figure 19 | C30: 1 | I30: 0
B31: Figure 20 | C31: 1 | I31: 0
B32: Figure 21 | C32: 1 | I32: 0
B33: Figure 22 | C33: 1 | I33: 0
A34: Ensemble | B34: Ensemble 1 | C34: 1 | I34: 0
B35: Ensemble 2 | C35: 1 | I35: 0
B36: Ensemble 3 | C36: 1 | I36: 0
B37: Ensemble 4 | C37: 2 | I37: 0
B38: Ensemble 5 | C38: 2 | I38: 0
B39: Ensemble 6 | C39: 1 | I39: 0
A40: Pénalité en points
A41: Erreure(s) de tracé
A42: % Total du juge | D42: =IF(ISBLANK('Info+Engagés'!H2),"",D43/3-D41) ->  | E42: =IF(ISBLANK('Info+Engagés'!H3),"",E43/3-E41) ->  | F42: =IF(ISBLANK('Info+Engagés'!H4),"",F43/3-F41) -> 7.333333333 | G42: =IF(ISBLANK('Info+Engagés'!H5),"",G43/3-G41) ->  | H42: =IF(ISBLANK('Info+Engagés'!H6),"",H43/3-H41) ->  | I42: =MAX(D42:H42)-MIN(D42:H42) -> 0
A43: Soit en points | D43: =IF(ISBLANK('Info+Engagés'!H2),"",SUM(D12:D36,D39,D37*2,D38*2)-D40) ->  | E43: =IF(ISBLANK('Info+Engagés'!H3),"",(SUM(E12:E36,E39,E37*2,E38*2)-E40)) ->  | F43: =IF(ISBLANK('Info+Engagés'!H4),"",(SUM(F12:F36,F39,F37*2,F38*2)-F40)) -> 22 | G43: =IF(ISBLANK('Info+Engagés'!H5),"",(SUM(G12:G36,G39,G37*2,G38*2)-G40)) ->  | H43: =IF(ISBLANK('Info+Engagés'!H6),"",(SUM(H12:H36,H39,H37*2,H38*2)-H40)) -> 
A44: Total maxi par juge = 300 1 point correspond à 0,333% 1% correspond en points à : 3 Les notes sont sur 10 et correspondent à la saisie informatique par l'opérateur des protocoles joints, Le total résulte de l'addition des points attribués après application du coefficient et soustraction des points de pénalité encourus après conversion en pourcentage sont déduit les pourcentages de pénalités encourus par suite d'erreurs de tracé pour obtenir le pourcentage par juge.

Sheet Cav40
A1: ='Info+Engagés'!B3 -> Quel Lieu ? (Département ?) | D1: ='Info+Engagés'!B8 -> Amateur 3 Grand Prix (D1) | H1: ='Info+Engagés'!B2 -> Quelle Date ?
A3: N° de concours | D3: Cheval | F3: Cavalier | H3: Note d’ensemble | I3: =SUM(D34:H36,D39:H39,D37*2,E37*2,F37*2,G37*2,H37*2,D38*2,E38*2,F38*2,G38*2,H38*2) -> 0
A4: ='Info+Engagés'!B4 -> Quel N° ? | H4: Points | I4: =SUM(D43:H43) -> 0
A5: Épreuve N° | C5: ='Info+Engagés'!B5 -> Quel N° ? | D5: ='Info+Engagés'!B51 -> 0 | F5: ='Info+Engagés'!G51 -> 0 | H5: % Final | I5: =AVERAGE(D42:H42) -> 0
A6: Piste | C6: ='Info+Engagés'!B6 -> Quelle Piste ?
A7: N° Départ BO | C7: ='Info+Engagés'!A51 -> 40 | H7: Classement | I7: =INDEX(Résultats!P:P,MATCH(C7,Résultats!A:A,0)) -> 40
A9: Imprimé le : | C9: Coéff . | D9: Juge E | E9: Juge H | F9: Juge C | G9: Juge M | H9: Juge B | I9: écart Max
A10: =TODAY() -> 2017-03-26 | D10: =IF(ISBLANK('Info+Engagés'!H2),"",('Info+Engagés'!H2)) ->  | E10: =IF(ISBLANK('Info+Engagés'!H3),"",('Info+Engagés'!H3)) ->  | F10: =IF(ISBLANK('Info+Engagés'!H4),"",('Info+Engagés'!H4)) -> Nom du juge en C | G10: =IF(ISBLANK('Info+Engagés'!H5),"",('Info+Engagés'!H5)) ->  | H10: =IF(ISBLANK('Info+Engagés'!H6),"",('Info+Engagés'!H6)) -> 
A11: =NOW() -> 42820.46886
A12: Notation figures | B12: Figure 1 | C12: 1 | I12: =MAX(D12:H12)-MIN(D12:H12) -> 0
B13: Figure 2 | C13: 1 | I13: 0
B14: Figure 3 | C14: 1 | I14: 0
B15: Figure 4 | C15: 1 | I15: 0
B16: Figure 5 | C16: 1 | I16: 0
B17: Figure 6 | C17: 1 | I17: 0
B18: Figure 7 | C18: 1 | I18: 0
B19: Figure 8 | C19: 1 | I19: 0
B20: Figure 9 | C20: 1 | I20: 0
B21: Figure 10 | C21: 1 | I21: 0
B22: Figure 11 | C22: 1 | I22: 0
B23: Figure 12 | C23: 1 | I23: 0
B24: Figure 13 | C24: 1 | I24: 0
B25: Figure 14 | C25: 1 | I25: 0
B26: Figure 15 | C26: 1 | I26: 0
B27: Figure 16 | C27: 1 | I27: 0
B28: Figure 17 | C28: 1 | I28: 0
B29: Figure 18 | C29: 1 | I29: 0
B30: Figure 19 | C30: 1 | I30: 0
B31: Figure 20 | C31: 1 | I31: 0
B32: Figure 21 | C32: 1 | I32: 0
B33: Figure 22 | C33: 1 | I33: 0
A34: Ensemble | B34: Ensemble 1 | C34: 1 | I34: 0
B35: Ensemble 2 | C35: 1 | I35: 0
B36: Ensemble 3 | C36: 1 | I36: 0
B37: Ensemble 4 | C37: 2 | I37: 0
B38: Ensemble 5 | C38: 2 | I38: 0
B39: Ensemble 6 | C39: 1 | I39: 0
A40: Pénalité en points
A41: Erreure(s) de tracé
A42: % Total du juge | D42: =IF(ISBLANK('Info+Engagés'!H2),"",D43/3-D41) ->  | E42: =IF(ISBLANK('Info+Engagés'!H3),"",E43/3-E41) ->  | F42: =IF(ISBLANK('Info+Engagés'!H4),"",F43/3-F41) -> 0 | G42: =IF(ISBLANK('Info+Engagés'!H5),"",G43/3-G41) ->  | H42: =IF(ISBLANK('Info+Engagés'!H6),"",H43/3-H41) ->  | I42: =MAX(D42:H42)-MIN(D42:H42) -> 0
A43: Soit en points | D43: =IF(ISBLANK('Info+Engagés'!H2),"",SUM(D12:D36,D39,D37*2,D38*2)-D40) ->  | E43: =IF(ISBLANK('Info+Engagés'!H3),"",(SUM(E12:E36,E39,E37*2,E38*2)-E40)) ->  | F43: =IF(ISBLANK('Info+Engagés'!H4),"",(SUM(F12:F36,F39,F37*2,F38*2)-F40)) -> 0 | G43: =IF(ISBLANK('Info+Engagés'!H5),"",(SUM(G12:G36,G39,G37*2,G38*2)-G40)) ->  | H43: =IF(ISBLANK('Info+Engagés'!H6),"",(SUM(H12:H36,H39,H37*2,H38*2)-H40)) -> 
A44: Total maxi par juge = 300 1 point correspond à 0,333% 1% correspond en points à : 3 Les notes sont sur 10 et correspondent à la saisie informatique par l'opérateur des protocoles joints, Le total résulte de l'addition des points attribués après application du coefficient et soustraction des points de pénalité encourus après conversion en pourcentage sont déduit les pourcentages de pénalités encourus par suite d'erreurs de tracé pour obtenir le pourcentage par juge.

Sheet Résultats
A1: ='Info+Engagés'!B3 -> Quel Lieu ? (Département ?) | D1: ='Info+Engagés'!B8 -> Amateur 3 Grand Prix (D1) | P1: Inscrtits | R1: 4 | S1: Dont Erreure | T1: Répartition Dotation | AA1: Ne jamais effacer les valeurs ci-dessous elles sont indispensables au bon fonctionnement de la feuille de calcul
P2: Forfaits
A3: Concours N° | C3: ='Info+Engagés'!B4 -> Quel N° ? | D3: Juge E | E3: =IF(ISBLANK('Info+Engagés'!H2),"",('Info+Engagés'!H2)) ->  | P3: Non Partants | AB3: Classement Nombre de partants
A4: Epreuve N° | C4: ='Info+Engagés'!B5 -> Quel N° ? | D4: Juge H | E4: =IF(ISBLANK('Info+Engagés'!H3),"",('Info+Engagés'!H3)) ->  | P4: Partant | R4: =R1-R2-R3 -> 4
A5: Piste N° | C5: ='Info+Engagés'!B6 -> Quelle Piste ? | D5: Juge C | E5: =IF(ISBLANK('Info+Engagés'!H4),"",('Info+Engagés'!H4)) -> Nom du juge en C | P5: Abandons | AB5: 22 à 24 19 à 21 16 à 18 13 à 15 10 à 12 7 à 9 4 à 6 1 à 3 | AC5: 50 | AD5: 24 | AE5: 21 | AF5: 18 | AG5: 15 | AH5: 12 | AI5: 9 | AJ5: 6 | AK5: 3
A6: Imprimé le : | C6: =TODAY() -> 2017-03-26 | D6: Juge M | E6: =IF(ISBLANK('Info+Engagés'!H5),"",('Info+Engagés'!H5)) ->  | P6: Eliminés | AB6: 1 | AC6: 0.25 | AD6: 0.25 | AE6: 0.25 | AF6: 0.25 | AG6: 0.25 | AH6: 0.19 | AI6: 0.15 | AJ6: 0.12 | AK6: 0.1
A7: A: | C7: =NOW() -> 42820.46886 | D7: Juge B | E7: =IF(ISBLANK('Info+Engagés'!H6),"",('Info+Engagés'!H6)) ->  | P7: Classés | R7: =IF(ISBLANK(R1),"",ROUNDUP(R4/3,0)) -> 2 | AB7: 2 | AC7: 0.19 | AD7: 0.19 | AE7: 0.19 | AF7: 0.19 | AG7: 0.19 | AH7: 0.15 | AI7: 0.12 | AJ7: 0.1
A8: Dotation | C8: ='Info+Engagés'!K8 -> 0 | D8: Juge E | F8: Juge H | H8: Juge C | J8: Juge M | L8: Juge B | N8: Total | Q8: Np. Abd. Eli. | R8: Note d'ensemble | V8: Gain | AB8: 3 | AC8: 0.15 | AD8: 0.15 | AE8: 0.15 | AF8: 0.15 | AG8: 0.15 | AH8: 0.12 | AI8: 0.1
A9: N° | B9: CHEVAL | C9: CAVALIER | D9: % | E9: cl | F9: % | G9: cl | H9: % | I9: cl | J9: % | K9: cl | L9: % | M9: cl | N9: Pts | O9: % | P9: Cl Final | V9: calculé | AB9: 4 | AC9: 0.12 | AD9: 0.12 | AE9: 0.12 | AF9: 0.12 | AG9: 0.12 | AH9: 0.1
A10: =IF(ISBLANK('Info+Engagés'!A12),"",('Info+Engagés'!A12)) -> 1 | B10: =IF(ISBLANK('Info+Engagés'!B12),"",('Info+Engagés'!B12)) -> Cheval de Caroline | C10: =IF(ISBLANK('Info+Engagés'!G12),"",('Info+Engagés'!G12)) -> Caroline | D10: =IF(OR(ISBLANK('Info+Engagés'!A12),ISBLANK('Info+Engagés'!H2)),"",('Cav1'!D42)) ->  | E10: =IF(OR(ISBLANK('Info+Engagés'!A12),ISBLANK('Info+Engagés'!H2)),"",RANK(D10,$D$10:$D$49)) ->  | F10: =IF(OR(ISBLANK('Info+Engagés'!A12),ISBLANK('Info+Engagés'!H3)),"",('Cav1'!E42)) ->  | G10: =IF(OR(ISBLANK('Info+Engagés'!A12),ISBLANK('Info+Engagés'!H3)),"",RANK(F10,$F$10:$F$49)) ->  | H10: =IF(OR(ISBLANK('Info+Engagés'!A12),ISBLANK('Info+Engagés'!H4)),"",('Cav1'!F42)) -> 20 | I10: =IF(OR(ISBLANK('Info+Engagés'!A12),ISBLANK('Info+Engagés'!H4)),"",RANK(H10,$H$10:$H$49)) -> 1 | J10: =IF(OR(ISBLANK('Info+Engagés'!A12),ISBLANK('Info+Engagés'!H5)),"",('Cav1'!G42)) ->  | K10: =IF(OR(ISBLANK('Info+Engagés'!A12),ISBLANK('Info+Engagés'!H5)),"",RANK(J10,$J$10:$J$49)) ->  | L10: =IF(OR(ISBLANK('Info+Engagés'!A12),ISBLANK('Info+Engagés'!H6)),"",('Cav1'!H42)) ->  | M10: =IF(OR(ISBLANK('Info+Engagés'!A12),ISBLANK('Info+Engagés'!H6)),"",RANK(L10,$L$10:$L$49)) ->  | N10: =IF(ISBLANK('Info+Engagés'!A12),"",('Cav1'!I4)) -> 60 | O10: =IF(ISBLANK('Info+Engagés'!A12),"",('Cav1'!I5)) -> 20 | P10: =IF(ISBLANK('Info+Engagés'!$A$12),"",IF(RANK(U10,$U$10:$U$49)<4,RANK(U10,$U$10:$U$49),RANK(O10,$O$10:$O$49))) -> 1 | R10: =IF(ISBLANK('Info+Engagés'!A12),"",'Cav1'!I3) -> 0 | S10: =IF(ISBLANK('Cav1'!F41),"",-('Cav1'!F41)/100) ->  | T10: =IF(OR(P10="",Q10<>""),"",IFERROR(IF(COUNTIF($P$10:$P$49,P10)=1,INDEX($V$10:$V$49,P10),SUMPRODUCT(($P$10:$P$49=P10)*$V$10:$V$49/COUNTIF($P$10:$P$49,P10))),"")) -> 0 | U10: =IF(O10="","",O10+IF(R10<>0,R10/1000,0)) -> 20 | V10: =$C$8*INDEX($AC$6:$AL$50,MATCH(ROW()-9,$AB$6:$AB$50,0),MATCH($R$4,$AC$5:$AL$5,-1)) -> 0 | AB10: 5 | AC10: 0.1 | AD10: 0.1 | AE10: 0.1 | AF10: 0.1 | AG10: 0.1
A11: =IF(ISBLANK('Info+Engagés'!A13),"",('Info+Engagés'!A13)) -> 2 | B11: =IF(ISBLANK('Info+Engagés'!B13),"",('Info+Engagés'!B13)) -> Cheval de Christophe | C11: =IF(ISBLANK('Info+Engagés'!G13),"",('Info+Engagés'!G13)) -> Christophe | D11: =IF(OR(ISBLANK('Info+Engagés'!A13),ISBLANK('Info+Engagés'!H2)),"",('Cav2'!D42)) ->  | E11: =IF(OR(ISBLANK('Info+Engagés'!A13),ISBLANK('Info+Engagés'!H2)),"",RANK(D11,$D$10:$D$49)) ->  | F11: =IF(OR(ISBLANK('Info+Engagés'!A13),ISBLANK('Info+Engagés'!H3)),"",('Cav2'!E42)) ->  | G11: =IF(OR(ISBLANK('Info+Engagés'!A13),ISBLANK('Info+Engagés'!H3)),"",RANK(F11,$F$10:$F$49)) ->  | H11: =IF(OR(ISBLANK('Info+Engagés'!A13),ISBLANK('Info+Engagés'!H4)),"",('Cav2'!F42)) -> 19.66666667 | I11: =IF(OR(ISBLANK('Info+Engagés'!A13),ISBLANK('Info+Engagés'!H4)),"",RANK(H11,$H$10:$H$49)) -> 2 | J11: =IF(OR(ISBLANK('Info+Engagés'!A13),ISBLANK('Info+Engagés'!H5)),"",('Cav2'!G42)) ->  | K11: =IF(OR(ISBLANK('Info+Engagés'!A13),ISBLANK('Info+Engagés'!H5)),"",RANK(J11,$J$10:$J$49)) ->  | L11: =IF(OR(ISBLANK('Info+Engagés'!A13),ISBLANK('Info+Engagés'!H6)),"",('Cav2'!H42)) ->  | M11: =IF(OR(ISBLANK('Info+Engagés'!A13),ISBLANK('Info+Engagés'!H6)),"",RANK(L11,$L$10:$L$49)) ->  | N11: =IF(ISBLANK('Info+Engagés'!A13),"",('Cav2'!I4)) -> 59 | O11: =IF(ISBLANK('Info+Engagés'!A13),"",('Cav2'!I5)) -> 19.66666667 | P11: =IF(ISBLANK('Info+Engagés'!$A$13),"",IF(RANK(U11,$U$10:$U$49)<4,RANK(U11,$U$10:$U$49),RANK(O11,$O$10:$O$49))) -> 2 | R11: =IF(ISBLANK('Info+Engagés'!A13),"",'Cav2'!I3) -> 0 | S11: =IF(ISBLANK('Cav2'!F41),"",-('Cav2'!F41)/100) ->  | T11: 0 | U11: 19.66666667 | V11: 0 | AB11: 6 | AC11: 0.08 | AD11: 0.08 | AE11: 0.08 | AF11: 0.08
A12: =IF(ISBLANK('Info+Engagés'!A14),"",('Info+Engagés'!A14)) -> 3 | B12: =IF(ISBLANK('Info+Engagés'!B14),"",('Info+Engagés'!B14)) -> Cheval 1 de Jean | C12: =IF(ISBLANK('Info+Engagés'!G14),"",('Info+Engagés'!G14)) -> Jean | D12: =IF(OR(ISBLANK('Info+Engagés'!A14),ISBLANK('Info+Engagés'!H2)),"",('Cav3'!D42)) ->  | E12: =IF(OR(ISBLANK('Info+Engagés'!A14),ISBLANK('Info+Engagés'!H2)),"",RANK(D12,$D$10:$D$49)) ->  | F12: =IF(OR(ISBLANK('Info+Engagés'!A14),ISBLANK('Info+Engagés'!H3)),"",('Cav3'!E42)) ->  | G12: =IF(OR(ISBLANK('Info+Engagés'!A14),ISBLANK('Info+Engagés'!H3)),"",RANK(F12,$F$10:$F$49)) ->  | H12: =IF(OR(ISBLANK('Info+Engagés'!A14),ISBLANK('Info+Engagés'!H4)),"",('Cav3'!F42)) -> 19.33333333 | I12: =IF(OR(ISBLANK('Info+Engagés'!A14),ISBLANK('Info+Engagés'!H4)),"",RANK(H12,$H$10:$H$49)) -> 3 | J12: =IF(OR(ISBLANK('Info+Engagés'!A14),ISBLANK('Info+Engagés'!H5)),"",('Cav3'!G42)) ->  | K12: =IF(OR(ISBLANK('Info+Engagés'!A14),ISBLANK('Info+Engagés'!H5)),"",RANK(J12,$J$10:$J$49)) ->  | L12: =IF(OR(ISBLANK('Info+Engagés'!A14),ISBLANK('Info+Engagés'!H6)),"",('Cav3'!H42)) ->  | M12: =IF(OR(ISBLANK('Info+Engagés'!A14),ISBLANK('Info+Engagés'!H6)),"",RANK(L12,$L$10:$L$49)) ->  | N12: =IF(ISBLANK('Info+Engagés'!A14),"",('Cav3'!I4)) -> 58 | O12: =IF(ISBLANK('Info+Engagés'!A14),"",('Cav3'!I5)) -> 19.33333333 | P12: =IF(ISBLANK('Info+Engagés'!$A$14),"",IF(RANK(U12,$U$10:$U$49)<4,RANK(U12,$U$10:$U$49),RANK(O12,$O$10:$O$49))) -> 3 | R12: =IF(ISBLANK('Info+Engagés'!A14),"",'Cav3'!I3) -> 0 | S12: =IF(ISBLANK('Cav3'!F41),"",-('Cav3'!F41)/100) ->  | T12: 0 | U12: 19.33333333 | V12: 0 | AB12: 7 | AC12: 0.06 | AD12: 0.06 | AE12: 0.06
A13: =IF(ISBLANK('Info+Engagés'!A15),"",('Info+Engagés'!A15)) -> 4 | B13: =IF(ISBLANK('Info+Engagés'!B15),"",('Info+Engagés'!B15)) -> Cheval de Paul | C13: =IF(ISBLANK('Info+Engagés'!G15),"",('Info+Engagés'!G15)) -> Paul | D13: =IF(OR(ISBLANK('Info+Engagés'!A15),ISBLANK('Info+Engagés'!H2)),"",('Cav4'!D42)) ->  | E13: =IF(OR(ISBLANK('Info+Engagés'!A15),ISBLANK('Info+Engagés'!H2)),"",RANK(D13,$D$10:$D$49)) ->  | F13: =IF(OR(ISBLANK('Info+Engagés'!A15),ISBLANK('Info+Engagés'!H3)),"",('Cav4'!E42)) ->  | G13: =IF(OR(ISBLANK('Info+Engagés'!A15),ISBLANK('Info+Engagés'!H3)),"",RANK(F13,$F$10:$F$49)) ->  | H13: =IF(OR(ISBLANK('Info+Engagés'!A15),ISBLANK('Info+Engagés'!H4)),"",('Cav4'!F42)) -> 19 | I13: =IF(OR(ISBLANK('Info+Engagés'!A15),ISBLANK('Info+Engagés'!H4)),"",RANK(H13,$H$10:$H$49)) -> 4 | J13: =IF(OR(ISBLANK('Info+Engagés'!A15),ISBLANK('Info+Engagés'!H5)),"",('Cav4'!G42)) ->  | K13: =IF(OR(ISBLANK('Info+Engagés'!A15),ISBLANK('Info+Engagés'!H5)),"",RANK(J13,$J$10:$J$49)) ->  | L13: =IF(OR(ISBLANK('Info+Engagés'!A15),ISBLANK('Info+Engagés'!H6)),"",('Cav4'!H42)) ->  | M13: =IF(OR(ISBLANK('Info+Engagés'!A15),ISBLANK('Info+Engagés'!H6)),"",RANK(L13,$L$10:$L$49)) ->  | N13: =IF(ISBLANK('Info+Engagés'!A15),"",('Cav4'!I4)) -> 57 | O13: =IF(ISBLANK('Info+Engagés'!A15),"",('Cav4'!I5)) -> 19 | P13: =IF(ISBLANK('Info+Engagés'!$A$15),"",IF(RANK(U13,$U$10:$U$49)<4,RANK(U13,$U$10:$U$49),RANK(O13,$O$10:$O$49))) -> 4 | R13: =IF(ISBLANK('Info+Engagés'!A15),"",'Cav4'!I3) -> 0 | S13: =IF(ISBLANK('Cav4'!F41),"",-('Cav4'!F41)/100) ->  | T13: 0 | U13: 19 | V13: 0 | AB13: 8 | AC13: 0.05 | AD13: 0.05
A14: =IF(ISBLANK('Info+Engagés'!A16),"",('Info+Engagés'!A16)) -> 5 | B14: =IF(ISBLANK('Info+Engagés'!B16),"",('Info+Engagés'!B16)) -> Cheval 2 de Jean | C14: =IF(ISBLANK('Info+Engagés'!G16),"",('Info+Engagés'!G16)) -> Jean | D14: =IF(OR(ISBLANK('Info+Engagés'!A16),ISBLANK('Info+Engagés'!H2)),"",('Cav5'!D42)) ->  | E14: =IF(OR(ISBLANK('Info+Engagés'!A16),ISBLANK('Info+Engagés'!H2)),"",RANK(D14,$D$10:$D$49)) ->  | F14: =IF(OR(ISBLANK('Info+Engagés'!A16),ISBLANK('Info+Engagés'!H3)),"",('Cav5'!E42)) ->  | G14: =IF(OR(ISBLANK('Info+Engagés'!A16),ISBLANK('Info+Engagés'!H3)),"",RANK(F14,$F$10:$F$49)) ->  | H14: =IF(OR(ISBLANK('Info+Engagés'!A16),ISBLANK('Info+Engagés'!H4)),"",('Cav5'!F42)) -> 18.66666667 | I14: =IF(OR(ISBLANK('Info+Engagés'!A16),ISBLANK('Info+Engagés'!H4)),"",RANK(H14,$H$10:$H$49)) -> 5 | J14: =IF(OR(ISBLANK('Info+Engagés'!A16),ISBLANK('Info+Engagés'!H5)),"",('Cav5'!G42)) ->  | K14: =IF(OR(ISBLANK('Info+Engagés'!A16),ISBLANK('Info+Engagés'!H5)),"",RANK(J14,$J$10:$J$49)) ->  | L14: =IF(OR(ISBLANK('Info+Engagés'!A16),ISBLANK('Info+Engagés'!H6)),"",('Cav5'!H42)) ->  | M14: =IF(OR(ISBLANK('Info+Engagés'!A16),ISBLANK('Info+Engagés'!H6)),"",RANK(L14,$L$10:$L$49)) ->  | N14: =IF(ISBLANK('Info+Engagés'!A16),"",('Cav5'!I4)) -> 56 | O14: =IF(ISBLANK('Info+Engagés'!A16),"",('Cav5'!I5)) -> 18.66666667 | P14: =IF(ISBLANK('Info+Engagés'!$A$16),"",IF(RANK(U14,$U$10:$U$49)<4,RANK(U14,$U$10:$U$49),RANK(O14,$O$10:$O$49))) -> 5 | R14: =IF(ISBLANK('Info+Engagés'!A16),"",'Cav5'!I3) -> 0 | S14: =IF(ISBLANK('Cav5'!F41),"",-('Cav5'!F41)/100) ->  | T14: 0 | U14: 18.66666667 | V14: 0 | AB14: 9 | AC14: =IF($R$4>24,4%,0) -> 0
A15: =IF(ISBLANK('Info+Engagés'!A17),"",('Info+Engagés'!A17)) -> 6 | B15: =IF(ISBLANK('Info+Engagés'!B17),"",('Info+Engagés'!B17)) -> Cheval de Stephane | C15: =IF(ISBLANK('Info+Engagés'!G17),"",('Info+Engagés'!G17)) -> Stephane | D15: =IF(OR(ISBLANK('Info+Engagés'!A17),ISBLANK('Info+Engagés'!H2)),"",('Cav6'!D42)) ->  | E15: =IF(OR(ISBLANK('Info+Engagés'!A17),ISBLANK('Info+Engagés'!H2)),"",RANK(D15,$D$10:$D$49)) ->  | F15: =IF(OR(ISBLANK('Info+Engagés'!A17),ISBLANK('Info+Engagés'!H3)),"",('Cav6'!E42)) ->  | G15: =IF(OR(ISBLANK('Info+Engagés'!A17),ISBLANK('Info+Engagés'!H3)),"",RANK(F15,$F$10:$F$49)) ->  | H15: =IF(OR(ISBLANK('Info+Engagés'!A17),ISBLANK('Info+Engagés'!H4)),"",('Cav6'!F42)) -> 18.33333333 | I15: =IF(OR(ISBLANK('Info+Engagés'!A17),ISBLANK('Info+Engagés'!H4)),"",RANK(H15,$H$10:$H$49)) -> 6 | J15: =IF(OR(ISBLANK('Info+Engagés'!A17),ISBLANK('Info+Engagés'!H5)),"",('Cav6'!G42)) ->  | K15: =IF(OR(ISBLANK('Info+Engagés'!A17),ISBLANK('Info+Engagés'!H5)),"",RANK(J15,$J$10:$J$49)) ->  | L15: =IF(OR(ISBLANK('Info+Engagés'!A17),ISBLANK('Info+Engagés'!H6)),"",('Cav6'!H42)) ->  | M15: =IF(OR(ISBLANK('Info+Engagés'!A17),ISBLANK('Info+Engagés'!H6)),"",RANK(L15,$L$10:$L$49)) ->  | N15: =IF(ISBLANK('Info+Engagés'!A17),"",('Cav6'!I4)) -> 55 | O15: =IF(ISBLANK('Info+Engagés'!A17),"",('Cav6'!I5)) -> 18.33333333 | P15: =IF(ISBLANK('Info+Engagés'!$A$17),"",IF(RANK(U15,$U$10:$U$49)<4,RANK(U15,$U$10:$U$49),RANK(O15,$O$10:$O$49))) -> 6 | R15: =IF(ISBLANK('Info+Engagés'!A17),"",'Cav6'!I3) -> 0 | S15: =IF(ISBLANK('Cav6'!F41),"",-('Cav6'!F41)/100) ->  | T15: 0 | U15: 18.33333333 | V15: 0 | AB15: 10 | AC15: =IF($R$4>27,4%,0) -> 0
A16: =IF(ISBLANK('Info+Engagés'!A18),"",('Info+Engagés'!A18)) -> 7 | B16: =IF(ISBLANK('Info+Engagés'!B18),"",('Info+Engagés'!B18)) -> Cheval de Nicolas | C16: =IF(ISBLANK('Info+Engagés'!G18),"",('Info+Engagés'!G18)) -> Nicolas | D16: =IF(OR(ISBLANK('Info+Engagés'!A18),ISBLANK('Info+Engagés'!H2)),"",('Cav7'!D42)) ->  | E16: =IF(OR(ISBLANK('Info+Engagés'!A18),ISBLANK('Info+Engagés'!H2)),"",RANK(D16,$D$10:$D$49)) ->  | F16: =IF(OR(ISBLANK('Info+Engagés'!A18),ISBLANK('Info+Engagés'!H3)),"",('Cav7'!E42)) ->  | G16: =IF(OR(ISBLANK('Info+Engagés'!A18),ISBLANK('Info+Engagés'!H3)),"",RANK(F16,$F$10:$F$49)) ->  | H16: =IF(OR(ISBLANK('Info+Engagés'!A18),ISBLANK('Info+Engagés'!H4)),"",('Cav7'!F42)) -> 18 | I16: =IF(OR(ISBLANK('Info+Engagés'!A18),ISBLANK('Info+Engagés'!H4)),"",RANK(H16,$H$10:$H$49)) -> 7 | J16: =IF(OR(ISBLANK('Info+Engagés'!A18),ISBLANK('Info+Engagés'!H5)),"",('Cav7'!G42)) ->  | K16: =IF(OR(ISBLANK('Info+Engagés'!A18),ISBLANK('Info+Engagés'!H5)),"",RANK(J16,$J$10:$J$49)) ->  | L16: =IF(OR(ISBLANK('Info+Engagés'!A18),ISBLANK('Info+Engagés'!H6)),"",('Cav7'!H42)) ->  | M16: =IF(OR(ISBLANK('Info+Engagés'!A18),ISBLANK('Info+Engagés'!H6)),"",RANK(L16,$L$10:$L$49)) ->  | N16: =IF(ISBLANK('Info+Engagés'!A18),"",('Cav7'!I4)) -> 54 | O16: =IF(ISBLANK('Info+Engagés'!A18),"",('Cav7'!I5)) -> 18 | P16: =IF(ISBLANK('Info+Engagés'!$A$18),"",IF(RANK(U16,$U$10:$U$49)<4,RANK(U16,$U$10:$U$49),RANK(O16,$O$10:$O$49))) -> 7 | R16: =IF(ISBLANK('Info+Engagés'!A18),"",'Cav7'!I3) -> 0 | S16: =IF(ISBLANK('Cav7'!F41),"",-('Cav7'!F41)/100) ->  | T16: 0 | U16: 18 | V16: 0 | AB16: 11 | AC16: =IF($R$4>30,4%,0) -> 0
A17: =IF(ISBLANK('Info+Engagés'!A19),"",('Info+Engagés'!A19)) -> 8 | B17: =IF(ISBLANK('Info+Engagés'!B19),"",('Info+Engagés'!B19)) -> Cheval de Nathalie | C17: =IF(ISBLANK('Info+Engagés'!G19),"",('Info+Engagés'!G19)) -> Nathalie | D17: =IF(OR(ISBLANK('Info+Engagés'!A19),ISBLANK('Info+Engagés'!H2)),"",('Cav8'!D42)) ->  | E17: =IF(OR(ISBLANK('Info+Engagés'!A19),ISBLANK('Info+Engagés'!H2)),"",RANK(D17,$D$10:$D$49)) ->  | F17: =IF(OR(ISBLANK('Info+Engagés'!A19),ISBLANK('Info+Engagés'!H3)),"",('Cav8'!E42)) ->  | G17: =IF(OR(ISBLANK('Info+Engagés'!A19),ISBLANK('Info+Engagés'!H3)),"",RANK(F17,$F$10:$F$49)) ->  | H17: =IF(OR(ISBLANK('Info+Engagés'!A19),ISBLANK('Info+Engagés'!H4)),"",('Cav8'!F42)) -> 17.66666667 | I17: =IF(OR(ISBLANK('Info+Engagés'!A19),ISBLANK('Info+Engagés'!H4)),"",RANK(H17,$H$10:$H$49)) -> 8 | J17: =IF(OR(ISBLANK('Info+Engagés'!A19),ISBLANK('Info+Engagés'!H5)),"",('Cav8'!G42)) ->  | K17: =IF(OR(ISBLANK('Info+Engagés'!A19),ISBLANK('Info+Engagés'!H5)),"",RANK(J17,$J$10:$J$49)) ->  | L17: =IF(OR(ISBLANK('Info+Engagés'!A19),ISBLANK('Info+Engagés'!H6)),"",('Cav8'!H42)) ->  | M17: =IF(OR(ISBLANK('Info+Engagés'!A19),ISBLANK('Info+Engagés'!H6)),"",RANK(L17,$L$10:$L$49)) ->  | N17: =IF(ISBLANK('Info+Engagés'!A19),"",('Cav8'!I4)) -> 53 | O17: =IF(ISBLANK('Info+Engagés'!A19),"",('Cav8'!I5)) -> 17.66666667 | P17: =IF(ISBLANK('Info+Engagés'!$A$19),"",IF(RANK(U17,$U$10:$U$49)<4,RANK(U17,$U$10:$U$49),RANK(O17,$O$10:$O$49))) -> 8 | R17: =IF(ISBLANK('Info+Engagés'!A19),"",'Cav8'!I3) -> 0 | S17: =IF(ISBLANK('Cav8'!F41),"",-('Cav8'!F41)/100) ->  | T17: 0 | U17: 17.66666667 | V17: 0 | AB17: 12 | AC17: =IF($R$4>33,4%,0) -> 0
A18: =IF(ISBLANK('Info+Engagés'!A20),"",('Info+Engagés'!A20)) -> 9 | B18: =IF(ISBLANK('Info+Engagés'!B20),"",('Info+Engagés'!B20)) -> Cheval de Laura | C18: =IF(ISBLANK('Info+Engagés'!G20),"",('Info+Engagés'!G20)) -> Laura | D18: =IF(OR(ISBLANK('Info+Engagés'!A20),ISBLANK('Info+Engagés'!H2)),"",('Cav9'!D42)) ->  | E18: =IF(OR(ISBLANK('Info+Engagés'!A20),ISBLANK('Info+Engagés'!H2)),"",RANK(D18,$D$10:$D$49)) ->  | F18: =IF(OR(ISBLANK('Info+Engagés'!A20),ISBLANK('Info+Engagés'!H3)),"",('Cav9'!E42)) ->  | G18: =IF(OR(ISBLANK('Info+Engagés'!A20),ISBLANK('Info+Engagés'!H3)),"",RANK(F18,$F$10:$F$49)) ->  | H18: =IF(OR(ISBLANK('Info+Engagés'!A20),ISBLANK('Info+Engagés'!H4)),"",('Cav9'!F42)) -> 17.33333333 | I18: =IF(OR(ISBLANK('Info+Engagés'!A20),ISBLANK('Info+Engagés'!H4)),"",RANK(H18,$H$10:$H$49)) -> 9 | J18: =IF(OR(ISBLANK('Info+Engagés'!A20),ISBLANK('Info+Engagés'!H5)),"",('Cav9'!G42)) ->  | K18: =IF(OR(ISBLANK('Info+Engagés'!A20),ISBLANK('Info+Engagés'!H5)),"",RANK(J18,$J$10:$J$49)) ->  | L18: =IF(OR(ISBLANK('Info+Engagés'!A20),ISBLANK('Info+Engagés'!H6)),"",('Cav9'!H42)) ->  | M18: =IF(OR(ISBLANK('Info+Engagés'!A20),ISBLANK('Info+Engagés'!H6)),"",RANK(L18,$L$10:$L$49)) ->  | N18: =IF(ISBLANK('Info+Engagés'!A20),"",('Cav9'!I4)) -> 52 | O18: =IF(ISBLANK('Info+Engagés'!A20),"",('Cav9'!I5)) -> 17.33333333 | P18: =IF(ISBLANK('Info+Engagés'!$A$20),"",IF(RANK(U18,$U$10:$U$49)<4,RANK(U18,$U$10:$U$49),RANK(O18,$O$10:$O$49))) -> 9 | R18: =IF(ISBLANK('Info+Engagés'!A20),"",'Cav9'!I3) -> 0 | S18: =IF(ISBLANK('Cav9'!F41),"",-('Cav9'!F41)/100) ->  | T18: 0 | U18: 17.33333333 | V18: 0 | AB18: 13 | AC18: =IF($R$4>36,4%,0) -> 0
A19: =IF(ISBLANK('Info+Engagés'!A21),"",('Info+Engagés'!A21)) -> 10 | B19: =IF(ISBLANK('Info+Engagés'!B21),"",('Info+Engagés'!B21)) -> Cheval de Coralie | C19: =IF(ISBLANK('Info+Engagés'!G21),"",('Info+Engagés'!G21)) -> Coralie | D19: =IF(OR(ISBLANK('Info+Engagés'!A21),ISBLANK('Info+Engagés'!H2)),"",('Cav10'!D42)) ->  | E19: =IF(OR(ISBLANK('Info+Engagés'!A21),ISBLANK('Info+Engagés'!H2)),"",RANK(D19,$D$10:$D$49)) ->  | F19: =IF(OR(ISBLANK('Info+Engagés'!A21),ISBLANK('Info+Engagés'!H3)),"",('Cav10'!E42)) ->  | G19: =IF(OR(ISBLANK('Info+Engagés'!A21),ISBLANK('Info+Engagés'!H3)),"",RANK(F19,$F$10:$F$49)) ->  | H19: =IF(OR(ISBLANK('Info+Engagés'!A21),ISBLANK('Info+Engagés'!H4)),"",('Cav10'!F42)) -> 17 | I19: =IF(OR(ISBLANK('Info+Engagés'!A21),ISBLANK('Info+Engagés'!H4)),"",RANK(H19,$H$10:$H$49)) -> 10 | J19: =IF(OR(ISBLANK('Info+Engagés'!A21),ISBLANK('Info+Engagés'!H5)),"",('Cav10'!G42)) ->  | K19: =IF(OR(ISBLANK('Info+Engagés'!A21),ISBLANK('Info+Engagés'!H5)),"",RANK(J19,$J$10:$J$49)) ->  | L19: =IF(OR(ISBLANK('Info+Engagés'!A21),ISBLANK('Info+Engagés'!H6)),"",('Cav10'!H42)) ->  | M19: =IF(OR(ISBLANK('Info+Engagés'!A21),ISBLANK('Info+Engagés'!H6)),"",RANK(L19,$L$10:$L$49)) ->  | N19: =IF(ISBLANK('Info+Engagés'!A21),"",('Cav10'!I4)) -> 51 | O19: =IF(ISBLANK('Info+Engagés'!A21),"",('Cav10'!I5)) -> 17 | P19: =IF(ISBLANK('Info+Engagés'!$A$21),"",IF(RANK(U19,$U$10:$U$49)<4,RANK(U19,$U$10:$U$49),RANK(O19,$O$10:$O$49))) -> 10 | R19: =IF(ISBLANK('Info+Engagés'!A21),"",'Cav10'!I3) -> 0 | S19: =IF(ISBLANK('Cav10'!F41),"",-('Cav10'!F41)/100) ->  | T19: 0 | U19: 17 | V19: 0 | AB19: 14 | AC19: =IF($R$4>39,4%,0) -> 0
A20: =IF(ISBLANK('Info+Engagés'!A22),"",('Info+Engagés'!A22)) -> 11 | B20: =IF(ISBLANK('Info+Engagés'!B22),"",('Info+Engagés'!B22)) -> Cheval de Marie Lou | C20: =IF(ISBLANK('Info+Engagés'!G22),"",('Info+Engagés'!G22)) -> Marie Lou | D20: =IF(OR(ISBLANK('Info+Engagés'!A22),ISBLANK('Info+Engagés'!H2)),"",('Cav11'!D42)) ->  | E20: =IF(OR(ISBLANK('Info+Engagés'!A22),ISBLANK('Info+Engagés'!H2)),"",RANK(D20,$D$10:$D$49)) ->  | F20: =IF(OR(ISBLANK('Info+Engagés'!A22),ISBLANK('Info+Engagés'!H3)),"",('Cav11'!E42)) ->  | G20: =IF(OR(ISBLANK('Info+Engagés'!A22),ISBLANK('Info+Engagés'!H3)),"",RANK(F20,$F$10:$F$49)) ->  | H20: =IF(OR(ISBLANK('Info+Engagés'!A22),ISBLANK('Info+Engagés'!H4)),"",('Cav11'!F42)) -> 16.66666667 | I20: =IF(OR(ISBLANK('Info+Engagés'!A22),ISBLANK('Info+Engagés'!H4)),"",RANK(H20,$H$10:$H$49)) -> 11 | J20: =IF(OR(ISBLANK('Info+Engagés'!A22),ISBLANK('Info+Engagés'!H5)),"",('Cav11'!G42)) ->  | K20: =IF(OR(ISBLANK('Info+Engagés'!A22),ISBLANK('Info+Engagés'!H5)),"",RANK(J20,$J$10:$J$49)) ->  | L20: =IF(OR(ISBLANK('Info+Engagés'!A22),ISBLANK('Info+Engagés'!H6)),"",('Cav11'!H42)) ->  | M20: =IF(OR(ISBLANK('Info+Engagés'!A22),ISBLANK('Info+Engagés'!H6)),"",RANK(L20,$L$10:$L$49)) ->  | N20: =IF(ISBLANK('Info+Engagés'!A22),"",('Cav11'!I4)) -> 50 | O20: =IF(ISBLANK('Info+Engagés'!A22),"",('Cav11'!I5)) -> 16.66666667 | P20: =IF(ISBLANK('Info+Engagés'!$A$22),"",IF(RANK(U20,$U$10:$U$49)<4,RANK(U20,$U$10:$U$49),RANK(O20,$O$10:$O$49))) -> 11 | R20: =IF(ISBLANK('Info+Engagés'!A22),"",'Cav11'!I3) -> 0 | S20: =IF(ISBLANK('Cav11'!F41),"",-('Cav11'!F41)/100) ->  | T20: 0 | U20: 16.66666667 | V20: 0 | AB20: 15 | AC20: 0
A21: =IF(ISBLANK('Info+Engagés'!A23),"",('Info+Engagés'!A23)) -> 12 | B21: =IF(ISBLANK('Info+Engagés'!B23),"",('Info+Engagés'!B23)) -> Cheval de Alysa | C21: =IF(ISBLANK('Info+Engagés'!G23),"",('Info+Engagés'!G23)) -> Alysa | D21: =IF(OR(ISBLANK('Info+Engagés'!A23),ISBLANK('Info+Engagés'!H2)),"",('Cav12'!D42)) ->  | E21: =IF(OR(ISBLANK('Info+Engagés'!A23),ISBLANK('Info+Engagés'!H2)),"",RANK(D21,$D$10:$D$49)) ->  | F21: =IF(OR(ISBLANK('Info+Engagés'!A23),ISBLANK('Info+Engagés'!H3)),"",('Cav12'!E42)) ->  | G21: =IF(OR(ISBLANK('Info+Engagés'!A23),ISBLANK('Info+Engagés'!H3)),"",RANK(F21,$F$10:$F$49)) ->  | H21: =IF(OR(ISBLANK('Info+Engagés'!A23),ISBLANK('Info+Engagés'!H4)),"",('Cav12'!F42)) -> 16.33333333 | I21: =IF(OR(ISBLANK('Info+Engagés'!A23),ISBLANK('Info+Engagés'!H4)),"",RANK(H21,$H$10:$H$49)) -> 12 | J21: =IF(OR(ISBLANK('Info+Engagés'!A23),ISBLANK('Info+Engagés'!H5)),"",('Cav12'!G42)) ->  | K21: =IF(OR(ISBLANK('Info+Engagés'!A23),ISBLANK('Info+Engagés'!H5)),"",RANK(J21,$J$10:$J$49)) ->  | L21: =IF(OR(ISBLANK('Info+Engagés'!A23),ISBLANK('Info+Engagés'!H6)),"",('Cav12'!H42)) ->  | M21: =IF(OR(ISBLANK('Info+Engagés'!A23),ISBLANK('Info+Engagés'!H6)),"",RANK(L21,$L$10:$L$49)) ->  | N21: =IF(ISBLANK('Info+Engagés'!A23),"",('Cav12'!I4)) -> 49 | O21: =IF(ISBLANK('Info+Engagés'!A23),"",('Cav12'!I5)) -> 16.33333333 | P21: =IF(ISBLANK('Info+Engagés'!$A$23),"",IF(RANK(U21,$U$10:$U$49)<4,RANK(U21,$U$10:$U$49),RANK(O21,$O$10:$O$49))) -> 12 | R21: =IF(ISBLANK('Info+Engagés'!A23),"",'Cav12'!I3) -> 0 | S21: =IF(ISBLANK('Cav12'!F41),"",-('Cav12'!F41)/100) ->  | T21: 0 | U21: 16.33333333 | V21: 0 | AB21: 16 | AC21: 0
A22: =IF(ISBLANK('Info+Engagés'!A24),"",('Info+Engagés'!A24)) -> 13 | B22: =IF(ISBLANK('Info+Engagés'!B24),"",('Info+Engagés'!B24)) -> Cheval de Rachida | C22: =IF(ISBLANK('Info+Engagés'!G24),"",('Info+Engagés'!G24)) -> Rachida | D22: =IF(OR(ISBLANK('Info+Engagés'!A24),ISBLANK('Info+Engagés'!H2)),"",('Cav13'!D42)) ->  | E22: =IF(OR(ISBLANK('Info+Engagés'!A24),ISBLANK('Info+Engagés'!H2)),"",RANK(D22,$D$10:$D$49)) ->  | F22: =IF(OR(ISBLANK('Info+Engagés'!A24),ISBLANK('Info+Engagés'!H3)),"",('Cav13'!E42)) ->  | G22: =IF(OR(ISBLANK('Info+Engagés'!A24),ISBLANK('Info+Engagés'!H3)),"",RANK(F22,$F$10:$F$49)) ->  | H22: =IF(OR(ISBLANK('Info+Engagés'!A24),ISBLANK('Info+Engagés'!H4)),"",('Cav13'!F42)) -> 16 | I22: =IF(OR(ISBLANK('Info+Engagés'!A24),ISBLANK('Info+Engagés'!H4)),"",RANK(H22,$H$10:$H$49)) -> 13 | J22: =IF(OR(ISBLANK('Info+Engagés'!A24),ISBLANK('Info+Engagés'!H5)),"",('Cav13'!G42)) ->  | K22: =IF(OR(ISBLANK('Info+Engagés'!A24),ISBLANK('Info+Engagés'!H5)),"",RANK(J22,$J$10:$J$49)) ->  | L22: =IF(OR(ISBLANK('Info+Engagés'!A24),ISBLANK('Info+Engagés'!H6)),"",('Cav13'!H42)) ->  | M22: =IF(OR(ISBLANK('Info+Engagés'!A24),ISBLANK('Info+Engagés'!H6)),"",RANK(L22,$L$10:$L$49)) ->  | N22: =IF(ISBLANK('Info+Engagés'!A24),"",('Cav13'!I4)) -> 48 | O22: =IF(ISBLANK('Info+Engagés'!A24),"",('Cav13'!I5)) -> 16 | P22: =IF(ISBLANK('Info+Engagés'!$A$24),"",IF(RANK(U22,$U$10:$U$49)<4,RANK(U22,$U$10:$U$49),RANK(O22,$O$10:$O$49))) -> 13 | R22: =IF(ISBLANK('Info+Engagés'!A24),"",'Cav13'!I3) -> 0 | S22: =IF(ISBLANK('Cav13'!F41),"",-('Cav13'!F41)/100) ->  | T22: 0 | U22: 16 | V22: 0 | AB22: 17 | AC22: 0
A23: =IF(ISBLANK('Info+Engagés'!A25),"",('Info+Engagés'!A25)) -> 14 | B23: =IF(ISBLANK('Info+Engagés'!B25),"",('Info+Engagés'!B25)) -> Cheval de Tom | C23: =IF(ISBLANK('Info+Engagés'!G25),"",('Info+Engagés'!G25)) -> Tom | D23: =IF(OR(ISBLANK('Info+Engagés'!A25),ISBLANK('Info+Engagés'!H2)),"",('Cav14'!D42)) ->  | E23: =IF(OR(ISBLANK('Info+Engagés'!A25),ISBLANK('Info+Engagés'!H2)),"",RANK(D23,$D$10:$D$49)) ->  | F23: =IF(OR(ISBLANK('Info+Engagés'!A25),ISBLANK('Info+Engagés'!H3)),"",('Cav14'!E42)) ->  | G23: =IF(OR(ISBLANK('Info+Engagés'!A25),ISBLANK('Info+Engagés'!H3)),"",RANK(F23,$F$10:$F$49)) ->  | H23: =IF(OR(ISBLANK('Info+Engagés'!A25),ISBLANK('Info+Engagés'!H4)),"",('Cav14'!F42)) -> 15.66666667 | I23: =IF(OR(ISBLANK('Info+Engagés'!A25),ISBLANK('Info+Engagés'!H4)),"",RANK(H23,$H$10:$H$49)) -> 14 | J23: =IF(OR(ISBLANK('Info+Engagés'!A25),ISBLANK('Info+Engagés'!H5)),"",('Cav14'!G42)) ->  | K23: =IF(OR(ISBLANK('Info+Engagés'!A25),ISBLANK('Info+Engagés'!H5)),"",RANK(J23,$J$10:$J$49)) ->  | L23: =IF(OR(ISBLANK('Info+Engagés'!A25),ISBLANK('Info+Engagés'!H6)),"",('Cav14'!H42)) ->  | M23: =IF(OR(ISBLANK('Info+Engagés'!A25),ISBLANK('Info+Engagés'!H6)),"",RANK(L23,$L$10:$L$49)) ->  | N23: =IF(ISBLANK('Info+Engagés'!A25),"",('Cav14'!I4)) -> 47 | O23: =IF(ISBLANK('Info+Engagés'!A25),"",('Cav14'!I5)) -> 15.66666667 | P23: =IF(ISBLANK('Info+Engagés'!$A$25),"",IF(RANK(U23,$U$10:$U$49)<4,RANK(U23,$U$10:$U$49),RANK(O23,$O$10:$O$49))) -> 14 | R23: =IF(ISBLANK('Info+Engagés'!A25),"",'Cav14'!I3) -> 0 | S23: =IF(ISBLANK('Cav14'!F41),"",-('Cav14'!F41)/100) ->  | T23: 0 | U23: 15.66666667 | V23: 0 | AB23: 18 | AC23: 0
A24: =IF(ISBLANK('Info+Engagés'!A26),"",('Info+Engagés'!A26)) -> 15 | B24: =IF(ISBLANK('Info+Engagés'!B26),"",('Info+Engagés'!B26)) ->  | C24: =IF(ISBLANK('Info+Engagés'!G26),"",('Info+Engagés'!G26)) ->  | D24: =IF(OR(ISBLANK('Info+Engagés'!A26),ISBLANK('Info+Engagés'!H2)),"",('Cav15'!D42)) ->  | E24: =IF(OR(ISBLANK('Info+Engagés'!A26),ISBLANK('Info+Engagés'!H2)),"",RANK(D24,$D$10:$D$49)) ->  | F24: =IF(OR(ISBLANK('Info+Engagés'!A26),ISBLANK('Info+Engagés'!H3)),"",('Cav15'!E42)) ->  | G24: =IF(OR(ISBLANK('Info+Engagés'!A26),ISBLANK('Info+Engagés'!H3)),"",RANK(F24,$F$10:$F$49)) ->  | H24: =IF(OR(ISBLANK('Info+Engagés'!A26),ISBLANK('Info+Engagés'!H4)),"",('Cav15'!F42)) -> 15.33333333 | I24: =IF(OR(ISBLANK('Info+Engagés'!A26),ISBLANK('Info+Engagés'!H4)),"",RANK(H24,$H$10:$H$49)) -> 15 | J24: =IF(OR(ISBLANK('Info+Engagés'!A26),ISBLANK('Info+Engagés'!H5)),"",('Cav15'!G42)) ->  | K24: =IF(OR(ISBLANK('Info+Engagés'!A26),ISBLANK('Info+Engagés'!H5)),"",RANK(J24,$J$10:$J$49)) ->  | L24: =IF(OR(ISBLANK('Info+Engagés'!A26),ISBLANK('Info+Engagés'!H6)),"",('Cav15'!H42)) ->  | M24: =IF(OR(ISBLANK('Info+Engagés'!A26),ISBLANK('Info+Engagés'!H6)),"",RANK(L24,$L$10:$L$49)) ->  | N24: =IF(ISBLANK('Info+Engagés'!A26),"",('Cav15'!I4)) -> 46 | O24: =IF(ISBLANK('Info+Engagés'!A26),"",('Cav15'!I5)) -> 15.33333333 | P24: =IF(ISBLANK('Info+Engagés'!$A$26),"",IF(RANK(U24,$U$10:$U$49)<4,RANK(U24,$U$10:$U$49),RANK(O24,$O$10:$O$49))) -> 15 | R24: =IF(ISBLANK('Info+Engagés'!A26),"",'Cav15'!I3) -> 0 | S24: =IF(ISBLANK('Cav15'!F41),"",-('Cav15'!F41)/100) ->  | T24: 0 | U24: 15.33333333 | V24: 0 | AB24: 19 | AC24: 0
A25: =IF(ISBLANK('Info+Engagés'!A27),"",('Info+Engagés'!A27)) -> 16 | B25: =IF(ISBLANK('Info+Engagés'!B27),"",('Info+Engagés'!B27)) ->  | C25: =IF(ISBLANK('Info+Engagés'!G27),"",('Info+Engagés'!G27)) ->  | D25: =IF(OR(ISBLANK('Info+Engagés'!A27),ISBLANK('Info+Engagés'!H2)),"",('Cav16'!D42)) ->  | E25: =IF(OR(ISBLANK('Info+Engagés'!A27),ISBLANK('Info+Engagés'!H2)),"",RANK(D25,$D$10:$D$49)) ->  | F25: =IF(OR(ISBLANK('Info+Engagés'!A27),ISBLANK('Info+Engagés'!H3)),"",('Cav16'!E42)) ->  | G25: =IF(OR(ISBLANK('Info+Engagés'!A27),ISBLANK('Info+Engagés'!H3)),"",RANK(F25,$F$10:$F$49)) ->  | H25: =IF(OR(ISBLANK('Info+Engagés'!A27),ISBLANK('Info+Engagés'!H4)),"",('Cav16'!F42)) -> 15 | I25: =IF(OR(ISBLANK('Info+Engagés'!A27),ISBLANK('Info+Engagés'!H4)),"",RANK(H25,$H$10:$H$49)) -> 16 | J25: =IF(OR(ISBLANK('Info+Engagés'!A27),ISBLANK('Info+Engagés'!H5)),"",('Cav16'!G42)) ->  | K25: =IF(OR(ISBLANK('Info+Engagés'!A27),ISBLANK('Info+Engagés'!H5)),"",RANK(J25,$J$10:$J$49)) ->  | L25: =IF(OR(ISBLANK('Info+Engagés'!A27),ISBLANK('Info+Engagés'!H6)),"",('Cav16'!H42)) ->  | M25: =IF(OR(ISBLANK('Info+Engagés'!A27),ISBLANK('Info+Engagés'!H6)),"",RANK(L25,$L$10:$L$49)) ->  | N25: =IF(ISBLANK('Info+Engagés'!A27),"",('Cav16'!I4)) -> 45 | O25: =IF(ISBLANK('Info+Engagés'!A27),"",('Cav16'!I5)) -> 15 | P25: =IF(ISBLANK('Info+Engagés'!$A$27),"",IF(RANK(U25,$U$10:$U$49)<4,RANK(U25,$U$10:$U$49),RANK(O25,$O$10:$O$49))) -> 16 | R25: =IF(ISBLANK('Info+Engagés'!A27),"",'Cav16'!I3) -> 0 | S25: =IF(ISBLANK('Cav16'!F41),"",-('Cav16'!F41)/100) ->  | T25: 0 | U25: 15 | V25: 0 | AB25: 20 | AC25: 0
A26: =IF(ISBLANK('Info+Engagés'!A28),"",('Info+Engagés'!A28)) -> 17 | B26: =IF(ISBLANK('Info+Engagés'!B28),"",('Info+Engagés'!B28)) ->  | C26: =IF(ISBLANK('Info+Engagés'!G28),"",('Info+Engagés'!G28)) ->  | D26: =IF(OR(ISBLANK('Info+Engagés'!A28),ISBLANK('Info+Engagés'!H2)),"",('Cav17'!D42)) ->  | E26: =IF(OR(ISBLANK('Info+Engagés'!A28),ISBLANK('Info+Engagés'!H2)),"",RANK(D26,$D$10:$D$49)) ->  | F26: =IF(OR(ISBLANK('Info+Engagés'!A28),ISBLANK('Info+Engagés'!H3)),"",('Cav17'!E42)) ->  | G26: =IF(OR(ISBLANK('Info+Engagés'!A28),ISBLANK('Info+Engagés'!H3)),"",RANK(F26,$F$10:$F$49)) ->  | H26: =IF(OR(ISBLANK('Info+Engagés'!A28),ISBLANK('Info+Engagés'!H4)),"",('Cav17'!F42)) -> 14.66666667 | I26: =IF(OR(ISBLANK('Info+Engagés'!A28),ISBLANK('Info+Engagés'!H4)),"",RANK(H26,$H$10:$H$49)) -> 17 | J26: =IF(OR(ISBLANK('Info+Engagés'!A28),ISBLANK('Info+Engagés'!H5)),"",('Cav17'!G42)) ->  | K26: =IF(OR(ISBLANK('Info+Engagés'!A28),ISBLANK('Info+Engagés'!H5)),"",RANK(J26,$J$10:$J$49)) ->  | L26: =IF(OR(ISBLANK('Info+Engagés'!A28),ISBLANK('Info+Engagés'!H6)),"",('Cav17'!H42)) ->  | M26: =IF(OR(ISBLANK('Info+Engagés'!A28),ISBLANK('Info+Engagés'!H6)),"",RANK(L26,$L$10:$L$49)) ->  | N26: =IF(ISBLANK('Info+Engagés'!A28),"",('Cav17'!I4)) -> 44 | O26: =IF(ISBLANK('Info+Engagés'!A28),"",('Cav17'!I5)) -> 14.66666667 | P26: =IF(ISBLANK('Info+Engagés'!$A$28),"",IF(RANK(U26,$U$10:$U$49)<4,RANK(U26,$U$10:$U$49),RANK(O26,$O$10:$O$49))) -> 17 | R26: =IF(ISBLANK('Info+Engagés'!A28),"",'Cav17'!I3) -> 0 | S26: =IF(ISBLANK('Cav17'!F41),"",-('Cav17'!F41)/100) ->  | T26: 0 | U26: 14.66666667 | V26: 0 | AB26: 21 | AC26: 0
A27: =IF(ISBLANK('Info+Engagés'!A29),"",('Info+Engagés'!A29)) -> 18 | B27: =IF(ISBLANK('Info+Engagés'!B29),"",('Info+Engagés'!B29)) ->  | C27: =IF(ISBLANK('Info+Engagés'!G29),"",('Info+Engagés'!G29)) ->  | D27: =IF(OR(ISBLANK('Info+Engagés'!A29),ISBLANK('Info+Engagés'!H2)),"",('Cav18'!D42)) ->  | E27: =IF(OR(ISBLANK('Info+Engagés'!A29),ISBLANK('Info+Engagés'!H2)),"",RANK(D27,$D$10:$D$49)) ->  | F27: =IF(OR(ISBLANK('Info+Engagés'!A29),ISBLANK('Info+Engagés'!H3)),"",('Cav18'!E42)) ->  | G27: =IF(OR(ISBLANK('Info+Engagés'!A29),ISBLANK('Info+Engagés'!H3)),"",RANK(F27,$F$10:$F$49)) ->  | H27: =IF(OR(ISBLANK('Info+Engagés'!A29),ISBLANK('Info+Engagés'!H4)),"",('Cav18'!F42)) -> 14.33333333 | I27: =IF(OR(ISBLANK('Info+Engagés'!A29),ISBLANK('Info+Engagés'!H4)),"",RANK(H27,$H$10:$H$49)) -> 18 | J27: =IF(OR(ISBLANK('Info+Engagés'!A29),ISBLANK('Info+Engagés'!H5)),"",('Cav18'!G42)) ->  | K27: =IF(OR(ISBLANK('Info+Engagés'!A29),ISBLANK('Info+Engagés'!H5)),"",RANK(J27,$J$10:$J$49)) ->  | L27: =IF(OR(ISBLANK('Info+Engagés'!A29),ISBLANK('Info+Engagés'!H6)),"",('Cav18'!H42)) ->  | M27: =IF(OR(ISBLANK('Info+Engagés'!A29),ISBLANK('Info+Engagés'!H6)),"",RANK(L27,$L$10:$L$49)) ->  | N27: =IF(ISBLANK('Info+Engagés'!A29),"",('Cav18'!I4)) -> 43 | O27: =IF(ISBLANK('Info+Engagés'!A29),"",('Cav18'!I5)) -> 14.33333333 | P27: =IF(ISBLANK('Info+Engagés'!$A$29),"",IF(RANK(U27,$U$10:$U$49)<4,RANK(U27,$U$10:$U$49),RANK(O27,$O$10:$O$49))) -> 18 | R27: =IF(ISBLANK('Info+Engagés'!A29),"",'Cav18'!I3) -> 0 | S27: =IF(ISBLANK('Cav18'!F41),"",-('Cav18'!F41)/100) ->  | T27: 0 | U27: 14.33333333 | V27: 0 | AB27: 22 | AC27: 0
A28: =IF(ISBLANK('Info+Engagés'!A30),"",('Info+Engagés'!A30)) -> 19 | B28: =IF(ISBLANK('Info+Engagés'!B30),"",('Info+Engagés'!B30)) ->  | C28: =IF(ISBLANK('Info+Engagés'!G30),"",('Info+Engagés'!G30)) ->  | D28: =IF(OR(ISBLANK('Info+Engagés'!A30),ISBLANK('Info+Engagés'!H2)),"",('Cav19'!D42)) ->  | E28: =IF(OR(ISBLANK('Info+Engagés'!A30),ISBLANK('Info+Engagés'!H2)),"",RANK(D28,$D$10:$D$49)) ->  | F28: =IF(OR(ISBLANK('Info+Engagés'!A30),ISBLANK('Info+Engagés'!H3)),"",('Cav19'!E42)) ->  | G28: =IF(OR(ISBLANK('Info+Engagés'!A30),ISBLANK('Info+Engagés'!H3)),"",RANK(F28,$F$10:$F$49)) ->  | H28: =IF(OR(ISBLANK('Info+Engagés'!A30),ISBLANK('Info+Engagés'!H4)),"",('Cav19'!F42)) -> 14 | I28: =IF(OR(ISBLANK('Info+Engagés'!A30),ISBLANK('Info+Engagés'!H4)),"",RANK(H28,$H$10:$H$49)) -> 19 | J28: =IF(OR(ISBLANK('Info+Engagés'!A30),ISBLANK('Info+Engagés'!H5)),"",('Cav19'!G42)) ->  | K28: =IF(OR(ISBLANK('Info+Engagés'!A30),ISBLANK('Info+Engagés'!H5)),"",RANK(J28,$J$10:$J$49)) ->  | L28: =IF(OR(ISBLANK('Info+Engagés'!A30),ISBLANK('Info+Engagés'!H6)),"",('Cav19'!H42)) ->  | M28: =IF(OR(ISBLANK('Info+Engagés'!A30),ISBLANK('Info+Engagés'!H6)),"",RANK(L28,$L$10:$L$49)) ->  | N28: =IF(ISBLANK('Info+Engagés'!A30),"",('Cav19'!I4)) -> 42 | O28: =IF(ISBLANK('Info+Engagés'!A30),"",('Cav19'!I5)) -> 14 | P28: =IF(ISBLANK('Info+Engagés'!$A$30),"",IF(RANK(U28,$U$10:$U$49)<4,RANK(U28,$U$10:$U$49),RANK(O28,$O$10:$O$49))) -> 19 | R28: =IF(ISBLANK('Info+Engagés'!A30),"",'Cav19'!I3) -> 0 | S28: =IF(ISBLANK('Cav19'!F41),"",-('Cav19'!F41)/100) ->  | T28: 0 | U28: 14 | V28: 0 | AB28: 23 | AC28: 0
A29: =IF(ISBLANK('Info+Engagés'!A31),"",('Info+Engagés'!A31)) -> 20 | B29: =IF(ISBLANK('Info+Engagés'!B31),"",('Info+Engagés'!B31)) ->  | C29: =IF(ISBLANK('Info+Engagés'!G31),"",('Info+Engagés'!G31)) ->  | D29: =IF(OR(ISBLANK('Info+Engagés'!A31),ISBLANK('Info+Engagés'!H2)),"",('Cav20'!D42)) ->  | E29: =IF(OR(ISBLANK('Info+Engagés'!A31),ISBLANK('Info+Engagés'!H2)),"",RANK(D29,$D$10:$D$49)) ->  | F29: =IF(OR(ISBLANK('Info+Engagés'!A31),ISBLANK('Info+Engagés'!H3)),"",('Cav20'!E42)) ->  | G29: =IF(OR(ISBLANK('Info+Engagés'!A31),ISBLANK('Info+Engagés'!H3)),"",RANK(F29,$F$10:$F$49)) ->  | H29: =IF(OR(ISBLANK('Info+Engagés'!A31),ISBLANK('Info+Engagés'!H4)),"",('Cav20'!F42)) -> 13.66666667 | I29: =IF(OR(ISBLANK('Info+Engagés'!A31),ISBLANK('Info+Engagés'!H4)),"",RANK(H29,$H$10:$H$49)) -> 20 | J29: =IF(OR(ISBLANK('Info+Engagés'!A31),ISBLANK('Info+Engagés'!H5)),"",('Cav20'!G42)) ->  | K29: =IF(OR(ISBLANK('Info+Engagés'!A31),ISBLANK('Info+Engagés'!H5)),"",RANK(J29,$J$10:$J$49)) ->  | L29: =IF(OR(ISBLANK('Info+Engagés'!A31),ISBLANK('Info+Engagés'!H6)),"",('Cav20'!H42)) ->  | M29: =IF(OR(ISBLANK('Info+Engagés'!A31),ISBLANK('Info+Engagés'!H6)),"",RANK(L29,$L$10:$L$49)) ->  | N29: =IF(ISBLANK('Info+Engagés'!A31),"",('Cav20'!I4)) -> 41 | O29: =IF(ISBLANK('Info+Engagés'!A31),"",('Cav20'!I5)) -> 13.66666667 | P29: =IF(ISBLANK('Info+Engagés'!$A$31),"",IF(RANK(U29,$U$10:$U$49)<4,RANK(U29,$U$10:$U$49),RANK(O29,$O$10:$O$49))) -> 20 | R29: =IF(ISBLANK('Info+Engagés'!A31),"",'Cav20'!I3) -> 0 | S29: =IF(ISBLANK('Cav20'!F41),"",-('Cav20'!F41)/100) ->  | T29: 0 | U29: 13.66666667 | V29: 0 | AB29: 24 | AC29: 0
A30: =IF(ISBLANK('Info+Engagés'!A32),"",('Info+Engagés'!A32)) -> 21 | B30: =IF(ISBLANK('Info+Engagés'!B32),"",('Info+Engagés'!B32)) ->  | C30: =IF(ISBLANK('Info+Engagés'!G32),"",('Info+Engagés'!G32)) ->  | D30: =IF(OR(ISBLANK('Info+Engagés'!A32),ISBLANK('Info+Engagés'!H2)),"",('Cav21'!D42)) ->  | E30: =IF(OR(ISBLANK('Info+Engagés'!A32),ISBLANK('Info+Engagés'!H2)),"",RANK(D30,$D$10:$D$49)) ->  | F30: =IF(OR(ISBLANK('Info+Engagés'!A32),ISBLANK('Info+Engagés'!H3)),"",('Cav21'!E42)) ->  | G30: =IF(OR(ISBLANK('Info+Engagés'!A32),ISBLANK('Info+Engagés'!H3)),"",RANK(F30,$F$10:$F$49)) ->  | H30: =IF(OR(ISBLANK('Info+Engagés'!A32),ISBLANK('Info+Engagés'!H4)),"",('Cav21'!F42)) -> 13.33333333 | I30: =IF(OR(ISBLANK('Info+Engagés'!A32),ISBLANK('Info+Engagés'!H4)),"",RANK(H30,$H$10:$H$49)) -> 21 | J30: =IF(OR(ISBLANK('Info+Engagés'!A32),ISBLANK('Info+Engagés'!H5)),"",('Cav21'!G42)) ->  | K30: =IF(OR(ISBLANK('Info+Engagés'!A32),ISBLANK('Info+Engagés'!H5)),"",RANK(J30,$J$10:$J$49)) ->  | L30: =IF(OR(ISBLANK('Info+Engagés'!A32),ISBLANK('Info+Engagés'!H6)),"",('Cav21'!H42)) ->  | M30: =IF(OR(ISBLANK('Info+Engagés'!A32),ISBLANK('Info+Engagés'!H6)),"",RANK(L30,$L$10:$L$49)) ->  | N30: =IF(ISBLANK('Info+Engagés'!A32),"",('Cav21'!I4)) -> 40 | O30: =IF(ISBLANK('Info+Engagés'!A32),"",('Cav21'!I5)) -> 13.33333333 | P30: =IF(ISBLANK('Info+Engagés'!$A$32),"",IF(RANK(U30,$U$10:$U$49)<4,RANK(U30,$U$10:$U$49),RANK(O30,$O$10:$O$49))) -> 21 | R30: =IF(ISBLANK('Info+Engagés'!A32),"",'Cav21'!I3) -> 0 | S30: =IF(ISBLANK('Cav21'!F41),"",-('Cav21'!F41)/100) ->  | T30: 0 | U30: 13.33333333 | V30: 0 | AB30: 25 | AC30: 0
A31: =IF(ISBLANK('Info+Engagés'!A33),"",('Info+Engagés'!A33)) -> 22 | B31: =IF(ISBLANK('Info+Engagés'!B33),"",('Info+Engagés'!B33)) ->  | C31: =IF(ISBLANK('Info+Engagés'!G33),"",('Info+Engagés'!G33)) ->  | D31: =IF(OR(ISBLANK('Info+Engagés'!A33),ISBLANK('Info+Engagés'!H2)),"",('Cav22'!D42)) ->  | E31: =IF(OR(ISBLANK('Info+Engagés'!A33),ISBLANK('Info+Engagés'!H2)),"",RANK(D31,$D$10:$D$49)) ->  | F31: =IF(OR(ISBLANK('Info+Engagés'!A33),ISBLANK('Info+Engagés'!H3)),"",('Cav22'!E42)) ->  | G31: =IF(OR(ISBLANK('Info+Engagés'!A33),ISBLANK('Info+Engagés'!H3)),"",RANK(F31,$F$10:$F$49)) ->  | H31: =IF(OR(ISBLANK('Info+Engagés'!A33),ISBLANK('Info+Engagés'!H4)),"",('Cav22'!F42)) -> 13 | I31: =IF(OR(ISBLANK('Info+Engagés'!A33),ISBLANK('Info+Engagés'!H4)),"",RANK(H31,$H$10:$H$49)) -> 22 | J31: =IF(OR(ISBLANK('Info+Engagés'!A33),ISBLANK('Info+Engagés'!H5)),"",('Cav22'!G42)) ->  | K31: =IF(OR(ISBLANK('Info+Engagés'!A33),ISBLANK('Info+Engagés'!H5)),"",RANK(J31,$J$10:$J$49)) ->  | L31: =IF(OR(ISBLANK('Info+Engagés'!A33),ISBLANK('Info+Engagés'!H6)),"",('Cav22'!H42)) ->  | M31: =IF(OR(ISBLANK('Info+Engagés'!A33),ISBLANK('Info+Engagés'!H6)),"",RANK(L31,$L$10:$L$49)) ->  | N31: =IF(ISBLANK('Info+Engagés'!A33),"",('Cav22'!I4)) -> 39 | O31: =IF(ISBLANK('Info+Engagés'!A33),"",('Cav22'!I5)) -> 13 | P31: =IF(ISBLANK('Info+Engagés'!$A$33),"",IF(RANK(U31,$U$10:$U$49)<4,RANK(U31,$U$10:$U$49),RANK(O31,$O$10:$O$49))) -> 22 | R31: =IF(ISBLANK('Info+Engagés'!A33),"",'Cav22'!I3) -> 0 | S31: =IF(ISBLANK('Cav22'!F41),"",-('Cav22'!F41)/100) ->  | T31: 0 | U31: 13 | V31: 0 | AB31: 26 | AC31: 0
A32: =IF(ISBLANK('Info+Engagés'!A34),"",('Info+Engagés'!A34)) -> 23 | B32: =IF(ISBLANK('Info+Engagés'!B34),"",('Info+Engagés'!B34)) ->  | C32: =IF(ISBLANK('Info+Engagés'!G34),"",('Info+Engagés'!G34)) ->  | D32: =IF(OR(ISBLANK('Info+Engagés'!A34),ISBLANK('Info+Engagés'!H2)),"",('Cav23'!D42)) ->  | E32: =IF(OR(ISBLANK('Info+Engagés'!A34),ISBLANK('Info+Engagés'!H2)),"",RANK(D32,$D$10:$D$49)) ->  | F32: =IF(OR(ISBLANK('Info+Engagés'!A34),ISBLANK('Info+Engagés'!H3)),"",('Cav23'!E42)) ->  | G32: =IF(OR(ISBLANK('Info+Engagés'!A34),ISBLANK('Info+Engagés'!H3)),"",RANK(F32,$F$10:$F$49)) ->  | H32: =IF(OR(ISBLANK('Info+Engagés'!A34),ISBLANK('Info+Engagés'!H4)),"",('Cav23'!F42)) -> 12.66666667 | I32: =IF(OR(ISBLANK('Info+Engagés'!A34),ISBLANK('Info+Engagés'!H4)),"",RANK(H32,$H$10:$H$49)) -> 23 | J32: =IF(OR(ISBLANK('Info+Engagés'!A34),ISBLANK('Info+Engagés'!H5)),"",('Cav23'!G42)) ->  | K32: =IF(OR(ISBLANK('Info+Engagés'!A34),ISBLANK('Info+Engagés'!H5)),"",RANK(J32,$J$10:$J$49)) ->  | L32: =IF(OR(ISBLANK('Info+Engagés'!A34),ISBLANK('Info+Engagés'!H6)),"",('Cav23'!H42)) ->  | M32: =IF(OR(ISBLANK('Info+Engagés'!A34),ISBLANK('Info+Engagés'!H6)),"",RANK(L32,$L$10:$L$49)) ->  | N32: =IF(ISBLANK('Info+Engagés'!A34),"",('Cav23'!I4)) -> 38 | O32: =IF(ISBLANK('Info+Engagés'!A34),"",('Cav23'!I5)) -> 12.66666667 | P32: =IF(ISBLANK('Info+Engagés'!$A$34),"",IF(RANK(U32,$U$10:$U$49)<4,RANK(U32,$U$10:$U$49),RANK(O32,$O$10:$O$49))) -> 23 | R32: =IF(ISBLANK('Info+Engagés'!A34),"",'Cav23'!I3) -> 0 | S32: =IF(ISBLANK('Cav23'!F41),"",-('Cav23'!F41)/100) ->  | T32: 0 | U32: 12.66666667 | V32: 0 | AB32: 27 | AC32: 0
A33: =IF(ISBLANK('Info+Engagés'!A35),"",('Info+Engagés'!A35)) -> 24 | B33: =IF(ISBLANK('Info+Engagés'!B35),"",('Info+Engagés'!B35)) ->  | C33: =IF(ISBLANK('Info+Engagés'!G35),"",('Info+Engagés'!G35)) ->  | D33: =IF(OR(ISBLANK('Info+Engagés'!A35),ISBLANK('Info+Engagés'!H2)),"",('Cav24'!D42)) ->  | E33: =IF(OR(ISBLANK('Info+Engagés'!A35),ISBLANK('Info+Engagés'!H2)),"",RANK(D33,$D$10:$D$49)) ->  | F33: =IF(OR(ISBLANK('Info+Engagés'!A35),ISBLANK('Info+Engagés'!H3)),"",('Cav24'!E42)) ->  | G33: =IF(OR(ISBLANK('Info+Engagés'!A35),ISBLANK('Info+Engagés'!H3)),"",RANK(F33,$F$10:$F$49)) ->  | H33: =IF(OR(ISBLANK('Info+Engagés'!A35),ISBLANK('Info+Engagés'!H4)),"",('Cav24'!F42)) -> 12.33333333 | I33: =IF(OR(ISBLANK('Info+Engagés'!A35),ISBLANK('Info+Engagés'!H4)),"",RANK(H33,$H$10:$H$49)) -> 24 | J33: =IF(OR(ISBLANK('Info+Engagés'!A35),ISBLANK('Info+Engagés'!H5)),"",('Cav24'!G42)) ->  | K33: =IF(OR(ISBLANK('Info+Engagés'!A35),ISBLANK('Info+Engagés'!H5)),"",RANK(J33,$J$10:$J$49)) ->  | L33: =IF(OR(ISBLANK('Info+Engagés'!A35),ISBLANK('Info+Engagés'!H6)),"",('Cav24'!H42)) ->  | M33: =IF(OR(ISBLANK('Info+Engagés'!A35),ISBLANK('Info+Engagés'!H6)),"",RANK(L33,$L$10:$L$49)) ->  | N33: =IF(ISBLANK('Info+Engagés'!A35),"",('Cav24'!I4)) -> 37 | O33: =IF(ISBLANK('Info+Engagés'!A35),"",('Cav24'!I5)) -> 12.33333333 | P33: =IF(ISBLANK('Info+Engagés'!$A$35),"",IF(RANK(U33,$U$10:$U$49)<4,RANK(U33,$U$10:$U$49),RANK(O33,$O$10:$O$49))) -> 24 | R33: =IF(ISBLANK('Info+Engagés'!A35),"",'Cav24'!I3) -> 0 | S33: =IF(ISBLANK('Cav24'!F41),"",-('Cav24'!F41)/100) ->  | T33: 0 | U33: 12.33333333 | V33: 0 | AB33: 28 | AC33: 0
A34: =IF(ISBLANK('Info+Engagés'!A36),"",('Info+Engagés'!A36)) -> 25 | B34: =IF(ISBLANK('Info+Engagés'!B36),"",('Info+Engagés'!B36)) ->  | C34: =IF(ISBLANK('Info+Engagés'!G36),"",('Info+Engagés'!G36)) ->  | D34: =IF(OR(ISBLANK('Info+Engagés'!A36),ISBLANK('Info+Engagés'!H2)),"",('Cav25'!D42)) ->  | E34: =IF(OR(ISBLANK('Info+Engagés'!A36),ISBLANK('Info+Engagés'!H2)),"",RANK(D34,$D$10:$D$49)) ->  | F34: =IF(OR(ISBLANK('Info+Engagés'!A36),ISBLANK('Info+Engagés'!H3)),"",('Cav25'!E42)) ->  | G34: =IF(OR(ISBLANK('Info+Engagés'!A36),ISBLANK('Info+Engagés'!H3)),"",RANK(F34,$F$10:$F$49)) ->  | H34: =IF(OR(ISBLANK('Info+Engagés'!A36),ISBLANK('Info+Engagés'!H4)),"",('Cav25'!F42)) -> 12 | I34: =IF(OR(ISBLANK('Info+Engagés'!A36),ISBLANK('Info+Engagés'!H4)),"",RANK(H34,$H$10:$H$49)) -> 25 | J34: =IF(OR(ISBLANK('Info+Engagés'!A36),ISBLANK('Info+Engagés'!H5)),"",('Cav25'!G42)) ->  | K34: =IF(OR(ISBLANK('Info+Engagés'!A36),ISBLANK('Info+Engagés'!H5)),"",RANK(J34,$J$10:$J$49)) ->  | L34: =IF(OR(ISBLANK('Info+Engagés'!A36),ISBLANK('Info+Engagés'!H6)),"",('Cav25'!H42)) ->  | M34: =IF(OR(ISBLANK('Info+Engagés'!A36),ISBLANK('Info+Engagés'!H6)),"",RANK(L34,$L$10:$L$49)) ->  | N34: =IF(ISBLANK('Info+Engagés'!A36),"",('Cav25'!I4)) -> 36 | O34: =IF(ISBLANK('Info+Engagés'!A36),"",('Cav25'!I5)) -> 12 | P34: =IF(ISBLANK('Info+Engagés'!$A$36),"",IF(RANK(U34,$U$10:$U$49)<4,RANK(U34,$U$10:$U$49),RANK(O34,$O$10:$O$49))) -> 25 | R34: =IF(ISBLANK('Info+Engagés'!A36),"",'Cav25'!I3) -> 0 | S34: =IF(ISBLANK('Cav25'!F41),"",-('Cav25'!F41)/100) ->  | T34: 0 | U34: 12 | V34: 0 | AB34: 29 | AC34: 0
A35: =IF(ISBLANK('Info+Engagés'!A37),"",('Info+Engagés'!A37)) -> 26 | B35: =IF(ISBLANK('Info+Engagés'!B37),"",('Info+Engagés'!B37)) ->  | C35: =IF(ISBLANK('Info+Engagés'!G37),"",('Info+Engagés'!G37)) ->  | D35: =IF(OR(ISBLANK('Info+Engagés'!A37),ISBLANK('Info+Engagés'!H2)),"",('Cav26'!D42)) ->  | E35: =IF(OR(ISBLANK('Info+Engagés'!A37),ISBLANK('Info+Engagés'!H2)),"",RANK(D35,$D$10:$D$49)) ->  | F35: =IF(OR(ISBLANK('Info+Engagés'!A37),ISBLANK('Info+Engagés'!H3)),"",('Cav26'!E42)) ->  | G35: =IF(OR(ISBLANK('Info+Engagés'!A37),ISBLANK('Info+Engagés'!H3)),"",RANK(F35,$F$10:$F$49)) ->  | H35: =IF(OR(ISBLANK('Info+Engagés'!A37),ISBLANK('Info+Engagés'!H4)),"",('Cav26'!F42)) -> 11.66666667 | I35: =IF(OR(ISBLANK('Info+Engagés'!A37),ISBLANK('Info+Engagés'!H4)),"",RANK(H35,$H$10:$H$49)) -> 26 | J35: =IF(OR(ISBLANK('Info+Engagés'!A37),ISBLANK('Info+Engagés'!H5)),"",('Cav26'!G42)) ->  | K35: =IF(OR(ISBLANK('Info+Engagés'!A37),ISBLANK('Info+Engagés'!H5)),"",RANK(J35,$J$10:$J$49)) ->  | L35: =IF(OR(ISBLANK('Info+Engagés'!A37),ISBLANK('Info+Engagés'!H6)),"",('Cav26'!H42)) ->  | M35: =IF(OR(ISBLANK('Info+Engagés'!A37),ISBLANK('Info+Engagés'!H6)),"",RANK(L35,$L$10:$L$49)) ->  | N35: =IF(ISBLANK('Info+Engagés'!A37),"",('Cav26'!I4)) -> 35 | O35: =IF(ISBLANK('Info+Engagés'!A37),"",('Cav26'!I5)) -> 11.66666667 | P35: =IF(ISBLANK('Info+Engagés'!$A$37),"",IF(RANK(U35,$U$10:$U$49)<4,RANK(U35,$U$10:$U$49),RANK(O35,$O$10:$O$49))) -> 26 | R35: =IF(ISBLANK('Info+Engagés'!A37),"",'Cav26'!I3) -> 0 | S35: =IF(ISBLANK('Cav26'!F41),"",-('Cav26'!F41)/100) ->  | T35: 0 | U35: 11.66666667 | V35: 0 | AB35: 30 | AC35: 0
A36: =IF(ISBLANK('Info+Engagés'!A38),"",('Info+Engagés'!A38)) -> 27 | B36: =IF(ISBLANK('Info+Engagés'!B38),"",('Info+Engagés'!B38)) ->  | C36: =IF(ISBLANK('Info+Engagés'!G38),"",('Info+Engagés'!G38)) ->  | D36: =IF(OR(ISBLANK('Info+Engagés'!A38),ISBLANK('Info+Engagés'!H2)),"",('Cav27'!D42)) ->  | E36: =IF(OR(ISBLANK('Info+Engagés'!A38),ISBLANK('Info+Engagés'!H2)),"",RANK(D36,$D$10:$D$49)) ->  | F36: =IF(OR(ISBLANK('Info+Engagés'!A38),ISBLANK('Info+Engagés'!H3)),"",('Cav27'!E42)) ->  | G36: =IF(OR(ISBLANK('Info+Engagés'!A38),ISBLANK('Info+Engagés'!H3)),"",RANK(F36,$F$10:$F$49)) ->  | H36: =IF(OR(ISBLANK('Info+Engagés'!A38),ISBLANK('Info+Engagés'!H4)),"",('Cav27'!F42)) -> 11.33333333 | I36: =IF(OR(ISBLANK('Info+Engagés'!A38),ISBLANK('Info+Engagés'!H4)),"",RANK(H36,$H$10:$H$49)) -> 27 | J36: =IF(OR(ISBLANK('Info+Engagés'!A38),ISBLANK('Info+Engagés'!H5)),"",('Cav27'!G42)) ->  | K36: =IF(OR(ISBLANK('Info+Engagés'!A38),ISBLANK('Info+Engagés'!H5)),"",RANK(J36,$J$10:$J$49)) ->  | L36: =IF(OR(ISBLANK('Info+Engagés'!A38),ISBLANK('Info+Engagés'!H6)),"",('Cav27'!H42)) ->  | M36: =IF(OR(ISBLANK('Info+Engagés'!A38),ISBLANK('Info+Engagés'!H6)),"",RANK(L36,$L$10:$L$49)) ->  | N36: =IF(ISBLANK('Info+Engagés'!A38),"",('Cav27'!I4)) -> 34 | O36: =IF(ISBLANK('Info+Engagés'!A38),"",('Cav27'!I5)) -> 11.33333333 | P36: =IF(ISBLANK('Info+Engagés'!$A$38),"",IF(RANK(U36,$U$10:$U$49)<4,RANK(U36,$U$10:$U$49),RANK(O36,$O$10:$O$49))) -> 27 | R36: =IF(ISBLANK('Info+Engagés'!A38),"",'Cav27'!I3) -> 0 | S36: =IF(ISBLANK('Cav27'!F41),"",-('Cav27'!F41)/100) ->  | T36: 0 | U36: 11.33333333 | V36: 0 | AB36: 31 | AC36: 0
A37: =IF(ISBLANK('Info+Engagés'!A39),"",('Info+Engagés'!A39)) -> 28 | B37: =IF(ISBLANK('Info+Engagés'!B39),"",('Info+Engagés'!B39)) ->  | C37: =IF(ISBLANK('Info+Engagés'!G39),"",('Info+Engagés'!G39)) ->  | D37: =IF(OR(ISBLANK('Info+Engagés'!A39),ISBLANK('Info+Engagés'!H2)),"",('Cav28'!D42)) ->  | E37: =IF(OR(ISBLANK('Info+Engagés'!A39),ISBLANK('Info+Engagés'!H2)),"",RANK(D37,$D$10:$D$49)) ->  | F37: =IF(OR(ISBLANK('Info+Engagés'!A39),ISBLANK('Info+Engagés'!H3)),"",('Cav28'!E42)) ->  | G37: =IF(OR(ISBLANK('Info+Engagés'!A39),ISBLANK('Info+Engagés'!H3)),"",RANK(F37,$F$10:$F$49)) ->  | H37: =IF(OR(ISBLANK('Info+Engagés'!A39),ISBLANK('Info+Engagés'!H4)),"",('Cav28'!F42)) -> 11 | I37: =IF(OR(ISBLANK('Info+Engagés'!A39),ISBLANK('Info+Engagés'!H4)),"",RANK(H37,$H$10:$H$49)) -> 28 | J37: =IF(OR(ISBLANK('Info+Engagés'!A39),ISBLANK('Info+Engagés'!H5)),"",('Cav28'!G42)) ->  | K37: =IF(OR(ISBLANK('Info+Engagés'!A39),ISBLANK('Info+Engagés'!H5)),"",RANK(J37,$J$10:$J$49)) ->  | L37: =IF(OR(ISBLANK('Info+Engagés'!A39),ISBLANK('Info+Engagés'!H6)),"",('Cav28'!H42)) ->  | M37: =IF(OR(ISBLANK('Info+Engagés'!A39),ISBLANK('Info+Engagés'!H6)),"",RANK(L37,$L$10:$L$49)) ->  | N37: =IF(ISBLANK('Info+Engagés'!A39),"",('Cav28'!I4)) -> 33 | O37: =IF(ISBLANK('Info+Engagés'!A39),"",('Cav28'!I5)) -> 11 | P37: =IF(ISBLANK('Info+Engagés'!$A$39),"",IF(RANK(U37,$U$10:$U$49)<4,RANK(U37,$U$10:$U$49),RANK(O37,$O$10:$O$49))) -> 28 | R37: =IF(ISBLANK('Info+Engagés'!A39),"",'Cav28'!I3) -> 0 | S37: =IF(ISBLANK('Cav28'!F41),"",-('Cav28'!F41)/100) ->  | T37: 0 | U37: 11 | V37: 0 | AB37: 32 | AC37: 0
A38: =IF(ISBLANK('Info+Engagés'!A40),"",('Info+Engagés'!A40)) -> 29 | B38: =IF(ISBLANK('Info+Engagés'!B40),"",('Info+Engagés'!B40)) ->  | C38: =IF(ISBLANK('Info+Engagés'!G40),"",('Info+Engagés'!G40)) ->  | D38: =IF(OR(ISBLANK('Info+Engagés'!A40),ISBLANK('Info+Engagés'!H2)),"",('Cav29'!D42)) ->  | E38: =IF(OR(ISBLANK('Info+Engagés'!A40),ISBLANK('Info+Engagés'!H2)),"",RANK(D38,$D$10:$D$49)) ->  | F38: =IF(OR(ISBLANK('Info+Engagés'!A40),ISBLANK('Info+Engagés'!H3)),"",('Cav29'!E42)) ->  | G38: =IF(OR(ISBLANK('Info+Engagés'!A40),ISBLANK('Info+Engagés'!H3)),"",RANK(F38,$F$10:$F$49)) ->  | H38: =IF(OR(ISBLANK('Info+Engagés'!A40),ISBLANK('Info+Engagés'!H4)),"",('Cav29'!F42)) -> 10.66666667 | I38: =IF(OR(ISBLANK('Info+Engagés'!A40),ISBLANK('Info+Engagés'!H4)),"",RANK(H38,$H$10:$H$49)) -> 29 | J38: =IF(OR(ISBLANK('Info+Engagés'!A40),ISBLANK('Info+Engagés'!H5)),"",('Cav29'!G42)) ->  | K38: =IF(OR(ISBLANK('Info+Engagés'!A40),ISBLANK('Info+Engagés'!H5)),"",RANK(J38,$J$10:$J$49)) ->  | L38: =IF(OR(ISBLANK('Info+Engagés'!A40),ISBLANK('Info+Engagés'!H6)),"",('Cav29'!H42)) ->  | M38: =IF(OR(ISBLANK('Info+Engagés'!A40),ISBLANK('Info+Engagés'!H6)),"",RANK(L38,$L$10:$L$49)) ->  | N38: =IF(ISBLANK('Info+Engagés'!A40),"",('Cav29'!I4)) -> 32 | O38: =IF(ISBLANK('Info+Engagés'!A40),"",('Cav29'!I5)) -> 10.66666667 | P38: =IF(ISBLANK('Info+Engagés'!$A$40),"",IF(RANK(U38,$U$10:$U$49)<4,RANK(U38,$U$10:$U$49),RANK(O38,$O$10:$O$49))) -> 29 | R38: =IF(ISBLANK('Info+Engagés'!A40),"",'Cav29'!I3) -> 0 | S38: =IF(ISBLANK('Cav29'!F41),"",-('Cav29'!F41)/100) ->  | T38: 0 | U38: 10.66666667 | V38: 0 | AB38: 33 | AC38: 0
A39: =IF(ISBLANK('Info+Engagés'!A41),"",('Info+Engagés'!A41)) -> 30 | B39: =IF(ISBLANK('Info+Engagés'!B41),"",('Info+Engagés'!B41)) ->  | C39: =IF(ISBLANK('Info+Engagés'!G41),"",('Info+Engagés'!G41)) ->  | D39: =IF(OR(ISBLANK('Info+Engagés'!A41),ISBLANK('Info+Engagés'!H2)),"",('Cav30'!D42)) ->  | E39: =IF(OR(ISBLANK('Info+Engagés'!A41),ISBLANK('Info+Engagés'!H2)),"",RANK(D39,$D$10:$D$49)) ->  | F39: =IF(OR(ISBLANK('Info+Engagés'!A41),ISBLANK('Info+Engagés'!H3)),"",('Cav30'!E42)) ->  | G39: =IF(OR(ISBLANK('Info+Engagés'!A41),ISBLANK('Info+Engagés'!H3)),"",RANK(F39,$F$10:$F$49)) ->  | H39: =IF(OR(ISBLANK('Info+Engagés'!A41),ISBLANK('Info+Engagés'!H4)),"",('Cav30'!F42)) -> 10.33333333 | I39: =IF(OR(ISBLANK('Info+Engagés'!A41),ISBLANK('Info+Engagés'!H4)),"",RANK(H39,$H$10:$H$49)) -> 30 | J39: =IF(OR(ISBLANK('Info+Engagés'!A41),ISBLANK('Info+Engagés'!H5)),"",('Cav30'!G42)) ->  | K39: =IF(OR(ISBLANK('Info+Engagés'!A41),ISBLANK('Info+Engagés'!H5)),"",RANK(J39,$J$10:$J$49)) ->  | L39: =IF(OR(ISBLANK('Info+Engagés'!A41),ISBLANK('Info+Engagés'!H6)),"",('Cav30'!H42)) ->  | M39: =IF(OR(ISBLANK('Info+Engagés'!A41),ISBLANK('Info+Engagés'!H6)),"",RANK(L39,$L$10:$L$49)) ->  | N39: =IF(ISBLANK('Info+Engagés'!A41),"",('Cav30'!I4)) -> 31 | O39: =IF(ISBLANK('Info+Engagés'!A41),"",('Cav30'!I5)) -> 10.33333333 | P39: =IF(ISBLANK('Info+Engagés'!$A$41),"",IF(RANK(U39,$U$10:$U$49)<4,RANK(U39,$U$10:$U$49),RANK(O39,$O$10:$O$49))) -> 30 | R39: =IF(ISBLANK('Info+Engagés'!A41),"",'Cav30'!I3) -> 0 | S39: =IF(ISBLANK('Cav30'!F41),"",-('Cav30'!F41)/100) ->  | T39: 0 | U39: 10.33333333 | V39: 0 | AB39: 34 | AC39: 0
A40: =IF(ISBLANK('Info+Engagés'!A42),"",('Info+Engagés'!A42)) -> 31 | B40: =IF(ISBLANK('Info+Engagés'!B42),"",('Info+Engagés'!B42)) ->  | C40: =IF(ISBLANK('Info+Engagés'!G42),"",('Info+Engagés'!G42)) ->  | D40: =IF(OR(ISBLANK('Info+Engagés'!A42),ISBLANK('Info+Engagés'!H2)),"",('Cav31'!D42)) ->  | E40: =IF(OR(ISBLANK('Info+Engagés'!A42),ISBLANK('Info+Engagés'!H2)),"",RANK(D40,$D$10:$D$49)) ->  | F40: =IF(OR(ISBLANK('Info+Engagés'!A42),ISBLANK('Info+Engagés'!H3)),"",('Cav31'!E42)) ->  | G40: =IF(OR(ISBLANK('Info+Engagés'!A42),ISBLANK('Info+Engagés'!H3)),"",RANK(F40,$F$10:$F$49)) ->  | H40: =IF(OR(ISBLANK('Info+Engagés'!A42),ISBLANK('Info+Engagés'!H4)),"",('Cav31'!F42)) -> 10 | I40: =IF(OR(ISBLANK('Info+Engagés'!A42),ISBLANK('Info+Engagés'!H4)),"",RANK(H40,$H$10:$H$49)) -> 31 | J40: =IF(OR(ISBLANK('Info+Engagés'!A42),ISBLANK('Info+Engagés'!H5)),"",('Cav31'!G42)) ->  | K40: =IF(OR(ISBLANK('Info+Engagés'!A42),ISBLANK('Info+Engagés'!H5)),"",RANK(J40,$J$10:$J$49)) ->  | L40: =IF(OR(ISBLANK('Info+Engagés'!A42),ISBLANK('Info+Engagés'!H6)),"",('Cav31'!H42)) ->  | M40: =IF(OR(ISBLANK('Info+Engagés'!A42),ISBLANK('Info+Engagés'!H6)),"",RANK(L40,$L$10:$L$49)) ->  | N40: =IF(ISBLANK('Info+Engagés'!A42),"",('Cav31'!I4)) -> 30 | O40: =IF(ISBLANK('Info+Engagés'!A42),"",('Cav31'!I5)) -> 10 | P40: =IF(ISBLANK('Info+Engagés'!$A$42),"",IF(RANK(U40,$U$10:$U$49)<4,RANK(U40,$U$10:$U$49),RANK(O40,$O$10:$O$49))) -> 31 | R40: =IF(ISBLANK('Info+Engagés'!A42),"",'Cav31'!I3) -> 0 | S40: =IF(ISBLANK('Cav31'!F41),"",-('Cav31'!F41)/100) ->  | T40: 0 | U40: 10 | V40: 0 | AB40: 35 | AC40: 0
A41: =IF(ISBLANK('Info+Engagés'!A43),"",('Info+Engagés'!A43)) -> 32 | B41: =IF(ISBLANK('Info+Engagés'!B43),"",('Info+Engagés'!B43)) ->  | C41: =IF(ISBLANK('Info+Engagés'!G43),"",('Info+Engagés'!G43)) ->  | D41: =IF(OR(ISBLANK('Info+Engagés'!A43),ISBLANK('Info+Engagés'!H2)),"",('Cav32'!D42)) ->  | E41: =IF(OR(ISBLANK('Info+Engagés'!A43),ISBLANK('Info+Engagés'!H2)),"",RANK(D41,$D$10:$D$49)) ->  | F41: =IF(OR(ISBLANK('Info+Engagés'!A43),ISBLANK('Info+Engagés'!H3)),"",('Cav32'!E42)) ->  | G41: =IF(OR(ISBLANK('Info+Engagés'!A43),ISBLANK('Info+Engagés'!H3)),"",RANK(F41,$F$10:$F$49)) ->  | H41: =IF(OR(ISBLANK('Info+Engagés'!A43),ISBLANK('Info+Engagés'!H4)),"",('Cav32'!F42)) -> 9.666666667 | I41: =IF(OR(ISBLANK('Info+Engagés'!A43),ISBLANK('Info+Engagés'!H4)),"",RANK(H41,$H$10:$H$49)) -> 32 | J41: =IF(OR(ISBLANK('Info+Engagés'!A43),ISBLANK('Info+Engagés'!H5)),"",('Cav32'!G42)) ->  | K41: =IF(OR(ISBLANK('Info+Engagés'!A43),ISBLANK('Info+Engagés'!H5)),"",RANK(J41,$J$10:$J$49)) ->  | L41: =IF(OR(ISBLANK('Info+Engagés'!A43),ISBLANK('Info+Engagés'!H6)),"",('Cav32'!H42)) ->  | M41: =IF(OR(ISBLANK('Info+Engagés'!A43),ISBLANK('Info+Engagés'!H6)),"",RANK(L41,$L$10:$L$49)) ->  | N41: =IF(ISBLANK('Info+Engagés'!A43),"",('Cav32'!I4)) -> 29 | O41: =IF(ISBLANK('Info+Engagés'!A43),"",('Cav32'!I5)) -> 9.666666667 | P41: =IF(ISBLANK('Info+Engagés'!$A$43),"",IF(RANK(U41,$U$10:$U$49)<4,RANK(U41,$U$10:$U$49),RANK(O41,$O$10:$O$49))) -> 32 | R41: =IF(ISBLANK('Info+Engagés'!A43),"",'Cav32'!I3) -> 0 | S41: =IF(ISBLANK('Cav32'!F41),"",-('Cav32'!F41)/100) ->  | T41: 0 | U41: 9.666666667 | V41: 0 | AB41: 36 | AC41: 0
A42: =IF(ISBLANK('Info+Engagés'!A44),"",('Info+Engagés'!A44)) -> 33 | B42: =IF(ISBLANK('Info+Engagés'!B44),"",('Info+Engagés'!B44)) ->  | C42: =IF(ISBLANK('Info+Engagés'!G44),"",('Info+Engagés'!G44)) ->  | D42: =IF(OR(ISBLANK('Info+Engagés'!A44),ISBLANK('Info+Engagés'!H2)),"",('Cav33'!D42)) ->  | E42: =IF(OR(ISBLANK('Info+Engagés'!A44),ISBLANK('Info+Engagés'!H2)),"",RANK(D42,$D$10:$D$49)) ->  | F42: =IF(OR(ISBLANK('Info+Engagés'!A44),ISBLANK('Info+Engagés'!H3)),"",('Cav33'!E42)) ->  | G42: =IF(OR(ISBLANK('Info+Engagés'!A44),ISBLANK('Info+Engagés'!H3)),"",RANK(F42,$F$10:$F$49)) ->  | H42: =IF(OR(ISBLANK('Info+Engagés'!A44),ISBLANK('Info+Engagés'!H4)),"",('Cav33'!F42)) -> 9.333333333 | I42: =IF(OR(ISBLANK('Info+Engagés'!A44),ISBLANK('Info+Engagés'!H4)),"",RANK(H42,$H$10:$H$49)) -> 33 | J42: =IF(OR(ISBLANK('Info+Engagés'!A44),ISBLANK('Info+Engagés'!H5)),"",('Cav33'!G42)) ->  | K42: =IF(OR(ISBLANK('Info+Engagés'!A44),ISBLANK('Info+Engagés'!H5)),"",RANK(J42,$J$10:$J$49)) ->  | L42: =IF(OR(ISBLANK('Info+Engagés'!A44),ISBLANK('Info+Engagés'!H6)),"",('Cav33'!H42)) ->  | M42: =IF(OR(ISBLANK('Info+Engagés'!A44),ISBLANK('Info+Engagés'!H6)),"",RANK(L42,$L$10:$L$49)) ->  | N42: =IF(ISBLANK('Info+Engagés'!A44),"",('Cav33'!I4)) -> 28 | O42: =IF(ISBLANK('Info+Engagés'!A44),"",('Cav33'!I5)) -> 9.333333333 | P42: =IF(ISBLANK('Info+Engagés'!$A$44),"",IF(RANK(U42,$U$10:$U$49)<4,RANK(U42,$U$10:$U$49),RANK(O42,$O$10:$O$49))) -> 33 | R42: =IF(ISBLANK('Info+Engagés'!A44),"",'Cav33'!I3) -> 0 | S42: =IF(ISBLANK('Cav33'!F41),"",-('Cav33'!F41)/100) ->  | T42: 0 | U42: 9.333333333 | V42: 0 | AB42: 37 | AC42: 0
A43: =IF(ISBLANK('Info+Engagés'!A45),"",('Info+Engagés'!A45)) -> 34 | B43: =IF(ISBLANK('Info+Engagés'!B45),"",('Info+Engagés'!B45)) ->  | C43: =IF(ISBLANK('Info+Engagés'!G45),"",('Info+Engagés'!G45)) ->  | D43: =IF(OR(ISBLANK('Info+Engagés'!A45),ISBLANK('Info+Engagés'!H2)),"",('Cav34'!D42)) ->  | E43: =IF(OR(ISBLANK('Info+Engagés'!A45),ISBLANK('Info+Engagés'!H2)),"",RANK(D43,$D$10:$D$49)) ->  | F43: =IF(OR(ISBLANK('Info+Engagés'!A45),ISBLANK('Info+Engagés'!H3)),"",('Cav34'!E42)) ->  | G43: =IF(OR(ISBLANK('Info+Engagés'!A45),ISBLANK('Info+Engagés'!H3)),"",RANK(F43,$F$10:$F$49)) ->  | H43: =IF(OR(ISBLANK('Info+Engagés'!A45),ISBLANK('Info+Engagés'!H4)),"",('Cav34'!F42)) -> 9 | I43: =IF(OR(ISBLANK('Info+Engagés'!A45),ISBLANK('Info+Engagés'!H4)),"",RANK(H43,$H$10:$H$49)) -> 34 | J43: =IF(OR(ISBLANK('Info+Engagés'!A45),ISBLANK('Info+Engagés'!H5)),"",('Cav34'!G42)) ->  | K43: =IF(OR(ISBLANK('Info+Engagés'!A45),ISBLANK('Info+Engagés'!H5)),"",RANK(J43,$J$10:$J$49)) ->  | L43: =IF(OR(ISBLANK('Info+Engagés'!A45),ISBLANK('Info+Engagés'!H6)),"",('Cav34'!H42)) ->  | M43: =IF(OR(ISBLANK('Info+Engagés'!A45),ISBLANK('Info+Engagés'!H6)),"",RANK(L43,$L$10:$L$49)) ->  | N43: =IF(ISBLANK('Info+Engagés'!A45),"",('Cav34'!I4)) -> 27 | O43: =IF(ISBLANK('Info+Engagés'!A45),"",('Cav34'!I5)) -> 9 | P43: =IF(ISBLANK('Info+Engagés'!$A$45),"",IF(RANK(U43,$U$10:$U$49)<4,RANK(U43,$U$10:$U$49),RANK(O43,$O$10:$O$49))) -> 34 | R43: =IF(ISBLANK('Info+Engagés'!A45),"",'Cav34'!I3) -> 0 | S43: =IF(ISBLANK('Cav34'!F41),"",-('Cav34'!F41)/100) ->  | T43: 0 | U43: 9 | V43: 0 | AB43: 38 | AC43: 0
A44: =IF(ISBLANK('Info+Engagés'!A46),"",('Info+Engagés'!A46)) -> 35 | B44: =IF(ISBLANK('Info+Engagés'!B46),"",('Info+Engagés'!B46)) ->  | C44: =IF(ISBLANK('Info+Engagés'!G46),"",('Info+Engagés'!G46)) ->  | D44: =IF(OR(ISBLANK('Info+Engagés'!A46),ISBLANK('Info+Engagés'!H2)),"",('Cav35'!D42)) ->  | E44: =IF(OR(ISBLANK('Info+Engagés'!A46),ISBLANK('Info+Engagés'!H2)),"",RANK(D44,$D$10:$D$49)) ->  | F44: =IF(OR(ISBLANK('Info+Engagés'!A46),ISBLANK('Info+Engagés'!H3)),"",('Cav35'!E42)) ->  | G44: =IF(OR(ISBLANK('Info+Engagés'!A46),ISBLANK('Info+Engagés'!H3)),"",RANK(F44,$F$10:$F$49)) ->  | H44: =IF(OR(ISBLANK('Info+Engagés'!A46),ISBLANK('Info+Engagés'!H4)),"",('Cav35'!F42)) -> 8.666666667 | I44: =IF(OR(ISBLANK('Info+Engagés'!A46),ISBLANK('Info+Engagés'!H4)),"",RANK(H44,$H$10:$H$49)) -> 35 | J44: =IF(OR(ISBLANK('Info+Engagés'!A46),ISBLANK('Info+Engagés'!H5)),"",('Cav35'!G42)) ->  | K44: =IF(OR(ISBLANK('Info+Engagés'!A46),ISBLANK('Info+Engagés'!H5)),"",RANK(J44,$J$10:$J$49)) ->  | L44: =IF(OR(ISBLANK('Info+Engagés'!A46),ISBLANK('Info+Engagés'!H6)),"",('Cav35'!H42)) ->  | M44: =IF(OR(ISBLANK('Info+Engagés'!A46),ISBLANK('Info+Engagés'!H6)),"",RANK(L44,$L$10:$L$49)) ->  | N44: =IF(ISBLANK('Info+Engagés'!A46),"",('Cav35'!I4)) -> 26 | O44: =IF(ISBLANK('Info+Engagés'!A46),"",('Cav35'!I5)) -> 8.666666667 | P44: =IF(ISBLANK('Info+Engagés'!$A$46),"",IF(RANK(U44,$U$10:$U$49)<4,RANK(U44,$U$10:$U$49),RANK(O44,$O$10:$O$49))) -> 35 | R44: =IF(ISBLANK('Info+Engagés'!A46),"",'Cav35'!I3) -> 0 | S44: =IF(ISBLANK('Cav35'!F41),"",-('Cav35'!F41)/100) ->  | T44: 0 | U44: 8.666666667 | V44: 0 | AB44: 39 | AC44: 0
A45: =IF(ISBLANK('Info+Engagés'!A47),"",('Info+Engagés'!A47)) -> 36 | B45: =IF(ISBLANK('Info+Engagés'!B47),"",('Info+Engagés'!B47)) ->  | C45: =IF(ISBLANK('Info+Engagés'!G47),"",('Info+Engagés'!G47)) ->  | D45: =IF(OR(ISBLANK('Info+Engagés'!A46),ISBLANK('Info+Engagés'!H2)),"",('Cav36'!D42)) ->  | E45: =IF(OR(ISBLANK('Info+Engagés'!A47),ISBLANK('Info+Engagés'!H2)),"",RANK(D45,$D$10:$D$49)) ->  | F45: =IF(OR(ISBLANK('Info+Engagés'!A47),ISBLANK('Info+Engagés'!H3)),"",('Cav36'!E42)) ->  | G45: =IF(OR(ISBLANK('Info+Engagés'!A47),ISBLANK('Info+Engagés'!H3)),"",RANK(F45,$F$10:$F$49)) ->  | H45: =IF(OR(ISBLANK('Info+Engagés'!A47),ISBLANK('Info+Engagés'!H4)),"",('Cav36'!F42)) -> 8.333333333 | I45: =IF(OR(ISBLANK('Info+Engagés'!A47),ISBLANK('Info+Engagés'!H4)),"",RANK(H45,$H$10:$H$49)) -> 36 | J45: =IF(OR(ISBLANK('Info+Engagés'!A47),ISBLANK('Info+Engagés'!H5)),"",('Cav36'!G42)) ->  | K45: =IF(OR(ISBLANK('Info+Engagés'!A47),ISBLANK('Info+Engagés'!H5)),"",RANK(J45,$J$10:$J$49)) ->  | L45: =IF(OR(ISBLANK('Info+Engagés'!A47),ISBLANK('Info+Engagés'!H6)),"",('Cav36'!H42)) ->  | M45: =IF(OR(ISBLANK('Info+Engagés'!A47),ISBLANK('Info+Engagés'!H6)),"",RANK(L45,$L$10:$L$49)) ->  | N45: =IF(ISBLANK('Info+Engagés'!A47),"",('Cav36'!I4)) -> 25 | O45: =IF(ISBLANK('Info+Engagés'!A47),"",('Cav36'!I5)) -> 8.333333333 | P45: =IF(ISBLANK('Info+Engagés'!$A$47),"",IF(RANK(U45,$U$10:$U$49)<4,RANK(U45,$U$10:$U$49),RANK(O45,$O$10:$O$49))) -> 36 | R45: =IF(ISBLANK('Info+Engagés'!A47),"",'Cav36'!I3) -> 0 | S45: =IF(ISBLANK('Cav36'!F41),"",-('Cav36'!F41)/100) ->  | T45: 0 | U45: 8.333333333 | V45: 0 | AB45: 40 | AC45: 0
A46: =IF(ISBLANK('Info+Engagés'!A48),"",('Info+Engagés'!A48)) -> 37 | B46: =IF(ISBLANK('Info+Engagés'!B48),"",('Info+Engagés'!B48)) ->  | C46: =IF(ISBLANK('Info+Engagés'!G48),"",('Info+Engagés'!G48)) ->  | D46: =IF(OR(ISBLANK('Info+Engagés'!A48),ISBLANK('Info+Engagés'!H2)),"",('Cav37'!D42)) ->  | E46: =IF(OR(ISBLANK('Info+Engagés'!A48),ISBLANK('Info+Engagés'!H2)),"",RANK(D46,$D$10:$D$49)) ->  | F46: =IF(OR(ISBLANK('Info+Engagés'!A48),ISBLANK('Info+Engagés'!H3)),"",('Cav37'!E42)) ->  | G46: =IF(OR(ISBLANK('Info+Engagés'!A48),ISBLANK('Info+Engagés'!H3)),"",RANK(F46,$F$10:$F$49)) ->  | H46: =IF(OR(ISBLANK('Info+Engagés'!A48),ISBLANK('Info+Engagés'!H4)),"",('Cav37'!F42)) -> 8 | I46: =IF(OR(ISBLANK('Info+Engagés'!A48),ISBLANK('Info+Engagés'!H4)),"",RANK(H46,$H$10:$H$49)) -> 37 | J46: =IF(OR(ISBLANK('Info+Engagés'!A48),ISBLANK('Info+Engagés'!H5)),"",('Cav37'!G42)) ->  | K46: =IF(OR(ISBLANK('Info+Engagés'!A48),ISBLANK('Info+Engagés'!H5)),"",RANK(J46,$J$10:$J$49)) ->  | L46: =IF(OR(ISBLANK('Info+Engagés'!A48),ISBLANK('Info+Engagés'!H6)),"",('Cav37'!H42)) ->  | M46: =IF(OR(ISBLANK('Info+Engagés'!A48),ISBLANK('Info+Engagés'!H6)),"",RANK(L46,$L$10:$L$49)) ->  | N46: =IF(ISBLANK('Info+Engagés'!A48),"",('Cav37'!I4)) -> 24 | O46: =IF(ISBLANK('Info+Engagés'!A48),"",('Cav37'!I5)) -> 8 | P46: =IF(ISBLANK('Info+Engagés'!$A$48),"",IF(RANK(U46,$U$10:$U$49)<4,RANK(U46,$U$10:$U$49),RANK(O46,$O$10:$O$49))) -> 37 | R46: =IF(ISBLANK('Info+Engagés'!A48),"",'Cav37'!I3) -> 0 | S46: =IF(ISBLANK('Cav37'!F41),"",-('Cav37'!F41)/100) ->  | T46: 0 | U46: 8 | V46: 0 | AB46: 41 | AC46: 0
A47: =IF(ISBLANK('Info+Engagés'!A49),"",('Info+Engagés'!A49)) -> 38 | B47: =IF(ISBLANK('Info+Engagés'!B49),"",('Info+Engagés'!B49)) ->  | C47: =IF(ISBLANK('Info+Engagés'!G49),"",('Info+Engagés'!G49)) ->  | D47: =IF(OR(ISBLANK('Info+Engagés'!A49),ISBLANK('Info+Engagés'!H2)),"",('Cav38'!D42)) ->  | E47: =IF(OR(ISBLANK('Info+Engagés'!A49),ISBLANK('Info+Engagés'!H2)),"",RANK(D47,$D$10:$D$49)) ->  | F47: =IF(OR(ISBLANK('Info+Engagés'!A49),ISBLANK('Info+Engagés'!H3)),"",('Cav38'!E42)) ->  | G47: =IF(OR(ISBLANK('Info+Engagés'!A49),ISBLANK('Info+Engagés'!H3)),"",RANK(F47,$F$10:$F$49)) ->  | H47: =IF(OR(ISBLANK('Info+Engagés'!A49),ISBLANK('Info+Engagés'!H4)),"",('Cav38'!F42)) -> 7.666666667 | I47: =IF(OR(ISBLANK('Info+Engagés'!A49),ISBLANK('Info+Engagés'!H4)),"",RANK(H47,$H$10:$H$49)) -> 38 | J47: =IF(OR(ISBLANK('Info+Engagés'!A49),ISBLANK('Info+Engagés'!H5)),"",('Cav38'!G42)) ->  | K47: =IF(OR(ISBLANK('Info+Engagés'!A49),ISBLANK('Info+Engagés'!H5)),"",RANK(J47,$J$10:$J$49)) ->  | L47: =IF(OR(ISBLANK('Info+Engagés'!A49),ISBLANK('Info+Engagés'!H6)),"",('Cav38'!H42)) ->  | M47: =IF(OR(ISBLANK('Info+Engagés'!A49),ISBLANK('Info+Engagés'!H6)),"",RANK(L47,$L$10:$L$49)) ->  | N47: =IF(ISBLANK('Info+Engagés'!A49),"",('Cav38'!I4)) -> 23 | O47: =IF(ISBLANK('Info+Engagés'!A49),"",('Cav38'!I5)) -> 7.666666667 | P47: =IF(ISBLANK('Info+Engagés'!$A$49),"",IF(RANK(U47,$U$10:$U$49)<4,RANK(U47,$U$10:$U$49),RANK(O47,$O$10:$O$49))) -> 38 | R47: =IF(ISBLANK('Info+Engagés'!A49),"",'Cav38'!I3) -> 0 | S47: =IF(ISBLANK('Cav38'!F41),"",-('Cav38'!F41)/100) ->  | T47: 0 | U47: 7.666666667 | V47: 0 | AB47: 42 | AC47: 0
A48: =IF(ISBLANK('Info+Engagés'!A50),"",('Info+Engagés'!A50)) -> 39 | B48: =IF(ISBLANK('Info+Engagés'!B50),"",('Info+Engagés'!B50)) ->  | C48: =IF(ISBLANK('Info+Engagés'!G50),"",('Info+Engagés'!G50)) ->  | D48: =IF(OR(ISBLANK('Info+Engagés'!A50),ISBLANK('Info+Engagés'!H2)),"",('Cav39'!D42)) ->  | E48: =IF(OR(ISBLANK('Info+Engagés'!A50),ISBLANK('Info+Engagés'!H2)),"",RANK(D48,$D$10:$D$49)) ->  | F48: =IF(OR(ISBLANK('Info+Engagés'!A50),ISBLANK('Info+Engagés'!H3)),"",('Cav39'!E42)) ->  | G48: =IF(OR(ISBLANK('Info+Engagés'!A50),ISBLANK('Info+Engagés'!H3)),"",RANK(F48,$F$10:$F$49)) ->  | H48: =IF(OR(ISBLANK('Info+Engagés'!A50),ISBLANK('Info+Engagés'!H4)),"",('Cav39'!F42)) -> 7.333333333 | I48: =IF(OR(ISBLANK('Info+Engagés'!A50),ISBLANK('Info+Engagés'!H4)),"",RANK(H48,$H$10:$H$49)) -> 39 | J48: =IF(OR(ISBLANK('Info+Engagés'!A50),ISBLANK('Info+Engagés'!H5)),"",('Cav39'!G42)) ->  | K48: =IF(OR(ISBLANK('Info+Engagés'!A50),ISBLANK('Info+Engagés'!H5)),"",RANK(J48,$J$10:$J$49)) ->  | L48: =IF(OR(ISBLANK('Info+Engagés'!A50),ISBLANK('Info+Engagés'!H6)),"",('Cav39'!H42)) ->  | M48: =IF(OR(ISBLANK('Info+Engagés'!A50),ISBLANK('Info+Engagés'!H6)),"",RANK(L48,$L$10:$L$49)) ->  | N48: =IF(ISBLANK('Info+Engagés'!A50),"",('Cav39'!I4)) -> 22 | O48: =IF(ISBLANK('Info+Engagés'!A50),"",('Cav39'!I5)) -> 7.333333333 | P48: =IF(ISBLANK('Info+Engagés'!$A$50),"",IF(RANK(U48,$U$10:$U$49)<4,RANK(U48,$U$10:$U$49),RANK(O48,$O$10:$O$49))) -> 39 | R48: =IF(ISBLANK('Info+Engagés'!A50),"",'Cav39'!I3) -> 0 | S48: =IF(ISBLANK('Cav39'!F41),"",-('Cav39'!F41)/100) ->  | T48: 0 | U48: 7.333333333 | V48: 0 | AB48: 43 | AC48: 0
A49: =IF(ISBLANK('Info+Engagés'!A51),"",('Info+Engagés'!A51)) -> 40 | B49: =IF(ISBLANK('Info+Engagés'!B51),"",('Info+Engagés'!B51)) ->  | C49: =IF(ISBLANK('Info+Engagés'!G51),"",('Info+Engagés'!G51)) ->  | D49: =IF(OR(ISBLANK('Info+Engagés'!A51),ISBLANK('Info+Engagés'!H2)),"",('Cav40'!D42)) ->  | E49: =IF(OR(ISBLANK('Info+Engagés'!A51),ISBLANK('Info+Engagés'!H2)),"",RANK(D49,$D$10:$D$49)) ->  | F49: =IF(OR(ISBLANK('Info+Engagés'!A51),ISBLANK('Info+Engagés'!H3)),"",('Cav40'!E42)) ->  | G49: =IF(OR(ISBLANK('Info+Engagés'!A51),ISBLANK('Info+Engagés'!H3)),"",RANK(F49,$F$10:$F$49)) ->  | H49: =IF(OR(ISBLANK('Info+Engagés'!A51),ISBLANK('Info+Engagés'!H4)),"",('Cav40'!F42)) -> 0 | I49: =IF(OR(ISBLANK('Info+Engagés'!A51),ISBLANK('Info+Engagés'!H4)),"",RANK(H49,$H$10:$H$49)) -> 40 | J49: =IF(OR(ISBLANK('Info+Engagés'!A51),ISBLANK('Info+Engagés'!H5)),"",('Cav40'!G42)) ->  | K49: =IF(OR(ISBLANK('Info+Engagés'!A51),ISBLANK('Info+Engagés'!H5)),"",RANK(J49,$J$10:$J$49)) ->  | L49: =IF(OR(ISBLANK('Info+Engagés'!A51),ISBLANK('Info+Engagés'!H6)),"",('Cav40'!H42)) ->  | M49: =IF(OR(ISBLANK('Info+Engagés'!A51),ISBLANK('Info+Engagés'!H6)),"",RANK(L49,$L$10:$L$49)) ->  | N49: =IF(ISBLANK('Info+Engagés'!A51),"",('Cav40'!I4)) -> 0 | O49: =IF(ISBLANK('Info+Engagés'!A51),"",('Cav40'!I5)) -> 0 | P49: =IF(ISBLANK('Info+Engagés'!$A$51),"",IF(RANK(U49,$U$10:$U$49)<4,RANK(U49,$U$10:$U$49),RANK(O49,$O$10:$O$49))) -> 40 | R49: =IF(ISBLANK('Info+Engagés'!A51),"",'Cav40'!I3) -> 0 | S49: =IF(ISBLANK('Cav40'!F41),"",-('Cav40'!F41)/100) ->  | T49: 0 | U49: 0 | V49: 0 | AB49: 44 | AC49: 0
